Local authority department which incurred the expenditure,Service Division,Cost Centre,Summary of the Purpose of Expenditure,Expense Type,Expense Code,Detailed Expense Type,Date of Transaction,Transaction Number,Beneficiary,Merchant Category Number,Merchant Category,Gross Amount,VAT,Net Amount
Children and Young Peoples Services,Head of Education and Skills,071801,Selby Cottage Childcare Centre,Supplies and Services,328041,Clothing uniforms and laundry E328,01-Nov-2018,000007981360971,B&M RETAIL LTD,5310,Clothing uniforms and laundry,5.08,0.00,5.08
Children and Young Peoples Services,Head of Education and Skills,075021,Youth Employment Initiative,Supplies and Services,384199,Miscellaneous Expenses,01-Nov-2018,000007981361035,WWW.DURHAM.GOV.UK,9399,Other hired and contracted services,12.00,0.00,12.00
Children and Young Peoples Services,Head of Childrens Social Care,085551,Short Break Services-Park Hse Sher,Supplies and Services,344033,Telephones,01-Nov-2018,000007981361817,CARE-ABILITY HEALT,8099,Telephones general-all costs,120.00,0.00,120.00
Children and Young Peoples Services,Head of Childrens Social Care,085333,Coxhoe Satelite Home,Supplies and Services,348037,Subsistence E348,01-Nov-2018,000007981361885,MCDONALDS,5812,Subsistence,9.00,0.00,9.00
Regeneration and Local Services,Direct Services,021242,Catering - County Hall,Supplies and Services,324117,Provisions E324,01-Nov-2018,000007989036291,BATLEYS PERTH,5300,Catering costs - provisions,483.06,80.51,402.55
Regeneration and Local Services,Direct Services,021242,Catering - County Hall,Supplies and Services,324117,Provisions E324,01-Nov-2018,000007989036291 - 1,BATLEYS PERTH,5300,Catering costs - provisions,223.93,,223.93
Regeneration and Local Services,Culture & Sport,011060,Hardwick Park Catering,Supplies and Services,324117,Provisions E324,01-Nov-2018,000007989036757,BATLEYS PERTH,5300,Catering costs - provisions,441.84,73.64,368.20
Regeneration and Local Services,Culture & Sport,011060,Hardwick Park Catering,Supplies and Services,324117,Provisions E324,01-Nov-2018,000007989036757 - 1,BATLEYS PERTH,5300,Catering costs - provisions,197.74,,197.74
Regeneration and Local Services,Culture & Sport,011060,Hardwick Park Catering,Supplies and Services,324117,Provisions E324,01-Nov-2018,000007989036777,BATLEYS PERTH,5300,Catering costs - provisions,155.22,25.87,129.35
Regeneration and Local Services,Culture & Sport,011060,Hardwick Park Catering,Supplies and Services,324117,Provisions E324,01-Nov-2018,000007989036777 - 1,BATLEYS PERTH,5300,Catering costs - provisions,117.76,,117.76
Children and Young Peoples Services,Head of Education and Skills,071801,Selby Cottage Childcare Centre,Supplies and Services,324117,Provisions E324,01-Nov-2018,000008028144373,JR HOLLAND FOODSERVICE,5422,Catering costs - provisions,469.56,0.00,469.56
Resources,Digital and Customer Services,065461,Business Support,Supplies and Services,344033,Telephones,01-Nov-2018,000008028144375,AMZN Mktp UK MT87J3SP4,5942,Telephones general-all costs,20.93,0.00,20.93
Resources,Legal & Democratic Services,069340,Litigation Child Care/Adult,Employees,040149,Recruitment Instruction and Training,01-Nov-2018,000008028144377,EB COURT OF PROTECTIO,7399,Training-all costs,60.00,0.00,60.00
Regeneration and Local Services,Economic Development and Housing,031576,B& B - Temp Accom,Supplies and Services,364320,Grants to Voluntary Organisations,01-Nov-2018,000008028144379,HOTEL 52,7011,Accommodation assistance,60.00,0.00,60.00
Children and Young Peoples Services,Head of Childrens Social Care,085357,Bespoke Placements,Supplies and Services,352001,Conference Expenses,01-Nov-2018,000008028144397,TRAVELODGE,3615,Conferencesseminars fees etc,176.00,29.33,146.67
Adult and Health Services,Head of Adults,055302,Durham Pathways,Supplies and Services,328041,Clothing uniforms and laundry E328,01-Nov-2018,000008028144413,WWW.ARGOS.CO.UK,5310,Clothing uniforms and laundry,43.93,0.00,43.93
Regeneration and Local Services,Economic Development and Housing,030705,Visit County Durham,Supplies and Services,336005,Advertising E336,01-Nov-2018,000008028144417,FACEBK 4USFCHJUC2,7311,Advertising other than for staff,2.12,0.00,2.12
Regeneration and Local Services,Economic Development and Housing,030705,Visit County Durham,Supplies and Services,304999,Equipment and Materials,01-Nov-2018,000008028144419,MAILCHIMP MONTHLY,5968,Misc equipment tools and materials,238.15,0.00,238.15
Children and Young Peoples Services,Head of Childrens Social Care,085342,9 Cedar Drive Aycliffe,Supplies and Services,328041,Clothing uniforms and laundry E328,01-Nov-2018,000008028144421,PRICE-BUCKLAND.CO.,5699,Clothing uniforms and laundry,25.45,0.00,25.45
Children and Young Peoples Services,Head of Childrens Social Care,085332,Middlestone Moor CU,Supplies and Services,308011,Furniture,01-Nov-2018,000008028144429,ARGOS LTD,5310,Furniture repair and replacement,19.00,0.00,19.00
Children and Young Peoples Services,Head of Childrens Social Care,085332,Middlestone Moor CU,Supplies and Services,324117,Provisions E324,01-Nov-2018,000008028144431,ASDA STORES LTD,5411,Catering costs - provisions,84.30,0.00,84.30
Children and Young Peoples Services,Head of Childrens Social Care,085332,Middlestone Moor CU,Supplies and Services,324117,Provisions E324,01-Nov-2018,000008028144433,ASDA STORES 4320,5411,Catering costs - provisions,1.50,0.00,1.50
Children and Young Peoples Services,Head of Childrens Social Care,085332,Middlestone Moor CU,Supplies and Services,384999,Miscellaneous Expenses,01-Nov-2018,000008028144435,MARKS&SPENCER PLC SACA,5411,Other expenses,19.05,0.00,19.05
Children and Young Peoples Services,Head of Childrens Social Care,085332,Middlestone Moor CU,Supplies and Services,304259,Equipment and Materials,01-Nov-2018,000008028144437,CURRYS SUPERSTORE,5732,Equipment-purchase and rental,79.99,0.00,79.99
Regeneration and Local Services,Economic Development and Housing,030699,Business Growth and Innovation General,Supplies and Services,304999,Equipment and Materials,01-Nov-2018,000008028144439,LINKEDIN-341 4051866,5968,Misc equipment tools and materials,5.84,0.00,5.84
Regeneration and Local Services,Direct Services,010367,C&G - South Grounds Maintenance,Supplies and Services,304221,Equipment and Materials,01-Nov-2018,000008028144467,SCREWFIX PETERLEE,5211,Direct materials,81.93,13.66,68.27
Children and Young Peoples Services,"Head of Early Help, Inclusion and Vulnerable Children",071440,Barnard Castle One Point Hub,Supplies and Services,332047,Printing Stationery and Gen Off Exps,01-Nov-2018,000008028144481,AMZN Mktp UK MT5HW1D64,5942,Stationery,16.33,2.72,13.61
Regeneration and Local Services,Direct Services,021242,Catering - County Hall,Supplies and Services,324117,Provisions E324,01-Nov-2018,000008028144485,JR HOLLAND FOODSERVICE,5422,Catering costs - provisions,132.23,0.00,132.23
Regeneration and Local Services,Direct Services,021242,Catering - County Hall,Supplies and Services,324117,Provisions E324,01-Nov-2018,000008028144487,JR HOLLAND FOODSERVICE,5422,Catering costs - provisions,13.80,0.00,13.80
Regeneration and Local Services,Culture & Sport,054233,Bishop Auckland Town Hall Library,Supplies and Services,324117,Provisions E324,01-Nov-2018,000008028144489,COOPLANDS BAKERY,5462,Catering costs - provisions,8.32,0.00,8.32
Regeneration and Local Services,Culture & Sport,054812,Gala Theatre - Catering etc,Supplies and Services,324117,Provisions E324,01-Nov-2018,000008028144491,JR HOLLAND FOODSERVICE,5422,Catering costs - provisions,38.88,0.00,38.88
Regeneration and Local Services,Direct Services,021242,Catering - County Hall,Supplies and Services,324117,Provisions E324,01-Nov-2018,000008028144501,TESCO STORES 6029,5411,Catering costs - provisions,4.35,0.00,4.35
Children and Young Peoples Services,Head of Childrens Social Care,085362,LAC & Permanence Team 2,Supplies and Services,304403,Equipment and Materials,01-Nov-2018,000008028144519,AMZN Mktp UK MT00E9DA4,5942,Other consumables,12.04,0.00,12.04
Children and Young Peoples Services,Head of Childrens Social Care,085362,LAC & Permanence Team 2,Supplies and Services,304403,Equipment and Materials,01-Nov-2018,000008028144521,AMZN Mktp UK MT9YV8SX4,5942,Other consumables,11.59,0.00,11.59
Children and Young Peoples Services,Head of Childrens Social Care,085342,9 Cedar Drive Aycliffe,Supplies and Services,304259,Equipment and Materials,01-Nov-2018,000008028144529,JD SPORTS PLC,5941,Equipment-purchase and rental,11.00,0.00,11.00
Children and Young Peoples Services,Head of Childrens Social Care,085342,9 Cedar Drive Aycliffe,Supplies and Services,328041,Clothing uniforms and laundry E328,01-Nov-2018,000008028144531,TK MAXX,5331,Clothing uniforms and laundry,7.99,0.00,7.99
Children and Young Peoples Services,Head of Childrens Social Care,085342,9 Cedar Drive Aycliffe,Supplies and Services,324117,Provisions E324,01-Nov-2018,000008028144533,TESCO STORES 2916,5411,Catering costs - provisions,14.30,0.00,14.30
Children and Young Peoples Services,Head of Childrens Social Care,085342,9 Cedar Drive Aycliffe,Supplies and Services,324117,Provisions E324,01-Nov-2018,000008028144535,TESCO STORES 2916,5411,Catering costs - provisions,6.00,0.00,6.00
Children and Young Peoples Services,Head of Education and Skills,071732,Dean Bank Childcare,Supplies and Services,324117,Provisions E324,01-Nov-2018,000008028144541,TESCO STORES 2916,5411,Catering costs - provisions,20.75,0.00,20.75
Regeneration and Local Services,Culture & Sport,054813,Gala Theatre - Technical,Supplies and Services,312011,Newspapers books and periodicals E312,01-Nov-2018,000008028144543,AMZN Mktp UK MT5J59DT4,5942,Books-school library,29.20,0.00,29.20
Regeneration and Local Services,Spatial Policy Planning Assets & Environment,031204,North Pennines Nectarworks,Supplies and Services,324117,Provisions E324,01-Nov-2018,000008028144559,TESCO STORES 4358,5411,Catering costs - provisions,5.56,0.00,5.56
Regeneration and Local Services,Direct Services,010301,C&G - North Grounds Maintenance,Third Party Payments 4THIRD,430100,Rendered by Private Contractors,01-Nov-2018,000008028144583,JOHN WARREN (ANIMAL BY,7399,Payments to sub-contractors,10.80,0.00,10.80
Regeneration and Local Services,Economic Development and Housing,031578,Client Travel Reimbursements,Transport,235073,Public Transport,01-Nov-2018,000008028144593,STAGECOACH SERVICE,4131,Travel-clients/students/children,19.30,0.00,19.30
Regeneration and Local Services,Economic Development and Housing,030674,Business Services General,Third Party Payments 4THIRD,430100,Rendered by Private Contractors,01-Nov-2018,000008028144595,EB SCALEUP NORTH EAST,7399,Payments to sub-contractors,26.15,0.00,26.15
Children and Young Peoples Services,"Head of Early Help, Inclusion and Vulnerable Children",088106,Ferryhill & N.Aycliffe 0-19 Targeted Family Support,Supplies and Services,304403,Equipment and Materials,01-Nov-2018,000008028144597,GRO HM PASSPORT OFFICE,9399,Other consumables,9.25,0.00,9.25
Children and Young Peoples Services,"Head of Early Help, Inclusion and Vulnerable Children",085954,Walworth,Supplies and Services,384999,Miscellaneous Expenses,01-Nov-2018,000008028144599,AMZN Mktp UK MT1F43S64,5942,Other expenses,3.14,0.00,3.14
Children and Young Peoples Services,"Head of Early Help, Inclusion and Vulnerable Children",085954,Walworth,Supplies and Services,384999,Miscellaneous Expenses,01-Nov-2018,000008028144601,AMZN Mktp UK MT2GO7DT4,5942,Other expenses,5.59,0.00,5.59
Children and Young Peoples Services,"Head of Early Help, Inclusion and Vulnerable Children",085954,Walworth,Supplies and Services,384999,Miscellaneous Expenses,01-Nov-2018,000008028144603,AMZN Mktp UK MT2SX9D14,5942,Other expenses,5.99,1.00,4.99
Children and Young Peoples Services,"Head of Early Help, Inclusion and Vulnerable Children",085954,Walworth,Supplies and Services,384999,Miscellaneous Expenses,01-Nov-2018,000008028144605,AMZN Mktp UK MT4CA0D84,5942,Other expenses,3.99,0.00,3.99
Children and Young Peoples Services,"Head of Early Help, Inclusion and Vulnerable Children",085954,Walworth,Supplies and Services,384999,Miscellaneous Expenses,01-Nov-2018,000008028144607,AMZN Mktp UK MT8H81DB4,5942,Other expenses,5.99,1.00,4.99
Children and Young Peoples Services,"Head of Early Help, Inclusion and Vulnerable Children",085954,Walworth,Supplies and Services,384999,Miscellaneous Expenses,01-Nov-2018,000008028144609,AMZN Mktp UK MT9HN0DO4,5942,Other expenses,4.45,0.74,3.71
Children and Young Peoples Services,"Head of Early Help, Inclusion and Vulnerable Children",085962,Aycliffe Secure - Durham,Supplies and Services,328041,Clothing uniforms and laundry E328,01-Nov-2018,000008028144613,FOOTASYLUM PLC,5691,Clothing uniforms and laundry,49.98,0.00,49.98
Children and Young Peoples Services,"Head of Early Help, Inclusion and Vulnerable Children",085954,Walworth,Supplies and Services,384999,Miscellaneous Expenses,01-Nov-2018,000008028144615,AMZN Mktp UK MT0FI6S54,5942,Other expenses,2.99,0.00,2.99
Children and Young Peoples Services,"Head of Early Help, Inclusion and Vulnerable Children",085954,Walworth,Supplies and Services,384999,Miscellaneous Expenses,01-Nov-2018,000008028144617,AMZN Mktp UK MT0Y99S64,5942,Other expenses,3.99,0.00,3.99
Children and Young Peoples Services,"Head of Early Help, Inclusion and Vulnerable Children",085954,Walworth,Supplies and Services,384999,Miscellaneous Expenses,01-Nov-2018,000008028144619,AMZN Mktp UK MT6J60DR4,5942,Other expenses,16.95,0.00,16.95
Children and Young Peoples Services,"Head of Early Help, Inclusion and Vulnerable Children",085965,Barnard,Supplies and Services,324117,Provisions E324,01-Nov-2018,000008028144623,TESCO STORES 6329,5411,Catering costs - provisions,87.33,0.00,87.33
Regeneration and Local Services,Culture & Sport,054813,Gala Theatre - Technical,Supplies and Services,312011,Newspapers books and periodicals E312,01-Nov-2018,000008028144625,AMZN Mktp UK MT74D1D64,5942,Books-school library,28.99,0.00,28.99
Regeneration and Local Services,Culture & Sport,011060,Hardwick Park Catering,Supplies and Services,324117,Provisions E324,01-Nov-2018,000008028144633,JR HOLLAND FOODSERVICE,5422,Catering costs - provisions,81.09,0.00,81.09
Regeneration and Local Services,Direct Services,010525,Catering - Green Lane,Supplies and Services,324117,Provisions E324,01-Nov-2018,000008028144647,JR HOLLAND FOODSERVICE,5422,Catering costs - provisions,-6.82,0.00,-6.82
Children and Young Peoples Services,"Head of Early Help, Inclusion and Vulnerable Children",071443,Stanley One Point Hub,Supplies and Services,324117,Provisions E324,01-Nov-2018,000008028144657,ASDA GEORGE COM LEEDS,5411,Catering costs - provisions,323.95,0.00,323.95
Children and Young Peoples Services,"Head of Early Help, Inclusion and Vulnerable Children",071443,Stanley One Point Hub,Supplies and Services,304259,Equipment and Materials,01-Nov-2018,000008028144659,GRO HM PASSPORT OFFICE,9399,Equipment-purchase and rental,9.25,0.00,9.25
Regeneration and Local Services,Direct Services,011003,County Hall Durham,Supplies and Services,384999,Miscellaneous Expenses,01-Nov-2018,000008028144679,AMZN Mktp UK MT9TI3DK4,5942,Other expenses,22.47,0.00,22.47
Regeneration and Local Services,Direct Services,011003,County Hall Durham,Supplies and Services,384999,Miscellaneous Expenses,01-Nov-2018,000008028144681,AMZN Mktp UK MT66G3SR4,5942,Other expenses,2.54,0.42,2.12
Children and Young Peoples Services,Head of Childrens Social Care,085333,Coxhoe Satelite Home,Supplies and Services,304259,Equipment and Materials,01-Nov-2018,000008028144683,DCC Theatres,9399,Equipment-purchase and rental,76.00,0.00,76.00
Children and Young Peoples Services,Head of Childrens Social Care,085333,Coxhoe Satelite Home,Supplies and Services,324117,Provisions E324,01-Nov-2018,000008028144685,TESCO STORES 2371,5411,Catering costs - provisions,88.17,0.00,88.17
Children and Young Peoples Services,Head of Childrens Social Care,085333,Coxhoe Satelite Home,Supplies and Services,324117,Provisions E324,01-Nov-2018,000008028144687,TESCO STORES 2371,5411,Catering costs - provisions,35.30,0.00,35.30
Regeneration and Local Services,Direct Services,010367,C&G - South Grounds Maintenance,Supplies and Services,384999,Miscellaneous Expenses,01-Nov-2018,000008028144689,WWW.GUSTHARTS.COM,5046,Other expenses,251.54,41.92,209.62
Regeneration and Local Services,Direct Services,010367,C&G - South Grounds Maintenance,Supplies and Services,304221,Equipment and Materials,01-Nov-2018,000008028144707,SCREWFIX BISHOP AUCKLA,5211,Direct materials,20.28,0.00,20.28
Adult and Health Services,Head of Adults,055643,Hawthorn House LD Respite Unit,Supplies and Services,324117,Provisions E324,01-Nov-2018,000008028144709,JR HOLLAND FOODSERVICE,5422,Catering costs - provisions,17.86,0.00,17.86
Adult and Health Services,Head of Adults,055643,Hawthorn House LD Respite Unit,Supplies and Services,324117,Provisions E324,01-Nov-2018,000008028144711,JR HOLLAND FOODSERVICE,5422,Catering costs - provisions,3.68,0.00,3.68
Children and Young Peoples Services,Head of Childrens Social Care,085380,Operations Manager Adoption & Fostering,Supplies and Services,324117,Provisions E324,01-Nov-2018,000008028144717,ASDA STORES,5411,Catering costs - provisions,13.05,0.00,13.05
Children and Young Peoples Services,Head of Education and Skills,070264,EDC Premises,Supplies and Services,324117,Provisions E324,01-Nov-2018,000008028144719,ASDA STORES,5411,Catering costs - provisions,4.75,0.00,4.75
Resources,Digital and Customer Services,065335,School Services - Implementations,Supplies and Services,304639,Equipment and Materials,01-Nov-2018,000008028144721,AMZN Mktp UK MT7KW7DC4,5942,Technicians-supplies,25.90,4.32,21.58
Children and Young Peoples Services,"Head of Early Help, Inclusion and Vulnerable Children",085957,Secure Management,Supplies and Services,384999,Miscellaneous Expenses,01-Nov-2018,000008028144729,AMZN Mktp UK MT3RB5DO4,5942,Other expenses,49.36,8.23,41.13
Children and Young Peoples Services,"Head of Early Help, Inclusion and Vulnerable Children",085957,Secure Management,Supplies and Services,384999,Miscellaneous Expenses,01-Nov-2018,000008028144731,AMZN MKTP UK MT1QZ7D74,5942,Other expenses,29.95,0.00,29.95
Regeneration and Local Services,Spatial Policy Planning Assets & Environment,036000,Asset Management,Supplies and Services,332047,Printing Stationery and Gen Off Exps,01-Nov-2018,000008028144739,WWW.NEOPOST.CO.UK,5111,Stationery,500.00,0.00,500.00
Children and Young Peoples Services,Head of Childrens Social Care,085352,Tow Law CU,Supplies and Services,324117,Provisions E324,01-Nov-2018,000008028144763,TESCO STORES 2278,5411,Catering costs - provisions,8.00,0.00,8.00
Resources,Finance & Transactional Services,065180,Collections,Supplies and Services,340001,Postages E340,01-Nov-2018,000008028144797,POST OFFICE COUNTER,9402,Postages,6.50,0.00,6.50
Transformation and Partnerships,Communications Management,060270,Communications and Marketing,Supplies and Services,332047,Printing Stationery and Gen Off Exps,01-Nov-2018,000008028144815,AMZN MKTP UK MT66K3S94,5942,Stationery,6.99,1.17,5.82
Transformation and Partnerships,Partnerships & Community Engagement Div.,060530,3 Towns AAP,Supplies and Services,332047,Printing Stationery and Gen Off Exps,01-Nov-2018,000008028144817,AMZN Mktp UK MT6GP8SI4,5942,Stationery,14.82,0.00,14.82
Regeneration and Local Services,Spatial Policy Planning Assets & Environment,031217,North Pennines - Cold Blooded & Spineless,Employees,040149,Recruitment Instruction and Training,01-Nov-2018,000008028144823,WWW.ROYENSOC.CO.UK,8398,Training-all costs,40.00,0.00,40.00
Children and Young Peoples Services,Head of Childrens Social Care,085363,LAC & Permanence Team 3,Supplies and Services,304259,Equipment and Materials,01-Nov-2018,000008028144825,SUNDERLAND CC,9399,Equipment-purchase and rental,10.00,0.00,10.00
Children and Young Peoples Services,Childrens Services Operational Support,052986,CYPS - Locality and Operational Support,Supplies and Services,328041,Clothing uniforms and laundry E328,01-Nov-2018,000008028144849,MOTHERCARE DIRECT-E-CO,5311,Clothing uniforms and laundry,29.99,0.00,29.99
Children and Young Peoples Services,"Head of Early Help, Inclusion and Vulnerable Children",071443,Stanley One Point Hub,Supplies and Services,304259,Equipment and Materials,01-Nov-2018,000008065381031,GRO HM PASSPORT OFFICE,9399,Equipment-purchase and rental,-9.25,0.00,-9.25
Regeneration and Local Services,Direct Services,021235,Catering - Wharton Park,Supplies and Services,324117,Provisions E324,01-Nov-2018,000008134121197,BATLEYS PERTH,5300,Catering costs - provisions,264.96,44.16,220.80
Regeneration and Local Services,Direct Services,021235,Catering - Wharton Park,Supplies and Services,324117,Provisions E324,01-Nov-2018,000008134121197 - 1,BATLEYS PERTH,5300,Catering costs - provisions,17.77,,17.77
Children and Young Peoples Services,Head of Education and Skills,054640,Durham Learning Resources,Supplies and Services,304245,Equipment and Materials,02-Nov-2018,000007981360985,AMZN Mktp UK MT2NY2214,5942,Materials,10.99,0.00,10.99
Children and Young Peoples Services,Head of Childrens Social Care,085357,Bespoke Placements,Supplies and Services,352001,Conference Expenses,02-Nov-2018,000007981361027,HOTEL 52,7011,Conferencesseminars fees etc,"4,256.00",0.00,4256.00
Children and Young Peoples Services,Head of Childrens Social Care,085621,Families First Aycliffe,Supplies and Services,338045,Services,02-Nov-2018,000007981361107,WWW.DURHAM.GOV.UK,9399,Legal expenses 338045,4.02,0.67,3.35
Children and Young Peoples Services,Head of Childrens Social Care,085621,Families First Aycliffe,Supplies and Services,338048,Services,02-Nov-2018,000007981361107 - 1,WWW.DURHAM.GOV.UK,9399,Court costs 338048,19.98,,19.98
Regeneration and Local Services,Economic Development and Housing,030699,Business Growth and Innovation General,Supplies and Services,348037,Subsistence E348,02-Nov-2018,000007981361117,THE STAR INN,5813,Subsistence,95.00,0.00,95.00
Regeneration and Local Services,Economic Development and Housing,030699,Business Growth and Innovation General,Supplies and Services,312011,Newspapers books and periodicals E312,02-Nov-2018,000007981361131,FASTHOSTS INTERNET,4816,Books-school library,59.99,0.00,59.99
Resources,Finance & Transactional Services,065180,Collections,Charges,720130,Fees and Charges,02-Nov-2018,000007981361149,WWW.HMCOURT-SERVIC,9222,Fees-legal,44.00,0.00,44.00
Regeneration and Local Services,Direct Services,010367,C&G - South Grounds Maintenance,Supplies and Services,304221,Equipment and Materials,02-Nov-2018,000007981361193,SCREWFIX PETERLEE,5211,Direct materials,7.99,1.33,6.66
Children and Young Peoples Services,"Head of Early Help, Inclusion and Vulnerable Children",071440,Barnard Castle One Point Hub,Supplies and Services,332047,Printing Stationery and Gen Off Exps,02-Nov-2018,000007981361209,AMZN Mktp UK MT2R29S64,5942,Stationery,10.98,1.83,9.15
Regeneration and Local Services,Direct Services,021242,Catering - County Hall,Supplies and Services,324117,Provisions E324,02-Nov-2018,000007981361219,JR HOLLAND FOODSERVICE,5422,Catering costs - provisions,100.44,0.00,100.44
Regeneration and Local Services,Direct Services,021242,Catering - County Hall,Supplies and Services,324117,Provisions E324,02-Nov-2018,000007981361227,JR HOLLAND FOODSERVICE,5422,Catering costs - provisions,13.80,0.00,13.80
Regeneration and Local Services,Direct Services,021242,Catering - County Hall,Supplies and Services,324117,Provisions E324,02-Nov-2018,000007981361229,HOPWELLS LTD,5811,Catering costs - provisions,351.02,0.00,351.02
Regeneration and Local Services,Direct Services,021242,Catering - County Hall,Supplies and Services,324117,Provisions E324,02-Nov-2018,000007981361235,HOPWELLS LTD,5811,Catering costs - provisions,349.37,0.00,349.37
Regeneration and Local Services,Direct Services,021242,Catering - County Hall,Supplies and Services,324117,Provisions E324,02-Nov-2018,000007981361237,HOPWELLS LTD,5811,Catering costs - provisions,66.34,0.00,66.34
Regeneration and Local Services,Direct Services,021242,Catering - County Hall,Supplies and Services,324117,Provisions E324,02-Nov-2018,000007981361239,FREEMAN CATERING BUTCH,5422,Catering costs - provisions,10.00,0.00,10.00
Regeneration and Local Services,Direct Services,021242,Catering - County Hall,Supplies and Services,324117,Provisions E324,02-Nov-2018,000007981361243,FREEMAN CATERING BUTCH,5422,Catering costs - provisions,113.20,0.00,113.20
Regeneration and Local Services,Direct Services,021242,Catering - County Hall,Supplies and Services,324117,Provisions E324,02-Nov-2018,000007981361247,FREEMAN CATERING BUTCH,5422,Catering costs - provisions,21.72,0.00,21.72
Regeneration and Local Services,Direct Services,021242,Catering - County Hall,Supplies and Services,324117,Provisions E324,02-Nov-2018,000007981361249,FREEMAN CATERING BUTCH,5422,Catering costs - provisions,33.60,0.00,33.60
Regeneration and Local Services,Direct Services,021242,Catering - County Hall,Supplies and Services,324117,Provisions E324,02-Nov-2018,000007981361253,FREEMAN CATERING BUTCH,5422,Catering costs - provisions,213.23,0.00,213.23
Regeneration and Local Services,Direct Services,021242,Catering - County Hall,Supplies and Services,324117,Provisions E324,02-Nov-2018,000007981361255,FREEMAN CATERING BUTCH,5422,Catering costs - provisions,15.00,0.00,15.00
Regeneration and Local Services,Direct Services,021242,Catering - County Hall,Supplies and Services,324117,Provisions E324,02-Nov-2018,000007981361259,FREEMAN CATERING BUTCH,5422,Catering costs - provisions,-34.63,0.00,-34.63
Regeneration and Local Services,Culture & Sport,054233,Bishop Auckland Town Hall Library,Supplies and Services,324117,Provisions E324,02-Nov-2018,000007981361265,HERON FOODS LTD,5499,Catering costs - provisions,6.00,0.00,6.00
Children and Young Peoples Services,Head of Childrens Social Care,085622,Families First Ferryhill,Supplies and Services,364320,Grants to Voluntary Organisations,02-Nov-2018,000007981361289,HOLIDAY PAYMENT VRUK,4722,Accommodation assistance,184.00,0.00,184.00
Regeneration and Local Services,Culture & Sport,054812,Gala Theatre - Catering etc,Supplies and Services,324117,Provisions E324,02-Nov-2018,000007981361297,HOPWELLS LTD,5811,Catering costs - provisions,40.41,0.00,40.41
Regeneration and Local Services,Culture & Sport,054812,Gala Theatre - Catering etc,Supplies and Services,324117,Provisions E324,02-Nov-2018,000007981361305,HOPWELLS LTD,5811,Catering costs - provisions,25.60,0.00,25.60
Regeneration and Local Services,Culture & Sport,054812,Gala Theatre - Catering etc,Supplies and Services,324117,Provisions E324,02-Nov-2018,000007981361317,FREEMAN CATERING BUTCH,5422,Catering costs - provisions,16.20,0.00,16.20
Regeneration and Local Services,Direct Services,021242,Catering - County Hall,Supplies and Services,324117,Provisions E324,02-Nov-2018,000007981361339,SAINSBURYS 0776,5411,Catering costs - provisions,47.89,0.00,47.89
Regeneration and Local Services,Economic Development and Housing,030773,CLLD North,Transport,235057,Public Transport,02-Nov-2018,000007981361403,LNE RAILWAY DAR STN,4112,Staff travelling,58.40,0.00,58.40
Children and Young Peoples Services,Head of Childrens Social Care,085362,LAC & Permanence Team 2,Supplies and Services,304403,Equipment and Materials,02-Nov-2018,000007981361409,HM PASSPORT OFFICE,9399,Other consumables,49.00,0.00,49.00
Children and Young Peoples Services,Head of Childrens Social Care,085334,West Rainton Satelite Home,Supplies and Services,324117,Provisions E324,02-Nov-2018,000007981361465,SAINSBURYS SACAT 0776,5411,Catering costs - provisions,15.00,0.00,15.00
Children and Young Peoples Services,Head of Childrens Social Care,085334,West Rainton Satelite Home,Supplies and Services,304259,Equipment and Materials,02-Nov-2018,000007981361469,J D SPORTS,5941,Equipment-purchase and rental,139.05,0.00,139.05
Children and Young Peoples Services,Head of Childrens Social Care,085334,West Rainton Satelite Home,Supplies and Services,324117,Provisions E324,02-Nov-2018,000007981361473,LAKELAND LIMITED,5399,Catering costs - provisions,9.98,1.66,8.32
Children and Young Peoples Services,Head of Childrens Social Care,085342,9 Cedar Drive Aycliffe,Supplies and Services,324117,Provisions E324,02-Nov-2018,000007981361477,TESCO STORES 2916,5411,Catering costs - provisions,71.12,0.00,71.12
Regeneration and Local Services,Spatial Policy Planning Assets & Environment,031204,North Pennines Nectarworks,Supplies and Services,312011,Newspapers books and periodicals E312,02-Nov-2018,000007981361573,J RAINE & SON,5251,Books-school library,9.93,0.00,9.93
Regeneration and Local Services,Economic Development and Housing,031500,Housing Solutions - Core Team,Employees,040149,Recruitment Instruction and Training,02-Nov-2018,000007981361623,PREMIER INN,3811,Training-all costs,266.00,44.33,221.67
Regeneration and Local Services,Economic Development and Housing,031578,Client Travel Reimbursements,Transport,235073,Public Transport,02-Nov-2018,000007981361639,NATIONAL EXPRESS LIMIT,4131,Travel-clients/students/children,11.40,0.00,11.40
Children and Young Peoples Services,"Head of Early Help, Inclusion and Vulnerable Children",085954,Walworth,Supplies and Services,384999,Miscellaneous Expenses,02-Nov-2018,000007981361657,AMZN Mktp UK MT2S93SR4,5942,Other expenses,6.24,0.00,6.24
Children and Young Peoples Services,"Head of Early Help, Inclusion and Vulnerable Children",085954,Walworth,Supplies and Services,384999,Miscellaneous Expenses,02-Nov-2018,000007981361659,AMZN Mktp UK MT6KD0SD4,5942,Other expenses,1.16,0.00,1.16
Children and Young Peoples Services,"Head of Early Help, Inclusion and Vulnerable Children",085957,Secure Management,Supplies and Services,304403,Equipment and Materials,02-Nov-2018,000007981361661,BARRINGTON INTERNATION,5734,Other consumables,120.60,20.10,100.50
Children and Young Peoples Services,"Head of Early Help, Inclusion and Vulnerable Children",085957,Secure Management,Supplies and Services,384999,Miscellaneous Expenses,02-Nov-2018,000007981361663,WILKO.COM,5399,Other expenses,10.00,1.67,8.33
Children and Young Peoples Services,"Head of Early Help, Inclusion and Vulnerable Children",085957,Secure Management,Supplies and Services,384999,Miscellaneous Expenses,02-Nov-2018,000007981361665,WWW.MADE4FIGHTERS.COM,5655,Other expenses,429.98,71.66,358.32
Children and Young Peoples Services,"Head of Early Help, Inclusion and Vulnerable Children",085956,Lumley,Supplies and Services,324117,Provisions E324,02-Nov-2018,000007981361667,TESCO STORES 6329,5411,Catering costs - provisions,78.00,0.00,78.00
Regeneration and Local Services,Culture & Sport,011060,Hardwick Park Catering,Supplies and Services,324117,Provisions E324,02-Nov-2018,000007981361715,HOPWELLS LTD,5811,Catering costs - provisions,182.46,30.41,152.05
Regeneration and Local Services,Culture & Sport,011060,Hardwick Park Catering,Supplies and Services,324117,Provisions E324,02-Nov-2018,000007981361715 - 1,HOPWELLS LTD,5811,Catering costs - provisions,115.09,,115.09
Regeneration and Local Services,Culture & Sport,011060,Hardwick Park Catering,Supplies and Services,324117,Provisions E324,02-Nov-2018,000007981361719,FREEMAN CATERING BUTCH,5422,Catering costs - provisions,26.34,0.00,26.34
Regeneration and Local Services,Culture & Sport,011060,Hardwick Park Catering,Supplies and Services,324117,Provisions E324,02-Nov-2018,000007981361723,FREEMAN CATERING BUTCH,5422,Catering costs - provisions,39.47,0.00,39.47
Regeneration and Local Services,Culture & Sport,011060,Hardwick Park Catering,Supplies and Services,324117,Provisions E324,02-Nov-2018,000007981361725,HOPWELLS LTD,5811,Catering costs - provisions,-7.39,-1.23,-6.16
Regeneration and Local Services,Economic Development and Housing,030714,Salvus House,Supplies and Services,304259,Equipment and Materials,02-Nov-2018,000007981361743,WILKO DURHAM 426,5722,Equipment-purchase and rental,4.00,0.00,4.00
Regeneration and Local Services,Economic Development and Housing,030714,Salvus House,Supplies and Services,304259,Equipment and Materials,02-Nov-2018,000007981361747,WILKO DURHAM 426,5722,Equipment-purchase and rental,-2.00,0.00,-2.00
Regeneration and Local Services,Direct Services,010525,Catering - Green Lane,Supplies and Services,324117,Provisions E324,02-Nov-2018,000007981361753,JR HOLLAND FOODSERVICE,5422,Catering costs - provisions,66.05,0.00,66.05
Regeneration and Local Services,Direct Services,010525,Catering - Green Lane,Supplies and Services,324117,Provisions E324,02-Nov-2018,000007981361757,HOPWELLS LTD,5811,Catering costs - provisions,66.89,0.00,66.89
Regeneration and Local Services,Direct Services,010525,Catering - Green Lane,Supplies and Services,324117,Provisions E324,02-Nov-2018,000007981361759,FREEMAN CATERING BUTCH,5422,Catering costs - provisions,7.10,0.00,7.10
Regeneration and Local Services,Direct Services,010525,Catering - Green Lane,Supplies and Services,324117,Provisions E324,02-Nov-2018,000007981361761,FREEMAN CATERING BUTCH,5422,Catering costs - provisions,56.69,0.00,56.69
Regeneration and Local Services,Direct Services,010525,Catering - Green Lane,Supplies and Services,324117,Provisions E324,02-Nov-2018,000007981361765,FREEMAN CATERING BUTCH,5422,Catering costs - provisions,41.17,0.00,41.17
Children and Young Peoples Services,Head of Childrens Social Care,085551,Short Break Services-Park Hse Sher,Supplies and Services,324117,Provisions E324,02-Nov-2018,000007981361821,ICELAND,5411,Catering costs - provisions,55.08,0.00,55.08
Children and Young Peoples Services,Head of Childrens Social Care,085551,Short Break Services-Park Hse Sher,Supplies and Services,344033,Telephones,02-Nov-2018,000007981361825,CARE-ABILITY HEALT,8099,Telephones general-all costs,24.00,0.00,24.00
Resources,Finance & Transactional Services,065180,Collections,Supplies and Services,338048,Services,02-Nov-2018,000007981361871,HMCOURTS-SERVICE.G,9222,Court costs 338048,675.00,0.00,675.00
Children and Young Peoples Services,Head of Childrens Social Care,085352,Tow Law CU,Supplies and Services,324117,Provisions E324,02-Nov-2018,000007981361907,ASDA STORES,5411,Catering costs - provisions,93.88,0.00,93.88
Regeneration and Local Services,Direct Services,030691,"Catering - Durham Dales Centre			",Supplies and Services,324117,Provisions E324,02-Nov-2018,000007981361919,HOPWELLS LTD,5811,Catering costs - provisions,144.06,0.00,144.06
Regeneration and Local Services,Direct Services,030691,"Catering - Durham Dales Centre			",Supplies and Services,324117,Provisions E324,02-Nov-2018,000007981361923,FREEMAN CATERING BUTCH,5422,Catering costs - provisions,114.87,0.00,114.87
Regeneration and Local Services,Direct Services,030691,"Catering - Durham Dales Centre			",Supplies and Services,324117,Provisions E324,02-Nov-2018,000007981361925,FREEMAN CATERING BUTCH,5422,Catering costs - provisions,47.51,0.00,47.51
Regeneration and Local Services,Economic Development and Housing,031576,B& B - Temp Accom,Supplies and Services,364320,Grants to Voluntary Organisations,02-Nov-2018,000007981361949,PREMIER INN,3811,Accommodation assistance,198.50,0.00,198.50
Adult and Health Services,Head of Adults,055643,Hawthorn House LD Respite Unit,Supplies and Services,324117,Provisions E324,02-Nov-2018,000007981361971,JR HOLLAND FOODSERVICE,5422,Catering costs - provisions,10.55,0.00,10.55
Adult and Health Services,Head of Adults,055643,Hawthorn House LD Respite Unit,Supplies and Services,324117,Provisions E324,02-Nov-2018,000007981361977,JR HOLLAND FOODSERVICE,5422,Catering costs - provisions,10.48,0.00,10.48
Adult and Health Services,Head of Adults,055643,Hawthorn House LD Respite Unit,Supplies and Services,324117,Provisions E324,02-Nov-2018,000007981361983,FREEMAN CATERING BUTCH,5422,Catering costs - provisions,55.73,0.00,55.73
Children and Young Peoples Services,"Head of Early Help, Inclusion and Vulnerable Children",085954,Walworth,Supplies and Services,312075,Newspapers books and periodicals E312,02-Nov-2018,000007981362077,CORAM ACADEMY LTD,8398,Text books,45.00,7.50,37.50
Children and Young Peoples Services,"Head of Early Help, Inclusion and Vulnerable Children",085954,Walworth,Supplies and Services,312075,Newspapers books and periodicals E312,02-Nov-2018,000007981362077 - 1,CORAM ACADEMY LTD,8398,Text books,17.35,,17.35
Children and Young Peoples Services,"Head of Early Help, Inclusion and Vulnerable Children",085954,Walworth,Supplies and Services,328041,Clothing uniforms and laundry E328,02-Nov-2018,000007981362085,SPORTSDIRECT.COM,5941,Clothing uniforms and laundry,-39.99,0.00,-39.99
Regeneration and Local Services,Economic Development and Housing,031500,Housing Solutions - Core Team,Supplies and Services,352001,Conference Expenses,02-Nov-2018,000007981362091,HAYAT HOTEL,7011,Conferencesseminars fees etc,445.00,74.17,370.83
Children and Young Peoples Services,Head of Childrens Social Care,085372,Young People Services - North,Supplies and Services,304259,Equipment and Materials,02-Nov-2018,000007981362117,HM PASSPORT OFFICE,9399,Equipment-purchase and rental,75.50,0.00,75.50
Children and Young Peoples Services,Childrens Services Operational Support,052986,CYPS - Locality and Operational Support,Supplies and Services,304259,Equipment and Materials,02-Nov-2018,000007981362121,HM PASSPORT,9399,Equipment-purchase and rental,127.00,0.00,127.00
Regeneration and Local Services,Culture & Sport,054235,Bishop Auckland Town Hall Cafe,Supplies and Services,324117,Provisions E324,02-Nov-2018,000007981362127,JR HOLLAND FOODSERVICE,5422,Catering costs - provisions,78.78,0.00,78.78
Regeneration and Local Services,Culture & Sport,054235,Bishop Auckland Town Hall Cafe,Supplies and Services,324117,Provisions E324,02-Nov-2018,000007981362131,HOPWELLS LTD,5811,Catering costs - provisions,415.73,0.00,415.73
Regeneration and Local Services,Culture & Sport,054235,Bishop Auckland Town Hall Cafe,Supplies and Services,324117,Provisions E324,02-Nov-2018,000007981362135,HOPWELLS LTD,5811,Catering costs - provisions,25.06,0.00,25.06
Regeneration and Local Services,Culture & Sport,054235,Bishop Auckland Town Hall Cafe,Supplies and Services,324117,Provisions E324,02-Nov-2018,000007981362137,HOPWELLS LTD,5811,Catering costs - provisions,-9.69,0.00,-9.69
Regeneration and Local Services,Direct Services,021324,Catering - Meadowfield,Supplies and Services,324117,Provisions E324,02-Nov-2018,000007981362145,JR HOLLAND FOODSERVICE,5422,Catering costs - provisions,49.78,0.00,49.78
Regeneration and Local Services,Direct Services,021324,Catering - Meadowfield,Supplies and Services,324117,Provisions E324,02-Nov-2018,000007981362149,JR HOLLAND FOODSERVICE,5422,Catering costs - provisions,10.35,0.00,10.35
Regeneration and Local Services,Direct Services,021324,Catering - Meadowfield,Supplies and Services,324117,Provisions E324,02-Nov-2018,000007981362153,HOPWELLS LTD,5811,Catering costs - provisions,95.44,0.00,95.44
Regeneration and Local Services,Direct Services,021324,Catering - Meadowfield,Supplies and Services,324117,Provisions E324,02-Nov-2018,000007981362155,FREEMAN CATERING BUTCH,5422,Catering costs - provisions,69.39,0.00,69.39
Regeneration and Local Services,Economic Development and Housing,030671,Business Space,Premises,120037,Energy Costs,02-Nov-2018,000007981362163,NORTHUMBRIAN WATER LTD,4900,Other fuels,112.80,0.00,112.80
Regeneration and Local Services,Culture & Sport,011263,Louisa Centre,Supplies and Services,324117,Provisions E324,02-Nov-2018,000007981362313,ASDA SUPERSTORE,5411,Catering costs - provisions,51.03,8.51,42.52
Regeneration and Local Services,Culture & Sport,011263,Louisa Centre,Supplies and Services,324117,Provisions E324,02-Nov-2018,000007981362315,ASDA SUPERSTORE,5411,Catering costs - provisions,4.00,0.67,3.33
Regeneration and Local Services,Direct Services,021235,Catering - Wharton Park,Supplies and Services,324117,Provisions E324,02-Nov-2018,000007981362359,HOPWELLS LTD,5811,Catering costs - provisions,48.48,0.00,48.48
Regeneration and Local Services,Direct Services,010525,Catering - Green Lane,Supplies and Services,324117,Provisions E324,02-Nov-2018,000007989036879,BATLEYS PERTH,5300,Catering costs - provisions,185.46,30.91,154.55
Regeneration and Local Services,Direct Services,010525,Catering - Green Lane,Supplies and Services,324117,Provisions E324,02-Nov-2018,000007989036879 - 1,BATLEYS PERTH,5300,Catering costs - provisions,118.97,,118.97
Adult and Health Services,Head of Adults,055643,Hawthorn House LD Respite Unit,Supplies and Services,324117,Provisions E324,02-Nov-2018,000007989037159,BATLEYS PERTH,5300,Catering costs - provisions,10.38,1.73,8.65
Adult and Health Services,Head of Adults,055643,Hawthorn House LD Respite Unit,Supplies and Services,324117,Provisions E324,02-Nov-2018,000007989037159 - 1,BATLEYS PERTH,5300,Catering costs - provisions,85.28,,85.28
Children and Young Peoples Services,"Head of Early Help, Inclusion and Vulnerable Children",085954,Walworth,Supplies and Services,384999,Miscellaneous Expenses,02-Nov-2018,000008028144621,AMZN Mktp UK MT8P84SX4,5942,Other expenses,5.98,0.00,5.98
Children and Young Peoples Services,Head of Education and Skills,054640,Durham Learning Resources,Supplies and Services,304245,Equipment and Materials,03-Nov-2018,000007981360981,AMZN Mktp UK MT1SQ42E4,5942,Materials,12.99,0.00,12.99
Resources,Digital and Customer Services,065303,Design & Print - Design,Supplies and Services,304335,Equipment and Materials,03-Nov-2018,000007981360989,AWS EMEA,7399,ICT supplies etc,0.19,0.00,0.19
Children and Young Peoples Services,Head of Childrens Social Care,085342,9 Cedar Drive Aycliffe,Transport,235057,Public Transport,03-Nov-2018,000007981361077,PRINCE BISHOP SHOPPING,7523,Staff travelling,3.30,0.00,3.30
Children and Young Peoples Services,Head of Childrens Social Care,085342,9 Cedar Drive Aycliffe,Supplies and Services,348037,Subsistence E348,03-Nov-2018,000007981361079,MCDONALDS,5812,Subsistence,8.36,0.00,8.36
Children and Young Peoples Services,Head of Childrens Social Care,085342,9 Cedar Drive Aycliffe,Supplies and Services,328041,Clothing uniforms and laundry E328,03-Nov-2018,000007981361081,NEW LOOK 2036,5621,Clothing uniforms and laundry,43.77,0.00,43.77
Children and Young Peoples Services,Head of Childrens Social Care,085342,9 Cedar Drive Aycliffe,Supplies and Services,328041,Clothing uniforms and laundry E328,03-Nov-2018,000007981361085,SUPERDRY,5631,Clothing uniforms and laundry,41.99,0.00,41.99
Children and Young Peoples Services,Head of Childrens Social Care,085342,9 Cedar Drive Aycliffe,Supplies and Services,328041,Clothing uniforms and laundry E328,03-Nov-2018,000007981361089,TOP SHOP,5691,Clothing uniforms and laundry,5.00,0.00,5.00
Children and Young Peoples Services,Head of Childrens Social Care,085342,9 Cedar Drive Aycliffe,Supplies and Services,304999,Equipment and Materials,03-Nov-2018,000007981361091,SUPERDRUG STORES PLC,5912,Misc equipment tools and materials,11.33,0.00,11.33
Regeneration and Local Services,Economic Development and Housing,030699,Business Growth and Innovation General,Supplies and Services,304403,Equipment and Materials,03-Nov-2018,000007981361121,ADOBE CREATIVE CLOUD,5734,Other consumables,49.94,0.00,49.94
Children and Young Peoples Services,Head of Childrens Social Care,085333,Coxhoe Satelite Home,Supplies and Services,344033,Telephones,03-Nov-2018,000007981361421,E E BROADBAND,4812,Telephones general-all costs,35.75,0.00,35.75
Regeneration and Local Services,Economic Development and Housing,031500,Housing Solutions - Core Team,Employees,040149,Recruitment Instruction and Training,03-Nov-2018,000007981361627,PREMIER INN,3811,Training-all costs,25.00,4.17,20.83
Regeneration and Local Services,Economic Development and Housing,031500,Housing Solutions - Core Team,Employees,040149,Recruitment Instruction and Training,03-Nov-2018,000007981361633,PREMIER INN,3811,Training-all costs,9.50,1.58,7.92
Children and Young Peoples Services,"Head of Early Help, Inclusion and Vulnerable Children",085957,Secure Management,Supplies and Services,384999,Miscellaneous Expenses,03-Nov-2018,000007981361669,AMZN Mktp UK MT02V7KH4,5942,Other expenses,15.80,0.00,15.80
Children and Young Peoples Services,"Head of Early Help, Inclusion and Vulnerable Children",085954,Walworth,Supplies and Services,324117,Provisions E324,03-Nov-2018,000007981361695,TESCO STORES 6329,5411,Catering costs - provisions,113.46,0.00,113.46
Children and Young Peoples Services,Head of Childrens Social Care,085334,West Rainton Satelite Home,Supplies and Services,384999,Miscellaneous Expenses,03-Nov-2018,000007981361877,EMPIRE CINEMAS,7922,Other expenses,35.25,0.00,35.25
Children and Young Peoples Services,Head of Childrens Social Care,085352,Tow Law CU,Supplies and Services,312011,Newspapers books and periodicals E312,03-Nov-2018,000007981361909,AMZN MKTP UK AMAZON.CO,5942,Books-school library,-8.94,0.00,-8.94
Children and Young Peoples Services,Head of Childrens Social Care,085352,Tow Law CU,Supplies and Services,312011,Newspapers books and periodicals E312,03-Nov-2018,000007981361911,AMZN MKTP UK AMAZON.CO,5942,Books-school library,-8.95,0.00,-8.95
Regeneration and Local Services,Economic Development and Housing,031576,B& B - Temp Accom,Supplies and Services,364320,Grants to Voluntary Organisations,03-Nov-2018,000007981361951,PREMIER INN,3811,Accommodation assistance,24.26,0.00,24.26
Regeneration and Local Services,Direct Services,030691,"Catering - Durham Dales Centre			",Supplies and Services,324117,Provisions E324,03-Nov-2018,000007981362385,SCOTMID CO-OP STANHOPE,5411,Catering costs - provisions,2.07,0.00,2.07
Resources,Digital and Customer Services,065461,Business Support,Supplies and Services,304335,Equipment and Materials,04-Nov-2018,000007981360991,BITEABLE PTY LTD,7392,ICT supplies etc,22.37,0.00,22.37
Children and Young Peoples Services,Head of Childrens Social Care,085342,9 Cedar Drive Aycliffe,Supplies and Services,324117,Provisions E324,04-Nov-2018,000007981361093,TESCO STORES 2916,5411,Catering costs - provisions,41.81,0.00,41.81
Regeneration and Local Services,Economic Development and Housing,030699,Business Growth and Innovation General,Supplies and Services,304403,Equipment and Materials,04-Nov-2018,000007981361125,MEETEDGAR MONTHLY,5734,Other consumables,37.80,0.00,37.80
Regeneration and Local Services,Economic Development and Housing,030699,Business Growth and Innovation General,Supplies and Services,312011,Newspapers books and periodicals E312,04-Nov-2018,000007981361135,FASTHOSTS INTERNET,4816,Books-school library,6.34,0.00,6.34
Children and Young Peoples Services,"Head of Early Help, Inclusion and Vulnerable Children",088109,Spennymoor & Shildon 0-19 Community Family Hub,Supplies and Services,304245,Equipment and Materials,04-Nov-2018,000007981361475,B & M RETAIL,5310,Materials,11.47,0.00,11.47
Regeneration and Local Services,Culture & Sport,054813,Gala Theatre - Technical,Supplies and Services,312011,Newspapers books and periodicals E312,04-Nov-2018,000007981361507,AMZN Mktp UK MT6EU3714,5942,Books-school library,80.42,0.00,80.42
Regeneration and Local Services,Culture & Sport,054813,Gala Theatre - Technical,Supplies and Services,312011,Newspapers books and periodicals E312,04-Nov-2018,000007981361509,AMZN Mktp UK MT8FJ5994,5942,Books-school library,87.61,0.00,87.61
Children and Young Peoples Services,Head of Education and Skills,071903,EYDCP-Sustainability EDS,Supplies and Services,312011,Newspapers books and periodicals E312,04-Nov-2018,000007981361619,AMZN Mktp UK MT9GV9764,5942,Books-school library,26.47,0.00,26.47
Children and Young Peoples Services,"Head of Early Help, Inclusion and Vulnerable Children",085957,Secure Management,Supplies and Services,384999,Miscellaneous Expenses,04-Nov-2018,000007981361675,AMZN Mktp UK MT07D17J4,5942,Other expenses,15.96,2.66,13.30
Children and Young Peoples Services,"Head of Early Help, Inclusion and Vulnerable Children",085957,Secure Management,Supplies and Services,384999,Miscellaneous Expenses,04-Nov-2018,000007981361677,AMZN Mktp UK MT57A5754,5942,Other expenses,85.42,14.24,71.18
Children and Young Peoples Services,"Head of Early Help, Inclusion and Vulnerable Children",085957,Secure Management,Supplies and Services,384999,Miscellaneous Expenses,04-Nov-2018,000007981361685,AMZN Mktp UK MT9G75744,5942,Other expenses,28.96,4.83,24.13
Children and Young Peoples Services,"Head of Early Help, Inclusion and Vulnerable Children",085954,Walworth,Supplies and Services,384999,Miscellaneous Expenses,04-Nov-2018,000007981361693,Amazon.co.uk MT3O227C4,5969,Other expenses,20.99,3.50,17.49
Regeneration and Local Services,Economic Development and Housing,031576,B& B - Temp Accom,Supplies and Services,364320,Grants to Voluntary Organisations,04-Nov-2018,000007981361955,PREMIER INN,3811,Accommodation assistance,22.58,0.00,22.58
Children and Young Peoples Services,"Head of Early Help, Inclusion and Vulnerable Children",085955,Auckland,Supplies and Services,304649,Equipment and Materials,04-Nov-2018,000007981362081,AMZN Mktp UK MT87D97K4,5942,Toys,119.99,0.00,119.99
Transformation and Partnerships,Partnerships & Community Engagement Div.,060530,3 Towns AAP,Supplies and Services,332047,Printing Stationery and Gen Off Exps,04-Nov-2018,000007981362335,AMZN Mktp UK MT0TT67J4,5942,Stationery,8.48,0.00,8.48
Adult and Health Services,Head of Adults,055306,Spennymoor Pathways,Supplies and Services,312011,Newspapers books and periodicals E312,04-Nov-2018,000007981362355,AMZN Mktp UK MT2GZ37C4,5942,Books-school library,25.95,0.00,25.95
Regeneration and Local Services,Economic Development and Housing,031500,Housing Solutions - Core Team,Employees,040149,Recruitment Instruction and Training,04-Nov-2018,000007989036679,PREMIER INN,3811,Training-all costs,15.50,2.58,12.92
Regeneration and Local Services,Economic Development and Housing,031576,B& B - Temp Accom,Supplies and Services,364320,Grants to Voluntary Organisations,04-Nov-2018,000007989037141,PREMIER INN,3811,Accommodation assistance,25.00,0.00,25.00
Resources,Digital and Customer Services,065303,Design & Print - Design,Supplies and Services,304335,Equipment and Materials,05-Nov-2018,000007981360993,AWS EMEA,7399,ICT supplies etc,0.01,0.00,0.01
Resources,Digital and Customer Services,065461,Business Support,Supplies and Services,304335,Equipment and Materials,05-Nov-2018,000007981360995,BITEABLE PTY LTD,7392,ICT supplies etc,0.62,0.00,0.62
Regeneration and Local Services,Economic Development and Housing,030699,Business Growth and Innovation General,Supplies and Services,304403,Equipment and Materials,05-Nov-2018,000007981361139,MEETEDGAR MONTHLY,5734,Other consumables,1.04,0.00,1.04
Regeneration and Local Services,Economic Development and Housing,031617,Project Beta Sustainability Fund,Supplies and Services,342033,Computers and Communications,05-Nov-2018,000007989035907,WWW.SECURE-PAYMENT-SER,7372,Computer hardware,20.00,0.00,20.00
Regeneration and Local Services,Economic Development and Housing,030773,CLLD North,Supplies and Services,304259,Equipment and Materials,05-Nov-2018,000007989036003,WWW.DURHAM.GOV.UK,9399,Equipment-purchase and rental,12.00,0.00,12.00
Children and Young Peoples Services,Head of Childrens Social Care,085342,9 Cedar Drive Aycliffe,Supplies and Services,324117,Provisions E324,05-Nov-2018,000007989036125,TESCO STORES 2916,5411,Catering costs - provisions,75.71,0.00,75.71
Regeneration and Local Services,Economic Development and Housing,030699,Business Growth and Innovation General,Supplies and Services,342033,Computers and Communications,05-Nov-2018,000007989036131,SLICKPLAN.COM,7372,Computer hardware,7.70,0.00,7.70
Regeneration and Local Services,Direct Services,021242,Catering - County Hall,Supplies and Services,324117,Provisions E324,05-Nov-2018,000007989036229,WWW.ADELIEFOODS.CO.UK,5499,Catering costs - provisions,216.47,0.00,216.47
Regeneration and Local Services,Direct Services,021242,Catering - County Hall,Supplies and Services,324117,Provisions E324,05-Nov-2018,000007989036233,WWW.ADELIEFOODS.CO.UK,5499,Catering costs - provisions,146.32,0.00,146.32
Regeneration and Local Services,Direct Services,021242,Catering - County Hall,Supplies and Services,324117,Provisions E324,05-Nov-2018,000007989036239,WWW.ADELIEFOODS.CO.UK,5499,Catering costs - provisions,133.07,0.00,133.07
Regeneration and Local Services,Direct Services,021242,Catering - County Hall,Supplies and Services,324117,Provisions E324,05-Nov-2018,000007989036243,WWW.ADELIEFOODS.CO.UK,5499,Catering costs - provisions,106.57,0.00,106.57
Regeneration and Local Services,Direct Services,021242,Catering - County Hall,Supplies and Services,324117,Provisions E324,05-Nov-2018,000007989036251,WWW.ADELIEFOODS.CO.UK,5499,Catering costs - provisions,91.00,0.00,91.00
Regeneration and Local Services,Direct Services,021242,Catering - County Hall,Supplies and Services,324117,Provisions E324,05-Nov-2018,000007989036263,JR HOLLAND FOODSERVICE,5422,Catering costs - provisions,336.19,0.00,336.19
Regeneration and Local Services,Direct Services,021242,Catering - County Hall,Supplies and Services,324117,Provisions E324,05-Nov-2018,000007989036273,JR HOLLAND FOODSERVICE,5422,Catering costs - provisions,13.84,0.00,13.84
Regeneration and Local Services,Economic Development and Housing,030544,Rural Employability - Client Engagement,Supplies and Services,304999,Equipment and Materials,05-Nov-2018,000007989036311,HIGHSPEEDTRAINING.CO.U,8244,Misc equipment tools and materials,24.00,4.00,20.00
Regeneration and Local Services,Culture & Sport,011217,Commercial Management,Supplies and Services,308011,Furniture,05-Nov-2018,000007989036395,DISPLAYS UK LTD,2741,Furniture repair and replacement,125.92,20.99,104.93
Regeneration and Local Services,Economic Development and Housing,031576,B& B - Temp Accom,Supplies and Services,352001,Conference Expenses,05-Nov-2018,000007989036441,HOTEL 52,7011,Conferencesseminars fees etc,340.00,0.00,340.00
Regeneration and Local Services,Economic Development and Housing,031576,B& B - Temp Accom,Supplies and Services,352001,Conference Expenses,05-Nov-2018,000007989036445,HOTEL 52,7011,Conferencesseminars fees etc,195.00,0.00,195.00
Children and Young Peoples Services,Head of Education and Skills,071732,Dean Bank Childcare,Supplies and Services,312011,Newspapers books and periodicals E312,05-Nov-2018,000007989036535,AMZN Mktp UK MT3MJ5U24,5942,Books-school library,15.94,0.00,15.94
Children and Young Peoples Services,Head of Education and Skills,071732,Dean Bank Childcare,Supplies and Services,324117,Provisions E324,05-Nov-2018,000007989036541,ASDA GROCERIES ONLINE,5411,Catering costs - provisions,74.67,0.00,74.67
Children and Young Peoples Services,Head of Education and Skills,071732,Dean Bank Childcare,Supplies and Services,312011,Newspapers books and periodicals E312,05-Nov-2018,000007989036547,THE BOOK PEOPLE,5942,Books-school library,74.93,0.00,74.93
Children and Young Peoples Services,Head of Education and Skills,071732,Dean Bank Childcare,Supplies and Services,324117,Provisions E324,05-Nov-2018,000007989036553,ASDA GROCERIES ONLINE,5411,Catering costs - provisions,66.43,0.00,66.43
Children and Young Peoples Services,Head of Education and Skills,071732,Dean Bank Childcare,Supplies and Services,324117,Provisions E324,05-Nov-2018,000007989036567,CO-OP GROUP 310027,5411,Catering costs - provisions,9.85,0.00,9.85
Children and Young Peoples Services,Head of Education and Skills,071732,Dean Bank Childcare,Supplies and Services,324117,Provisions E324,05-Nov-2018,000007989036569,ASDA GROCERIES ONLINE,5411,Catering costs - provisions,-1.15,0.00,-1.15
Regeneration and Local Services,Culture & Sport,054813,Gala Theatre - Technical,Supplies and Services,312011,Newspapers books and periodicals E312,05-Nov-2018,000007989036575,AMZN Mktp UK MT0JP79P4,5942,Books-school library,22.50,0.00,22.50
Regeneration and Local Services,Culture & Sport,054813,Gala Theatre - Technical,Supplies and Services,328041,Clothing uniforms and laundry E328,05-Nov-2018,000007989036585,NOCHEX. LARP INN,5691,Clothing uniforms and laundry,58.98,0.00,58.98
Regeneration and Local Services,Culture & Sport,054813,Gala Theatre - Technical,Supplies and Services,304221,Equipment and Materials,05-Nov-2018,000007989036589,B & Q 1343,5211,Direct materials,37.09,0.00,37.09
Regeneration and Local Services,Culture & Sport,054813,Gala Theatre - Technical,Supplies and Services,304403,Equipment and Materials,05-Nov-2018,000007989036593,CARD FACTORY,5947,Other consumables,5.99,0.00,5.99
Children and Young Peoples Services,"Head of Early Help, Inclusion and Vulnerable Children",085957,Secure Management,Supplies and Services,384999,Miscellaneous Expenses,05-Nov-2018,000007989036703,AMZN Mktp UK MT0EA09W4,5942,Other expenses,11.96,1.99,9.97
Children and Young Peoples Services,"Head of Early Help, Inclusion and Vulnerable Children",085957,Secure Management,Supplies and Services,384999,Miscellaneous Expenses,05-Nov-2018,000007989036713,AMZN Mktp UK MT58Y79Q4,5942,Other expenses,10.67,0.00,10.67
Children and Young Peoples Services,"Head of Early Help, Inclusion and Vulnerable Children",085957,Secure Management,Supplies and Services,332047,Printing Stationery and Gen Off Exps,05-Nov-2018,000007989036717,WWW.THEWORKS.CO.UK,5310,Stationery,42.00,0.00,42.00
Regeneration and Local Services,Culture & Sport,054813,Gala Theatre - Technical,Supplies and Services,324117,Provisions E324,05-Nov-2018,000007989036723,TESCO STORES 6134,5411,Catering costs - provisions,101.21,0.00,101.21
Regeneration and Local Services,Culture & Sport,011060,Hardwick Park Catering,Supplies and Services,324117,Provisions E324,05-Nov-2018,000007989036737,JR HOLLAND FOODSERVICE,5422,Catering costs - provisions,22.65,0.00,22.65
Regeneration and Local Services,Culture & Sport,054819,Gala Theatre - Theatre,Supplies and Services,308011,Furniture,05-Nov-2018,000007989036809,IKEA LIMITED,5712,Furniture repair and replacement,117.50,0.00,117.50
Regeneration and Local Services,Economic Development and Housing,030757,Interserve/Skills Support for the Unemployed,Employees,040149,Recruitment Instruction and Training,05-Nov-2018,000007989036833,WWW.CSKILLS.ORG,8249,Training-all costs,36.00,0.00,36.00
Regeneration and Local Services,Economic Development and Housing,030757,Interserve/Skills Support for the Unemployed,Employees,040149,Recruitment Instruction and Training,05-Nov-2018,000007989036837,WWW.CSKILLS.ORG,8249,Training-all costs,36.00,0.00,36.00
Children and Young Peoples Services,"Head of Early Help, Inclusion and Vulnerable Children",085957,Secure Management,Supplies and Services,324117,Provisions E324,05-Nov-2018,000007989036851,TESCO STORES 6329,5411,Catering costs - provisions,202.29,0.00,202.29
Regeneration and Local Services,Direct Services,010525,Catering - Green Lane,Supplies and Services,324117,Provisions E324,05-Nov-2018,000007989036869,WWW.ADELIEFOODS.CO.UK,5499,Catering costs - provisions,33.82,0.00,33.82
Regeneration and Local Services,Direct Services,010525,Catering - Green Lane,Supplies and Services,324117,Provisions E324,05-Nov-2018,000007989036875,WWW.ADELIEFOODS.CO.UK,5499,Catering costs - provisions,32.04,0.00,32.04
Children and Young Peoples Services,Head of Childrens Social Care,085333,Coxhoe Satelite Home,Supplies and Services,324117,Provisions E324,05-Nov-2018,000007989037051,TESCO STORES 2371,5411,Catering costs - provisions,89.16,0.00,89.16
Resources,Resources Management,069000,Resources Management,Supplies and Services,324117,Provisions E324,05-Nov-2018,000007989037059,CO-OP GROUP 010503,5411,Catering costs - provisions,14.90,0.00,14.90
Regeneration and Local Services,Direct Services,010367,C&G - South Grounds Maintenance,Supplies and Services,304221,Equipment and Materials,05-Nov-2018,000007989037149,SCREWFIX BISHOP AUCKLA,5211,Direct materials,16.76,0.00,16.76
Regeneration and Local Services,Economic Development and Housing,030554,International Relations,Supplies and Services,384409,Miscellaneous Expenses,05-Nov-2018,000007989037171,AMZN Mktp UK MT2T68UP4,5942,Educational visits,22.40,0.00,22.40
Children and Young Peoples Services,Head of Education and Skills,070264,EDC Premises,Supplies and Services,324117,Provisions E324,05-Nov-2018,000007989037219,ALDI 59 774,5411,Catering costs - provisions,5.45,0.00,5.45
Resources,Digital and Customer Services,065335,School Services - Implementations,Supplies and Services,304639,Equipment and Materials,05-Nov-2018,000007989037245,AMZN Mktp UK MT5ZR4IQ4,5942,Technicians-supplies,4.29,0.72,3.57
Children and Young Peoples Services,"Head of Early Help, Inclusion and Vulnerable Children",085957,Secure Management,Supplies and Services,304245,Equipment and Materials,05-Nov-2018,000007989037275,AMZN Mktp UK MT91L6U14,5942,Materials,35.39,0.00,35.39
Children and Young Peoples Services,Childrens Services Operational Support,052986,CYPS - Locality and Operational Support,Supplies and Services,304259,Equipment and Materials,05-Nov-2018,000007989037321,STOCKTON BOROUGH COUNC,9399,Equipment-purchase and rental,17.00,0.00,17.00
Regeneration and Local Services,Economic Development and Housing,030554,International Relations,Supplies and Services,324117,Provisions E324,05-Nov-2018,000007989037523,MARKS&SPENCER PLC,5411,Catering costs - provisions,9.96,0.00,9.96
Transformation and Partnerships,Communications Management,060270,Communications and Marketing,Supplies and Services,332047,Printing Stationery and Gen Off Exps,05-Nov-2018,000007989037651,AMZN Mktp UK MT6722UY4,5942,Stationery,34.95,5.83,29.12
Regeneration and Local Services,Spatial Policy Planning Assets & Environment,031070,Landscape,Supplies and Services,352001,Conference Expenses,05-Nov-2018,000007989037659,SUPERWOOD - H (HELM),7922,Conferencesseminars fees etc,237.60,0.00,237.60
Regeneration and Local Services,Culture & Sport,054812,Gala Theatre - Catering etc,Supplies and Services,324117,Provisions E324,05-Nov-2018,000007993328289,BATLEYS PERTH,5300,Catering costs - provisions,149.58,24.93,124.65
Regeneration and Local Services,Culture & Sport,054812,Gala Theatre - Catering etc,Supplies and Services,324117,Provisions E324,05-Nov-2018,000007993328289 - 1,BATLEYS PERTH,5300,Catering costs - provisions,147.69,,147.69
Regeneration and Local Services,Culture & Sport,054813,Gala Theatre - Technical,Supplies and Services,384999,Miscellaneous Expenses,05-Nov-2018,000007993328517,PAYPAL CELTICWEBME,5970,Other expenses,175.18,0.00,175.18
Regeneration and Local Services,Culture & Sport,011060,Hardwick Park Catering,Supplies and Services,324117,Provisions E324,05-Nov-2018,000007993328623,BATLEYS PERTH,5300,Catering costs - provisions,-37.77,0.00,-37.77
Regeneration and Local Services,Culture & Sport,011060,Hardwick Park Catering,Supplies and Services,324117,Provisions E324,05-Nov-2018,000007993328627,BATLEYS PERTH,5300,Catering costs - provisions,-3.10,0.00,-3.10
Regeneration and Local Services,Culture & Sport,011060,Hardwick Park Catering,Supplies and Services,324117,Provisions E324,05-Nov-2018,000007993328633,BATLEYS PERTH,5300,Catering costs - provisions,-3.10,0.00,-3.10
Regeneration and Local Services,Direct Services,020041,Bldg Serv - Business Development - General,Supplies and Services,384999,Miscellaneous Expenses,05-Nov-2018,000007993328779,ISO/CS,2741,Other expenses,120.74,0.00,120.74
Adult and Health Services,Head of Adults,055643,Hawthorn House LD Respite Unit,Supplies and Services,324117,Provisions E324,05-Nov-2018,000007993328901,BATLEYS PERTH,5300,Catering costs - provisions,-2.64,0.00,-2.64
Children and Young Peoples Services,Head of Childrens Social Care,085614,Families First Durham West,Transport,235057,Public Transport,05-Nov-2018,000007993329231,Trainline,4112,Staff travelling,128.12,0.00,128.12
Regeneration and Local Services,Direct Services,030691,"Catering - Durham Dales Centre			",Supplies and Services,324117,Provisions E324,05-Nov-2018,000008134120629,BATLEYS PERTH,5300,Catering costs - provisions,22.80,3.80,19.00
Regeneration and Local Services,Direct Services,030691,"Catering - Durham Dales Centre			",Supplies and Services,324117,Provisions E324,05-Nov-2018,000008134120629 - 1,BATLEYS PERTH,5300,Catering costs - provisions,66.13,,66.13
Regeneration and Local Services,Economic Development and Housing,030699,Business Growth and Innovation General,Supplies and Services,342033,Computers and Communications,06-Nov-2018,000007989036137,SLICKPLAN.COM,7372,Computer hardware,0.21,0.00,0.21
Children and Young Peoples Services,Head of Education and Skills,071732,Dean Bank Childcare,Supplies and Services,312011,Newspapers books and periodicals E312,06-Nov-2018,000007989036559,AMZN Mktp UK MT1GB0IC4,5942,Books-school library,11.98,0.00,11.98
Regeneration and Local Services,Culture & Sport,054813,Gala Theatre - Technical,Supplies and Services,312011,Newspapers books and periodicals E312,06-Nov-2018,000007989036581,AMZN Mktp UK MT4B13ID4,5942,Books-school library,20.04,0.00,20.04
Regeneration and Local Services,Economic Development and Housing,030554,International Relations,Supplies and Services,304999,Equipment and Materials,06-Nov-2018,000007993328079,Namco Uk Ltd,7929,Misc equipment tools and materials,234.70,0.00,234.70
Children and Young Peoples Services,Head of Education and Skills,071801,Selby Cottage Childcare Centre,Supplies and Services,312011,Newspapers books and periodicals E312,06-Nov-2018,000007993328085,AMZN Mktp UK MT9PQ2R74,5942,Books-school library,220.89,0.00,220.89
Regeneration and Local Services,Culture & Sport,054775,Durham Town Hall,Supplies and Services,304335,Equipment and Materials,06-Nov-2018,000007993328091,WWW.LUMINATI.CO.UK,8244,ICT supplies etc,869.80,144.97,724.83
Regeneration and Local Services,Economic Development and Housing,031576,B& B - Temp Accom,Supplies and Services,364320,Grants to Voluntary Organisations,06-Nov-2018,000007993328095,HOTEL 52,7011,Accommodation assistance,490.00,81.67,408.33
Regeneration and Local Services,Economic Development and Housing,030773,CLLD North,Supplies and Services,328041,Clothing uniforms and laundry E328,06-Nov-2018,000007993328119,SHOE ZONE,5661,Clothing uniforms and laundry,25.04,0.00,25.04
Regeneration and Local Services,Economic Development and Housing,030773,CLLD North,Supplies and Services,328041,Clothing uniforms and laundry E328,06-Nov-2018,000007993328123,PEACOCK STORES LTD,5331,Clothing uniforms and laundry,26.05,0.00,26.05
Regeneration and Local Services,Economic Development and Housing,030773,CLLD North,Supplies and Services,328041,Clothing uniforms and laundry E328,06-Nov-2018,000007993328127,M&CO.,5621,Clothing uniforms and laundry,36.00,0.00,36.00
Adult and Health Services,Head of Adults,055302,Durham Pathways,Supplies and Services,324117,Provisions E324,06-Nov-2018,000007993328165,SAINSBURYS SACAT 0776,5411,Catering costs - provisions,23.25,0.00,23.25
Adult and Health Services,Head of Adults,055302,Durham Pathways,Supplies and Services,324117,Provisions E324,06-Nov-2018,000007993328171,ASDA STORES LTD 4313,5411,Catering costs - provisions,2.50,0.00,2.50
Regeneration and Local Services,Direct Services,021242,Catering - County Hall,Supplies and Services,324117,Provisions E324,06-Nov-2018,000007993328263,JR HOLLAND FOODSERVICE,5422,Catering costs - provisions,43.73,0.00,43.73
Regeneration and Local Services,Culture & Sport,054812,Gala Theatre - Catering etc,Supplies and Services,324117,Provisions E324,06-Nov-2018,000007993328283,JR HOLLAND FOODSERVICE,5422,Catering costs - provisions,24.82,0.00,24.82
Regeneration and Local Services,Direct Services,021242,Catering - County Hall,Supplies and Services,324117,Provisions E324,06-Nov-2018,000007993328307,ASDA SUPERSTORE 4987,5411,Catering costs - provisions,51.15,0.00,51.15
Regeneration and Local Services,Direct Services,021242,Catering - County Hall,Supplies and Services,328041,Clothing uniforms and laundry E328,06-Nov-2018,000007993328311,B & M RETAIL,5310,Clothing uniforms and laundry,2.49,0.00,2.49
Regeneration and Local Services,Direct Services,010900,Fleet - Meadowfield Fleet,Transport,215013,Running Costs of Vehicles,06-Nov-2018,000007993328345,DVLA VEHICLE TAX,9399,Vehicle Excise Duty (VED),167.50,0.00,167.50
Regeneration and Local Services,Direct Services,010900,Fleet - Meadowfield Fleet,Transport,215013,Running Costs of Vehicles,06-Nov-2018,000007993328351,DVLA VEHICLE TAX,9399,Vehicle Excise Duty (VED),352.50,0.00,352.50
Regeneration and Local Services,Direct Services,010864,Fleet - Hackworth Road Fleet,Transport,215013,Running Costs of Vehicles,06-Nov-2018,000007993328355,DVLA VEHICLE TAX,9399,Vehicle Excise Duty (VED),252.50,0.00,252.50
Regeneration and Local Services,Direct Services,010900,Fleet - Meadowfield Fleet,Transport,215013,Running Costs of Vehicles,06-Nov-2018,000007993328361,DVLA VEHICLE TAX,9399,Vehicle Excise Duty (VED),167.50,0.00,167.50
Regeneration and Local Services,Direct Services,010900,Fleet - Meadowfield Fleet,Transport,215013,Running Costs of Vehicles,06-Nov-2018,000007993328363,DVLA VEHICLE TAX,9399,Vehicle Excise Duty (VED),32.50,0.00,32.50
Regeneration and Local Services,Direct Services,010551,Fleet - Chilton Fleet,Transport,215013,Running Costs of Vehicles,06-Nov-2018,000007993328367,DVLA VEHICLE TAX,9399,Vehicle Excise Duty (VED),252.50,0.00,252.50
Regeneration and Local Services,Direct Services,010551,Fleet - Chilton Fleet,Transport,215013,Running Costs of Vehicles,06-Nov-2018,000007993328371,DVLA VEHICLE TAX,9399,Vehicle Excise Duty (VED),252.50,0.00,252.50
Regeneration and Local Services,Direct Services,010551,Fleet - Chilton Fleet,Transport,215013,Running Costs of Vehicles,06-Nov-2018,000007993328377,DVLA VEHICLE TAX,9399,Vehicle Excise Duty (VED),252.50,0.00,252.50
Regeneration and Local Services,Direct Services,010864,Fleet - Hackworth Road Fleet,Transport,215013,Running Costs of Vehicles,06-Nov-2018,000007993328383,DVLA VEHICLE TAX,9399,Vehicle Excise Duty (VED),652.50,0.00,652.50
Regeneration and Local Services,Direct Services,010900,Fleet - Meadowfield Fleet,Transport,215013,Running Costs of Vehicles,06-Nov-2018,000007993328387,DVLA VEHICLE TAX,9399,Vehicle Excise Duty (VED),252.50,0.00,252.50
Regeneration and Local Services,Direct Services,010551,Fleet - Chilton Fleet,Transport,215013,Running Costs of Vehicles,06-Nov-2018,000007993328391,DVLA VEHICLE TAX,9399,Vehicle Excise Duty (VED),252.50,0.00,252.50
Regeneration and Local Services,Direct Services,010900,Fleet - Meadowfield Fleet,Transport,215013,Running Costs of Vehicles,06-Nov-2018,000007993328393,DVLA VEHICLE TAX,9399,Vehicle Excise Duty (VED),252.50,0.00,252.50
Regeneration and Local Services,Direct Services,010864,Fleet - Hackworth Road Fleet,Transport,215013,Running Costs of Vehicles,06-Nov-2018,000007993328397,DVLA VEHICLE TAX,9399,Vehicle Excise Duty (VED),252.50,0.00,252.50
Regeneration and Local Services,Direct Services,010900,Fleet - Meadowfield Fleet,Transport,215013,Running Costs of Vehicles,06-Nov-2018,000007993328401,DVLA VEHICLE TAX,9399,Vehicle Excise Duty (VED),252.50,0.00,252.50
Regeneration and Local Services,Direct Services,010551,Fleet - Chilton Fleet,Transport,215013,Running Costs of Vehicles,06-Nov-2018,000007993328407,DVLA VEHICLE TAX,9399,Vehicle Excise Duty (VED),252.50,0.00,252.50
Regeneration and Local Services,Direct Services,010900,Fleet - Meadowfield Fleet,Transport,215013,Running Costs of Vehicles,06-Nov-2018,000007993328411,DVLA VEHICLE TAX,9399,Vehicle Excise Duty (VED),252.50,0.00,252.50
Regeneration and Local Services,Direct Services,010864,Fleet - Hackworth Road Fleet,Transport,215013,Running Costs of Vehicles,06-Nov-2018,000007993328417,DVLA VEHICLE TAX,9399,Vehicle Excise Duty (VED),252.50,0.00,252.50
Regeneration and Local Services,Direct Services,010900,Fleet - Meadowfield Fleet,Transport,215013,Running Costs of Vehicles,06-Nov-2018,000007993328423,DVLA VEHICLE TAX,9399,Vehicle Excise Duty (VED),252.50,0.00,252.50
Regeneration and Local Services,Direct Services,010900,Fleet - Meadowfield Fleet,Transport,215013,Running Costs of Vehicles,06-Nov-2018,000007993328429,DVLA VEHICLE TAX,9399,Vehicle Excise Duty (VED),252.50,0.00,252.50
Regeneration and Local Services,Direct Services,010900,Fleet - Meadowfield Fleet,Transport,215013,Running Costs of Vehicles,06-Nov-2018,000007993328435,DVLA VEHICLE TAX,9399,Vehicle Excise Duty (VED),652.50,0.00,652.50
Regeneration and Local Services,Direct Services,010551,Fleet - Chilton Fleet,Transport,215013,Running Costs of Vehicles,06-Nov-2018,000007993328441,DVLA VEHICLE TAX,9399,Vehicle Excise Duty (VED),252.50,0.00,252.50
Regeneration and Local Services,Direct Services,010864,Fleet - Hackworth Road Fleet,Transport,215013,Running Costs of Vehicles,06-Nov-2018,000007993328445,DVLA VEHICLE TAX,9399,Vehicle Excise Duty (VED),252.50,0.00,252.50
Regeneration and Local Services,Direct Services,010900,Fleet - Meadowfield Fleet,Transport,215013,Running Costs of Vehicles,06-Nov-2018,000007993328449,DVLA VEHICLE TAX,9399,Vehicle Excise Duty (VED),252.50,0.00,252.50
Regeneration and Local Services,Direct Services,010864,Fleet - Hackworth Road Fleet,Transport,215013,Running Costs of Vehicles,06-Nov-2018,000007993328455,DVLA VEHICLE TAX,9399,Vehicle Excise Duty (VED),252.50,0.00,252.50
Regeneration and Local Services,Direct Services,010864,Fleet - Hackworth Road Fleet,Transport,215013,Running Costs of Vehicles,06-Nov-2018,000007993328459,DVLA VEHICLE TAX,9399,Vehicle Excise Duty (VED),652.50,0.00,652.50
Regeneration and Local Services,Direct Services,010900,Fleet - Meadowfield Fleet,Transport,215013,Running Costs of Vehicles,06-Nov-2018,000007993328465,DVLA VEHICLE TAX,9399,Vehicle Excise Duty (VED),252.50,0.00,252.50
Regeneration and Local Services,Direct Services,010864,Fleet - Hackworth Road Fleet,Transport,215013,Running Costs of Vehicles,06-Nov-2018,000007993328475,DVLA VEHICLE TAX,9399,Vehicle Excise Duty (VED),167.50,0.00,167.50
Regeneration and Local Services,Direct Services,010900,Fleet - Meadowfield Fleet,Transport,215013,Running Costs of Vehicles,06-Nov-2018,000007993328481,DVLA VEHICLE TAX,9399,Vehicle Excise Duty (VED),252.50,0.00,252.50
Children and Young Peoples Services,Head of Education and Skills,071732,Dean Bank Childcare,Supplies and Services,312011,Newspapers books and periodicals E312,06-Nov-2018,000007993328495,AMZN Mktp UK MT0SH0I04,5942,Books-school library,36.81,0.00,36.81
Children and Young Peoples Services,Head of Education and Skills,071732,Dean Bank Childcare,Supplies and Services,312011,Newspapers books and periodicals E312,06-Nov-2018,000007993328501,Amazon.co.uk MT3AJ0R94,5969,Books-school library,17.48,0.00,17.48
Children and Young Peoples Services,Head of Education and Skills,071732,Dean Bank Childcare,Supplies and Services,328041,Clothing uniforms and laundry E328,06-Nov-2018,000007993328507,B & M RETAIL,5310,Clothing uniforms and laundry,16.79,0.00,16.79
Children and Young Peoples Services,Head of Education and Skills,071732,Dean Bank Childcare,Supplies and Services,328041,Clothing uniforms and laundry E328,06-Nov-2018,000007993328509,ORIGINAL FACTORY S,5311,Clothing uniforms and laundry,31.00,0.00,31.00
Regeneration and Local Services,Culture & Sport,054813,Gala Theatre - Technical,Supplies and Services,312011,Newspapers books and periodicals E312,06-Nov-2018,000007993328521,AMZN Mktp UK MT0RW0IZ4,5942,Books-school library,63.72,0.00,63.72
Children and Young Peoples Services,"Head of Early Help, Inclusion and Vulnerable Children",085957,Secure Management,Supplies and Services,384999,Miscellaneous Expenses,06-Nov-2018,000007993328591,AMZN Mktp UK MT0PV2IH4,5942,Other expenses,47.25,0.00,47.25
Children and Young Peoples Services,"Head of Early Help, Inclusion and Vulnerable Children",085954,Walworth,Supplies and Services,384999,Miscellaneous Expenses,06-Nov-2018,000007993328597,AMZN Mktp UK MT8DQ5R94,5942,Other expenses,5.77,0.00,5.77
Regeneration and Local Services,Culture & Sport,054813,Gala Theatre - Technical,Supplies and Services,324117,Provisions E324,06-Nov-2018,000007993328605,TESCO STORES 6134,5411,Catering costs - provisions,29.29,0.00,29.29
Regeneration and Local Services,Culture & Sport,026591,Hardwick Park,Supplies and Services,304259,Equipment and Materials,06-Nov-2018,000007993328615,SCREWFIX BISHOP AUCKLA,5211,Equipment-purchase and rental,29.76,4.96,24.80
Regeneration and Local Services,Culture & Sport,011060,Hardwick Park Catering,Supplies and Services,324117,Provisions E324,06-Nov-2018,000007993328619,JR HOLLAND FOODSERVICE,5422,Catering costs - provisions,19.81,0.00,19.81
Regeneration and Local Services,Direct Services,021234,Catering - Locomotion,Supplies and Services,324117,Provisions E324,06-Nov-2018,000007993328671,JR HOLLAND FOODSERVICE,5422,Catering costs - provisions,-13.82,0.00,-13.82
Transformation and Partnerships,Communications Management,060131,County Records,Employees,040149,Recruitment Instruction and Training,06-Nov-2018,000007993328697,WWW.GOV.UK,8999,Training-all costs,10.00,0.00,10.00
Regeneration and Local Services,Economic Development and Housing,030771,Durham Advance Flexible Fund,Supplies and Services,304259,Equipment and Materials,06-Nov-2018,000007993328761,GRO HM PASSPORT OFFICE,9399,Equipment-purchase and rental,9.25,0.00,9.25
Children and Young Peoples Services,Head of Childrens Social Care,085334,West Rainton Satelite Home,Supplies and Services,324117,Provisions E324,06-Nov-2018,000007993328765,TESCO STORES 2371,5411,Catering costs - provisions,126.44,0.00,126.44
Children and Young Peoples Services,Head of Childrens Social Care,085334,West Rainton Satelite Home,Supplies and Services,304221,Equipment and Materials,06-Nov-2018,000007993328769,B & Q 1343,5211,Direct materials,-58.29,0.00,-58.29
Regeneration and Local Services,Direct Services,011007,Civic Centre Crook,Supplies and Services,304259,Equipment and Materials,06-Nov-2018,000007993328773,AMZN Mktp UK MT9I74IV4,5942,Equipment-purchase and rental,127.99,0.00,127.99
Regeneration and Local Services,Direct Services,010814,Bldg Serv - R&M General,Supplies and Services,304221,Equipment and Materials,06-Nov-2018,000007993328785,WWW.WHOLESALEGLASSCOMP,7399,Direct materials,130.51,21.75,108.76
Regeneration and Local Services,Direct Services,010367,C&G - South Grounds Maintenance,Supplies and Services,384999,Miscellaneous Expenses,06-Nov-2018,000007993328821,WWW.GUSTHARTS.COM,5046,Other expenses,281.30,46.88,234.42
Regeneration and Local Services,Direct Services,030691,"Catering - Durham Dales Centre			",Supplies and Services,324117,Provisions E324,06-Nov-2018,000007993328865,JR HOLLAND FOODSERVICE,5422,Catering costs - provisions,160.63,0.00,160.63
Regeneration and Local Services,Direct Services,030691,"Catering - Durham Dales Centre			",Supplies and Services,324117,Provisions E324,06-Nov-2018,000007993328873,JR HOLLAND FOODSERVICE,5422,Catering costs - provisions,156.21,0.00,156.21
Regeneration and Local Services,Direct Services,030691,"Catering - Durham Dales Centre			",Supplies and Services,324117,Provisions E324,06-Nov-2018,000007993328875,JR HOLLAND FOODSERVICE,5422,Catering costs - provisions,80.40,0.00,80.40
Adult and Health Services,Head of Adults,055643,Hawthorn House LD Respite Unit,Supplies and Services,324117,Provisions E324,06-Nov-2018,000007993328889,JR HOLLAND FOODSERVICE,5422,Catering costs - provisions,22.12,0.00,22.12
Adult and Health Services,Head of Adults,055643,Hawthorn House LD Respite Unit,Supplies and Services,324117,Provisions E324,06-Nov-2018,000007993328897,JR HOLLAND FOODSERVICE,5422,Catering costs - provisions,14.01,0.00,14.01
Children and Young Peoples Services,"Head of Early Help, Inclusion and Vulnerable Children",085957,Secure Management,Supplies and Services,324117,Provisions E324,06-Nov-2018,000007993328963,TESCO DELIVERY SAVER2,5968,Catering costs - provisions,6.99,0.00,6.99
Children and Young Peoples Services,"Head of Early Help, Inclusion and Vulnerable Children",085965,Barnard,Supplies and Services,328041,Clothing uniforms and laundry E328,06-Nov-2018,000007993328965,FOOTASYLUM PLC,5941,Clothing uniforms and laundry,-40.49,0.00,-40.49
Regeneration and Local Services,Culture & Sport,054235,Bishop Auckland Town Hall Cafe,Supplies and Services,324117,Provisions E324,06-Nov-2018,000007993329003,JR HOLLAND FOODSERVICE,5422,Catering costs - provisions,39.24,0.00,39.24
Resources,Legal & Democratic Services,067910,Democratic Representation,Supplies and Services,332047,Printing Stationery and Gen Off Exps,06-Nov-2018,000007993329135,AMZN Mktp UK MT6381IN4,5942,Stationery,72.00,12.00,60.00
Resources,Legal & Democratic Services,067910,Democratic Representation,Supplies and Services,332047,Printing Stationery and Gen Off Exps,06-Nov-2018,000007993329137,AMZN Mktp UK MT1IH4I54,5942,Stationery,25.99,4.33,21.66
Resources,Legal & Democratic Services,067910,Democratic Representation,Supplies and Services,332047,Printing Stationery and Gen Off Exps,06-Nov-2018,000007993329139,AMZN Mktp UK MT3B22RB4,5942,Stationery,119.94,0.00,119.94
Resources,Legal & Democratic Services,067910,Democratic Representation,Supplies and Services,332047,Printing Stationery and Gen Off Exps,06-Nov-2018,000007993329143,AMZN Mktp UK MT3RT5IS4,5942,Stationery,21.36,3.56,17.80
Adult and Health Services,Head of Adults,055309,Peterlee Pathways,Supplies and Services,324117,Provisions E324,06-Nov-2018,000007993329173,ASDA STORES LTD,5411,Catering costs - provisions,14.89,0.00,14.89
Regeneration and Local Services,Culture & Sport,011230,Operations Locality 2,Supplies and Services,328041,Clothing uniforms and laundry E328,06-Nov-2018,000007993329193,ORIGINAL FACTORY S,5311,Clothing uniforms and laundry,40.00,0.00,40.00
Regeneration and Local Services,Culture & Sport,054813,Gala Theatre - Technical,Supplies and Services,324117,Provisions E324,06-Nov-2018,000007998602491,WWW.PARTYPACKS.CO.UK,5399,Catering costs - provisions,98.75,0.00,98.75
Regeneration and Local Services,Economic Development and Housing,031500,Housing Solutions - Core Team,Employees,040149,Recruitment Instruction and Training,06-Nov-2018,000007998602527,PREMIER INN,3811,Training-all costs,24.72,4.12,20.60
Regeneration and Local Services,Economic Development and Housing,030554,International Relations,Transport,235057,Public Transport,06-Nov-2018,000007998602779,Trainline,4112,Staff travelling,231.14,0.00,231.14
Regeneration and Local Services,Economic Development and Housing,031500,Housing Solutions - Core Team,Employees,040149,Recruitment Instruction and Training,06-Nov-2018,000007998603065,PREMIER INN,3811,Training-all costs,254.00,42.33,211.67
Regeneration and Local Services,Direct Services,021242,Catering - County Hall,Supplies and Services,324117,Provisions E324,06-Nov-2018,000008010822601,BATLEYS PERTH,5300,Catering costs - provisions,363.42,60.57,302.85
Regeneration and Local Services,Direct Services,021242,Catering - County Hall,Supplies and Services,324117,Provisions E324,06-Nov-2018,000008010822601 - 1,BATLEYS PERTH,5300,Catering costs - provisions,240.12,,240.12
Regeneration and Local Services,Culture & Sport,011060,Hardwick Park Catering,Supplies and Services,324117,Provisions E324,06-Nov-2018,000008010823155,BATLEYS PERTH,5300,Catering costs - provisions,122.58,20.43,102.15
Regeneration and Local Services,Culture & Sport,011060,Hardwick Park Catering,Supplies and Services,324117,Provisions E324,06-Nov-2018,000008010823155 - 1,BATLEYS PERTH,5300,Catering costs - provisions,149.55,,149.55
Regeneration and Local Services,Direct Services,021324,Catering - Meadowfield,Supplies and Services,324117,Provisions E324,06-Nov-2018,000008010823743,BATLEYS PERTH,5300,Catering costs - provisions,58.56,9.76,48.80
Regeneration and Local Services,Direct Services,021324,Catering - Meadowfield,Supplies and Services,324117,Provisions E324,06-Nov-2018,000008010823743 - 1,BATLEYS PERTH,5300,Catering costs - provisions,134.39,,134.39
Regeneration and Local Services,Culture & Sport,054813,Gala Theatre - Technical,Supplies and Services,312011,Newspapers books and periodicals E312,07-Nov-2018,000007993328525,AMZN Mktp UK MT9227RZ4,5942,Books-school library,41.99,0.00,41.99
Children and Young Peoples Services,"Head of Early Help, Inclusion and Vulnerable Children",085965,Barnard,Supplies and Services,328041,Clothing uniforms and laundry E328,07-Nov-2018,000007993328599,AMZN Mktp UK MT8S71RC4,5942,Clothing uniforms and laundry,37.98,0.00,37.98
Regeneration and Local Services,Direct Services,020041,Bldg Serv - Business Development - General,Supplies and Services,384999,Miscellaneous Expenses,07-Nov-2018,000007993328787,ISO/CS,2741,Other expenses,3.32,0.00,3.32
Adult and Health Services,Head of Adults,052765,Deprivation of Liberty,Supplies and Services,304335,Equipment and Materials,07-Nov-2018,000007998602187,Amazon.co.uk MT5LE0Y24,5969,ICT supplies etc,44.95,7.49,37.46
Resources,Finance & Transactional Services,065166,Finance - Post Entry Training,Supplies and Services,372009,Subscriptions E372,07-Nov-2018,000007998602191,CIPD MEMBERSHIP RENEWA,8999,Subscriptions 372009,135.00,0.00,135.00
Children and Young Peoples Services,Head of Childrens Social Care,085342,9 Cedar Drive Aycliffe,Supplies and Services,348037,Subsistence E348,07-Nov-2018,000007998602221,COSTA @ NEXT 43041645,5814,Subsistence,8.60,0.00,8.60
Children and Young Peoples Services,Head of Childrens Social Care,085342,9 Cedar Drive Aycliffe,Supplies and Services,324117,Provisions E324,07-Nov-2018,000007998602223,ASDA STORES 4320,5411,Catering costs - provisions,5.00,0.00,5.00
Children and Young Peoples Services,Head of Childrens Social Care,085342,9 Cedar Drive Aycliffe,Supplies and Services,324117,Provisions E324,07-Nov-2018,000007998602227,TESCO STORES 2916,5411,Catering costs - provisions,26.50,0.00,26.50
Children and Young Peoples Services,Head of Childrens Social Care,085342,9 Cedar Drive Aycliffe,Supplies and Services,328041,Clothing uniforms and laundry E328,07-Nov-2018,000007998602231,NEXT 0513 STOCKTON TEE,5651,Clothing uniforms and laundry,18.05,0.00,18.05
Children and Young Peoples Services,Head of Childrens Social Care,085342,9 Cedar Drive Aycliffe,Supplies and Services,328041,Clothing uniforms and laundry E328,07-Nov-2018,000007998602235,FOOTASYLUM PLC,5691,Clothing uniforms and laundry,67.49,0.00,67.49
Regeneration and Local Services,Economic Development and Housing,030699,Business Growth and Innovation General,Supplies and Services,304999,Equipment and Materials,07-Nov-2018,000007998602237,LINKEDIN-342 4828166,5968,Misc equipment tools and materials,16.38,0.00,16.38
Children and Young Peoples Services,Head of Childrens Social Care,085342,9 Cedar Drive Aycliffe,Employees,040149,Recruitment Instruction and Training,07-Nov-2018,000007998602241,PARENTPAY E-COM R,8220,Training-all costs,60.00,0.00,60.00
Children and Young Peoples Services,Head of Childrens Social Care,085333,Coxhoe Satelite Home,Supplies and Services,328041,Clothing uniforms and laundry E328,07-Nov-2018,000007998602269,SHOE ZONE 1860,5661,Clothing uniforms and laundry,14.99,0.00,14.99
Children and Young Peoples Services,Head of Childrens Social Care,085333,Coxhoe Satelite Home,Supplies and Services,312011,Newspapers books and periodicals E312,07-Nov-2018,000007998602273,HOME BARGAINS,5251,Books-school library,3.95,0.00,3.95
Children and Young Peoples Services,Head of Childrens Social Care,085333,Coxhoe Satelite Home,Supplies and Services,328041,Clothing uniforms and laundry E328,07-Nov-2018,000007998602275,B & M RETAIL,5310,Clothing uniforms and laundry,5.99,0.00,5.99
Children and Young Peoples Services,Head of Childrens Social Care,085333,Coxhoe Satelite Home,Supplies and Services,328041,Clothing uniforms and laundry E328,07-Nov-2018,000007998602279,B & M RETAIL,5310,Clothing uniforms and laundry,16.83,0.00,16.83
Regeneration and Local Services,Direct Services,021242,Catering - County Hall,Supplies and Services,324117,Provisions E324,07-Nov-2018,000007998602305,JR HOLLAND FOODSERVICE,5422,Catering costs - provisions,120.78,0.00,120.78
Regeneration and Local Services,Direct Services,021242,Catering - County Hall,Supplies and Services,324117,Provisions E324,07-Nov-2018,000007998602311,JR HOLLAND FOODSERVICE,5422,Catering costs - provisions,100.00,0.00,100.00
Regeneration and Local Services,Direct Services,021242,Catering - County Hall,Supplies and Services,324117,Provisions E324,07-Nov-2018,000007998602315,JR HOLLAND FOODSERVICE,5422,Catering costs - provisions,31.51,0.00,31.51
Regeneration and Local Services,Direct Services,021242,Catering - County Hall,Supplies and Services,324117,Provisions E324,07-Nov-2018,000007998602317,JR HOLLAND FOODSERVICE,5422,Catering costs - provisions,-9.36,0.00,-9.36
Resources,Digital and Customer Services,065461,Business Support,Supplies and Services,372009,Subscriptions E372,07-Nov-2018,000007998602329,WEB NETWORKSOLUTIONS,5968,Subscriptions 372009,110.10,0.00,110.10
Children and Young Peoples Services,Head of Education and Skills,071732,Dean Bank Childcare,Supplies and Services,304259,Equipment and Materials,07-Nov-2018,000007998602437,WILKO DURHAM 426,5722,Equipment-purchase and rental,19.65,0.00,19.65
Children and Young Peoples Services,Head of Education and Skills,071732,Dean Bank Childcare,Supplies and Services,324117,Provisions E324,07-Nov-2018,000007998602443,LAKELAND LIMITED,5399,Catering costs - provisions,30.46,0.00,30.46
Regeneration and Local Services,Culture & Sport,054813,Gala Theatre - Technical,Supplies and Services,312011,Newspapers books and periodicals E312,07-Nov-2018,000007998602451,AMZN Mktp UK MT06X7WP4,5942,Books-school library,29.89,0.00,29.89
Regeneration and Local Services,Culture & Sport,054813,Gala Theatre - Technical,Supplies and Services,312011,Newspapers books and periodicals E312,07-Nov-2018,000007998602457,AMZN Mktp UK MT0892RM4,5942,Books-school library,32.99,0.00,32.99
Regeneration and Local Services,Culture & Sport,054813,Gala Theatre - Technical,Supplies and Services,312011,Newspapers books and periodicals E312,07-Nov-2018,000007998602461,AMZN Mktp UK MT8B71WC4,5942,Books-school library,27.80,0.00,27.80
Regeneration and Local Services,Culture & Sport,054813,Gala Theatre - Technical,Supplies and Services,312011,Newspapers books and periodicals E312,07-Nov-2018,000007998602465,AMZN Mktp UK MT3GC3WC4,5942,Books-school library,75.97,0.00,75.97
Regeneration and Local Services,Culture & Sport,054813,Gala Theatre - Technical,Supplies and Services,312011,Newspapers books and periodicals E312,07-Nov-2018,000007998602471,AMZN Mktp UK MT4DC6WT4,5942,Books-school library,129.02,0.00,129.02
Regeneration and Local Services,Culture & Sport,054813,Gala Theatre - Technical,Supplies and Services,312011,Newspapers books and periodicals E312,07-Nov-2018,000007998602477,Amazon.co.uk MT7NL5WV4,5969,Books-school library,19.97,0.00,19.97
Regeneration and Local Services,Culture & Sport,054813,Gala Theatre - Technical,Supplies and Services,304259,Equipment and Materials,07-Nov-2018,000007998602481,WILKO DURHAM 426,5722,Equipment-purchase and rental,2.25,0.00,2.25
Regeneration and Local Services,Culture & Sport,054813,Gala Theatre - Technical,Supplies and Services,328041,Clothing uniforms and laundry E328,07-Nov-2018,000007998602487,WWW.FLINTS.CO.UK,5691,Clothing uniforms and laundry,111.60,0.00,111.60
Children and Young Peoples Services,"Head of Early Help, Inclusion and Vulnerable Children",088101,Durham West & CLS 0-19 Community Family Hub,Supplies and Services,324117,Provisions E324,07-Nov-2018,000007998602555,ASDA GROCERIES ONLINE,5411,Catering costs - provisions,213.71,0.00,213.71
Children and Young Peoples Services,"Head of Early Help, Inclusion and Vulnerable Children",088101,Durham West & CLS 0-19 Community Family Hub,Supplies and Services,324117,Provisions E324,07-Nov-2018,000007998602563,ASDA GROCERIES ONLINE,5411,Catering costs - provisions,-0.18,0.00,-0.18
Children and Young Peoples Services,"Head of Early Help, Inclusion and Vulnerable Children",085962,Aycliffe Secure - Durham,Supplies and Services,328041,Clothing uniforms and laundry E328,07-Nov-2018,000007998602581,FOOTASYLUM PLC,5941,Clothing uniforms and laundry,127.94,0.00,127.94
Children and Young Peoples Services,"Head of Early Help, Inclusion and Vulnerable Children",085956,Lumley,Supplies and Services,328041,Clothing uniforms and laundry E328,07-Nov-2018,000007998602585,JD SPORTS INTERNET,5941,Clothing uniforms and laundry,21.99,0.00,21.99
Children and Young Peoples Services,"Head of Early Help, Inclusion and Vulnerable Children",085954,Walworth,Supplies and Services,328041,Clothing uniforms and laundry E328,07-Nov-2018,000007998602587,MAINLINE MENSWEAR,5611,Clothing uniforms and laundry,45.00,0.00,45.00
Children and Young Peoples Services,"Head of Early Help, Inclusion and Vulnerable Children",085955,Auckland,Supplies and Services,324117,Provisions E324,07-Nov-2018,000007998602595,TESCO STORES 6329,5411,Catering costs - provisions,73.37,0.00,73.37
Children and Young Peoples Services,"Head of Early Help, Inclusion and Vulnerable Children",085956,Lumley,Supplies and Services,328041,Clothing uniforms and laundry E328,07-Nov-2018,000007998602597,VERY,5964,Clothing uniforms and laundry,18.99,0.00,18.99
Regeneration and Local Services,Culture & Sport,054813,Gala Theatre - Technical,Supplies and Services,312011,Newspapers books and periodicals E312,07-Nov-2018,000007998602603,AMZN Mktp UK MT4WA0W84,5942,Books-school library,179.00,0.00,179.00
Regeneration and Local Services,Culture & Sport,054813,Gala Theatre - Technical,Supplies and Services,312011,Newspapers books and periodicals E312,07-Nov-2018,000007998602609,AMZN Mktp UK MT5U25WO4,5942,Books-school library,288.91,0.00,288.91
Regeneration and Local Services,Culture & Sport,054813,Gala Theatre - Technical,Supplies and Services,312011,Newspapers books and periodicals E312,07-Nov-2018,000007998602611,AMZN Mktp UK MT3AG6W44,5942,Books-school library,23.00,0.00,23.00
Regeneration and Local Services,Culture & Sport,054813,Gala Theatre - Technical,Employees,040149,Recruitment Instruction and Training,07-Nov-2018,000007998602617,LINENRENTAL.CO.UK,8999,Training-all costs,125.59,0.00,125.59
Regeneration and Local Services,Culture & Sport,054813,Gala Theatre - Technical,Employees,040149,Recruitment Instruction and Training,07-Nov-2018,000007998602621,LINENRENTAL.CO.UK,8999,Training-all costs,149.59,0.00,149.59
Children and Young Peoples Services,Childrens Services Operational Support,052986,CYPS - Locality and Operational Support,Transport,235057,Public Transport,07-Nov-2018,000007998602625,NEWCASTLE CITY COUNCIL,4789,Staff travelling,11.00,0.00,11.00
Children and Young Peoples Services,Childrens Services Operational Support,052986,CYPS - Locality and Operational Support,Supplies and Services,328041,Clothing uniforms and laundry E328,07-Nov-2018,000007998602633,ARGOS RETAIL GROUP,5310,Clothing uniforms and laundry,22.99,0.00,22.99
Children and Young Peoples Services,Childrens Services Operational Support,052986,CYPS - Locality and Operational Support,Supplies and Services,328041,Clothing uniforms and laundry E328,07-Nov-2018,000007998602635,ARGOS RETAIL GROUP,5310,Clothing uniforms and laundry,31.98,0.00,31.98
Children and Young Peoples Services,Childrens Services Operational Support,052986,CYPS - Locality and Operational Support,Supplies and Services,328041,Clothing uniforms and laundry E328,07-Nov-2018,000007998602641,ARGOS RETAIL GROUP,5310,Clothing uniforms and laundry,29.99,0.00,29.99
Children and Young Peoples Services,Childrens Services Operational Support,052986,CYPS - Locality and Operational Support,Supplies and Services,304259,Equipment and Materials,07-Nov-2018,000007998602645,WWW.DURHAM.GOV.UK,9399,Equipment-purchase and rental,36.00,0.00,36.00
Regeneration and Local Services,Culture & Sport,011060,Hardwick Park Catering,Supplies and Services,324117,Provisions E324,07-Nov-2018,000007998602663,JR HOLLAND FOODSERVICE,5422,Catering costs - provisions,147.58,0.00,147.58
Regeneration and Local Services,Culture & Sport,011060,Hardwick Park Catering,Supplies and Services,324117,Provisions E324,07-Nov-2018,000007998602669,JR HOLLAND FOODSERVICE,5422,Catering costs - provisions,12.97,0.00,12.97
Regeneration and Local Services,Direct Services,010525,Catering - Green Lane,Supplies and Services,324117,Provisions E324,07-Nov-2018,000007998602707,JR HOLLAND FOODSERVICE,5422,Catering costs - provisions,65.57,0.00,65.57
Children and Young Peoples Services,Head of Childrens Social Care,085551,Short Break Services-Park Hse Sher,Supplies and Services,324117,Provisions E324,07-Nov-2018,000007998602753,ALDI 59 774,5411,Catering costs - provisions,21.83,3.64,18.19
Regeneration and Local Services,Economic Development and Housing,030554,International Relations,Transport,235057,Public Transport,07-Nov-2018,000007998602771,NEWCASTLE PARK AND FLY,7523,Staff travelling,8.50,1.42,7.08
Regeneration and Local Services,Economic Development and Housing,030554,International Relations,Supplies and Services,348037,Subsistence E348,07-Nov-2018,000007998602783,GREGGS PLC,5812,Subsistence,3.00,0.00,3.00
Regeneration and Local Services,Economic Development and Housing,030554,International Relations,Supplies and Services,324117,Provisions E324,07-Nov-2018,000007998602789,M&S SIMPLY FOOD,5499,Catering costs - provisions,72.30,0.00,72.30
Children and Young Peoples Services,"Head of Early Help, Inclusion and Vulnerable Children",088108,Spennymoor & Shildon 0-19 Targeted Family Support,Supplies and Services,332047,Printing Stationery and Gen Off Exps,07-Nov-2018,000007998602795,AMZN Mktp UK MT2MN9YN4,5942,Stationery,29.99,0.00,29.99
Children and Young Peoples Services,"Head of Early Help, Inclusion and Vulnerable Children",088108,Spennymoor & Shildon 0-19 Targeted Family Support,Supplies and Services,332047,Printing Stationery and Gen Off Exps,07-Nov-2018,000007998602803,AMZN Mktp UK MT2525YH4,5942,Stationery,13.99,2.33,11.66
Regeneration and Local Services,Economic Development and Housing,031500,Housing Solutions - Core Team,Supplies and Services,364320,Grants to Voluntary Organisations,07-Nov-2018,000007998602839,EXPEDIA 7390955239779,4722,Accommodation assistance,45.00,0.00,45.00
Children and Young Peoples Services,Head of Childrens Social Care,085333,Coxhoe Satelite Home,Supplies and Services,324117,Provisions E324,07-Nov-2018,000007998602845,CO-OP GROUP 310016,5411,Catering costs - provisions,29.42,0.00,29.42
Regeneration and Local Services,Direct Services,030691,"Catering - Durham Dales Centre			",Supplies and Services,324117,Provisions E324,07-Nov-2018,000007998602889,JR HOLLAND FOODSERVICE,5422,Catering costs - provisions,20.95,0.00,20.95
Regeneration and Local Services,Direct Services,030691,"Catering - Durham Dales Centre			",Supplies and Services,324117,Provisions E324,07-Nov-2018,000007998602893,JR HOLLAND FOODSERVICE,5422,Catering costs - provisions,5.51,0.00,5.51
Regeneration and Local Services,Direct Services,030691,"Catering - Durham Dales Centre			",Supplies and Services,324117,Provisions E324,07-Nov-2018,000007998602897,JR HOLLAND FOODSERVICE,5422,Catering costs - provisions,-7.96,0.00,-7.96
Adult and Health Services,Head of Adults,055643,Hawthorn House LD Respite Unit,Supplies and Services,324117,Provisions E324,07-Nov-2018,000007998602949,JR HOLLAND FOODSERVICE,5422,Catering costs - provisions,19.37,0.00,19.37
Adult and Health Services,Head of Adults,055643,Hawthorn House LD Respite Unit,Supplies and Services,324117,Provisions E324,07-Nov-2018,000007998602959,JR HOLLAND FOODSERVICE,5422,Catering costs - provisions,17.38,0.00,17.38
Children and Young Peoples Services,Head of Childrens Social Care,085380,Operations Manager Adoption & Fostering,Supplies and Services,324117,Provisions E324,07-Nov-2018,000007998602987,ASDA STORES,5411,Catering costs - provisions,3.30,0.00,3.30
Regeneration and Local Services,Direct Services,010301,C&G - North Grounds Maintenance,Supplies and Services,304403,Equipment and Materials,07-Nov-2018,000007998602993,BESCOL,5231,Other consumables,62.75,10.46,52.29
Regeneration and Local Services,Direct Services,010301,C&G - North Grounds Maintenance,Supplies and Services,304403,Equipment and Materials,07-Nov-2018,000007998602997,BESCOL,5231,Other consumables,54.10,9.02,45.08
Children and Young Peoples Services,"Head of Early Help, Inclusion and Vulnerable Children",085957,Secure Management,Supplies and Services,384999,Miscellaneous Expenses,07-Nov-2018,000007998603021,Amazon.co.uk MT6AI1WC4,5969,Other expenses,9.12,1.52,7.60
Children and Young Peoples Services,"Head of Early Help, Inclusion and Vulnerable Children",085955,Auckland,Supplies and Services,384999,Miscellaneous Expenses,07-Nov-2018,000007998603025,Amazon.co.uk MT0DQ4YM4,5969,Other expenses,23.79,3.97,19.82
Children and Young Peoples Services,"Head of Early Help, Inclusion and Vulnerable Children",085957,Secure Management,Supplies and Services,384999,Miscellaneous Expenses,07-Nov-2018,000007998603031,ASPECT WALL ART,5971,Other expenses,26.98,0.00,26.98
Children and Young Peoples Services,"Head of Early Help, Inclusion and Vulnerable Children",085957,Secure Management,Supplies and Services,384999,Miscellaneous Expenses,07-Nov-2018,000007998603033,ARGOS RETAIL GROUP,5310,Other expenses,80.00,0.00,80.00
Children and Young Peoples Services,"Head of Early Help, Inclusion and Vulnerable Children",085957,Secure Management,Supplies and Services,338057,Services,07-Nov-2018,000007998603037,PROMETHEUS MEDICAL LIM,5047,Medical fees 338057,298.26,49.71,248.55
Children and Young Peoples Services,"Head of Early Help, Inclusion and Vulnerable Children",085957,Secure Management,Supplies and Services,384999,Miscellaneous Expenses,07-Nov-2018,000007998603043,MARKS&SPENCER PLC,5411,Other expenses,60.00,0.00,60.00
Children and Young Peoples Services,"Head of Early Help, Inclusion and Vulnerable Children",085962,Aycliffe Secure - Durham,Supplies and Services,384999,Miscellaneous Expenses,07-Nov-2018,000007998603051,WWW.ARGOS.CO.UK,5310,Other expenses,-17.99,0.00,-17.99
Children and Young Peoples Services,"Head of Early Help, Inclusion and Vulnerable Children",085962,Aycliffe Secure - Durham,Supplies and Services,384999,Miscellaneous Expenses,07-Nov-2018,000007998603055,WWW.ARGOS.CO.UK,5310,Other expenses,-3.95,0.00,-3.95
Regeneration and Local Services,Economic Development and Housing,031500,Housing Solutions - Core Team,Transport,235057,Public Transport,07-Nov-2018,000007998603071,GO NORTH EAST LIMITED,4131,Staff travelling,53.00,0.00,53.00
Regeneration and Local Services,Culture & Sport,054235,Bishop Auckland Town Hall Cafe,Supplies and Services,324117,Provisions E324,07-Nov-2018,000007998603107,JR HOLLAND FOODSERVICE,5422,Catering costs - provisions,59.41,0.00,59.41
Regeneration and Local Services,Direct Services,021324,Catering - Meadowfield,Supplies and Services,324117,Provisions E324,07-Nov-2018,000007998603117,JR HOLLAND FOODSERVICE,5422,Catering costs - provisions,55.79,0.00,55.79
Regeneration and Local Services,Direct Services,021324,Catering - Meadowfield,Supplies and Services,324117,Provisions E324,07-Nov-2018,000007998603125,JR HOLLAND FOODSERVICE,5422,Catering costs - provisions,7.29,0.00,7.29
Regeneration and Local Services,Culture & Sport,054820,Gala Theatre - Overheads,Employees,040149,Recruitment Instruction and Training,07-Nov-2018,000007998603185,WWW.FILMBANK.CO.UK,7829,Training-all costs,99.60,0.00,99.60
Regeneration and Local Services,Culture & Sport,054233,Bishop Auckland Town Hall Library,Employees,040149,Recruitment Instruction and Training,07-Nov-2018,000007998603243,WWW.FILMBANK.CO.UK,7829,Training-all costs,99.60,16.60,83.00
Adult and Health Services,Head of Adults,055302,Durham Pathways,Supplies and Services,304083,Equipment and Materials,07-Nov-2018,000007998603285,POUNDSTRETCHER 692,5714,Catering equipment,1.00,0.00,1.00
Children and Young Peoples Services,Head of Childrens Social Care,085363,LAC & Permanence Team 3,Supplies and Services,304259,Equipment and Materials,07-Nov-2018,000007998603349,HM PASSPORT OFFICE,9399,Equipment-purchase and rental,49.00,0.00,49.00
Children and Young Peoples Services,"Head of Early Help, Inclusion and Vulnerable Children",085954,Walworth,Supplies and Services,328041,Clothing uniforms and laundry E328,07-Nov-2018,000008004062203,SPORTSDIRECT.COM,5941,Clothing uniforms and laundry,10.50,1.75,8.75
Children and Young Peoples Services,"Head of Early Help, Inclusion and Vulnerable Children",085957,Secure Management,Supplies and Services,328041,Clothing uniforms and laundry E328,07-Nov-2018,000008004062203 - 1,SPORTSDIRECT.COM,5941,Clothing uniforms and laundry,4.99,,4.99
Regeneration and Local Services,Culture & Sport,054815,Gala Theatre Stage School,Supplies and Services,304259,Equipment and Materials,07-Nov-2018,000008004062243,WWW.MTISHOWS.COM,5733,Equipment-purchase and rental,500.00,0.00,500.00
Children and Young Peoples Services,"Head of Early Help, Inclusion and Vulnerable Children",074000,TTF-Attachment and Results,Supplies and Services,312011,Newspapers books and periodicals E312,07-Nov-2018,000008004062483,AMZN MKTP UK AMAZON.CO,5942,Books-school library,-9.99,0.00,-9.99
Children and Young Peoples Services,Head of Childrens Social Care,085372,Young People Services - North,Supplies and Services,352001,Conference Expenses,07-Nov-2018,000008004062549,TVLICENSING.CO.UK,7392,Conferencesseminars fees etc,150.50,0.00,150.50
Children and Young Peoples Services,Head of Childrens Social Care,085372,Young People Services - North,Supplies and Services,352001,Conference Expenses,07-Nov-2018,000008004062553,TVLICENSING.CO.UK,7392,Conferencesseminars fees etc,150.50,0.00,150.50
Regeneration and Local Services,Culture & Sport,054815,Gala Theatre Stage School,Supplies and Services,304259,Equipment and Materials,07-Nov-2018,000008034207539,WWW.MTISHOWS.COM,5733,Equipment-purchase and rental,690.00,0.00,690.00
Resources,Digital and Customer Services,065461,Business Support,Supplies and Services,372009,Subscriptions E372,08-Nov-2018,000007998602333,WEB NETWORKSOLUTIONS,5968,Subscriptions 372009,3.03,0.00,3.03
Children and Young Peoples Services,Head of Education and Skills,071801,Selby Cottage Childcare Centre,Supplies and Services,304259,Equipment and Materials,08-Nov-2018,000008004061837,WILKO DURHAM 426,5722,Equipment-purchase and rental,3.00,0.00,3.00
Children and Young Peoples Services,Head of Education and Skills,071801,Selby Cottage Childcare Centre,Supplies and Services,324117,Provisions E324,08-Nov-2018,000008004061841,TESCO STORES 2278,5411,Catering costs - provisions,11.20,0.00,11.20
Children and Young Peoples Services,Head of Education and Skills,071801,Selby Cottage Childcare Centre,Supplies and Services,324117,Provisions E324,08-Nov-2018,000008004061845,TESCO STORES 2278,5411,Catering costs - provisions,4.50,0.00,4.50
Children and Young Peoples Services,Head of Education and Skills,071801,Selby Cottage Childcare Centre,Supplies and Services,304999,Equipment and Materials,08-Nov-2018,000008004061849,Amazon Prime M80MK5C44,5968,Misc equipment tools and materials,7.99,0.00,7.99
Children and Young Peoples Services,Head of Education and Skills,054640,Durham Learning Resources,Supplies and Services,304245,Equipment and Materials,08-Nov-2018,000008004061859,WWW.NORGEO.CO.UK,5999,Materials,20.76,0.00,20.76
Regeneration and Local Services,Economic Development and Housing,031576,B& B - Temp Accom,Supplies and Services,352001,Conference Expenses,08-Nov-2018,000008004061861,HOTEL 52,7011,Conferencesseminars fees etc,50.00,0.00,50.00
Children and Young Peoples Services,Head of Childrens Social Care,085342,9 Cedar Drive Aycliffe,Transport,235057,Public Transport,08-Nov-2018,000008004061921,SOUTH TYNEDALE RAILWAY,4112,Staff travelling,25.00,0.00,25.00
Children and Young Peoples Services,Head of Childrens Social Care,085333,Coxhoe Satelite Home,Supplies and Services,312011,Newspapers books and periodicals E312,08-Nov-2018,000008004061943,Amazon.co.uk M866L0CP4,5969,Books-school library,139.99,0.00,139.99
Regeneration and Local Services,Direct Services,010367,C&G - South Grounds Maintenance,Supplies and Services,304221,Equipment and Materials,08-Nov-2018,000008004061947,SCREWFIX PETERLEE,5211,Direct materials,45.13,7.52,37.61
Regeneration and Local Services,Direct Services,021242,Catering - County Hall,Supplies and Services,324117,Provisions E324,08-Nov-2018,000008004061963,JR HOLLAND FOODSERVICE,5422,Catering costs - provisions,154.78,0.00,154.78
Regeneration and Local Services,Direct Services,021242,Catering - County Hall,Supplies and Services,324117,Provisions E324,08-Nov-2018,000008004061969,JR HOLLAND FOODSERVICE,5422,Catering costs - provisions,29.78,0.00,29.78
Regeneration and Local Services,Direct Services,021242,Catering - County Hall,Supplies and Services,324117,Provisions E324,08-Nov-2018,000008004061973,JR HOLLAND FOODSERVICE,5422,Catering costs - provisions,13.80,0.00,13.80
Regeneration and Local Services,Culture & Sport,054812,Gala Theatre - Catering etc,Supplies and Services,324117,Provisions E324,08-Nov-2018,000008004061983,JR HOLLAND FOODSERVICE,5422,Catering costs - provisions,60.56,0.00,60.56
Children and Young Peoples Services,Head of Childrens Social Care,085342,9 Cedar Drive Aycliffe,Supplies and Services,324117,Provisions E324,08-Nov-2018,000008004062075,TESCO STORES 2916,5411,Catering costs - provisions,36.00,0.00,36.00
Children and Young Peoples Services,Head of Education and Skills,071732,Dean Bank Childcare,Supplies and Services,312011,Newspapers books and periodicals E312,08-Nov-2018,000008004062087,AMZN Mktp UK M80BR2C64,5942,Books-school library,57.95,0.00,57.95
Children and Young Peoples Services,Head of Education and Skills,071732,Dean Bank Childcare,Supplies and Services,312011,Newspapers books and periodicals E312,08-Nov-2018,000008004062091,AMZN Mktp UK M84L36CB4,5942,Books-school library,23.87,0.00,23.87
Children and Young Peoples Services,Head of Education and Skills,071732,Dean Bank Childcare,Supplies and Services,312011,Newspapers books and periodicals E312,08-Nov-2018,000008004062093,AMZN Mktp UK M875D0CQ4,5942,Books-school library,5.95,0.00,5.95
Children and Young Peoples Services,Head of Education and Skills,071732,Dean Bank Childcare,Supplies and Services,312011,Newspapers books and periodicals E312,08-Nov-2018,000008004062099,AMZN Mktp UK M88FB7CU4,5942,Books-school library,2.99,0.00,2.99
Children and Young Peoples Services,Head of Education and Skills,071732,Dean Bank Childcare,Supplies and Services,312011,Newspapers books and periodicals E312,08-Nov-2018,000008004062103,AMZN Mktp UK M89CJ1C54,5942,Books-school library,2.99,0.00,2.99
Children and Young Peoples Services,Head of Education and Skills,071732,Dean Bank Childcare,Supplies and Services,312011,Newspapers books and periodicals E312,08-Nov-2018,000008004062107,THE BOOK PEOPLE,5942,Books-school library,41.40,0.00,41.40
Regeneration and Local Services,Culture & Sport,054813,Gala Theatre - Technical,Supplies and Services,312011,Newspapers books and periodicals E312,08-Nov-2018,000008004062117,AMZN Mktp UK MT3218YN4,5942,Books-school library,43.95,0.00,43.95
Regeneration and Local Services,Culture & Sport,054813,Gala Theatre - Technical,Supplies and Services,312011,Newspapers books and periodicals E312,08-Nov-2018,000008004062123,AMZN Mktp UK M87ZD7C84,5942,Books-school library,15.54,0.00,15.54
Regeneration and Local Services,Culture & Sport,054813,Gala Theatre - Technical,Supplies and Services,384999,Miscellaneous Expenses,08-Nov-2018,000008004062131,HOBBYCRAFT,5970,Other expenses,5.00,0.00,5.00
Children and Young Peoples Services,Head of Education and Skills,071903,EYDCP-Sustainability EDS,Supplies and Services,312011,Newspapers books and periodicals E312,08-Nov-2018,000008004062149,Amazon.co.uk M85X41C54,5969,Books-school library,80.12,0.00,80.12
Children and Young Peoples Services,"Head of Early Help, Inclusion and Vulnerable Children",088101,Durham West & CLS 0-19 Community Family Hub,Supplies and Services,312009,Newspapers books and periodicals E312,08-Nov-2018,000008004062191,AMZN Mktp UK M81XD6C94,5942,Newspapers books and periodicals,24.42,0.00,24.42
Children and Young Peoples Services,"Head of Early Help, Inclusion and Vulnerable Children",085956,Lumley,Supplies and Services,312011,Newspapers books and periodicals E312,08-Nov-2018,000008004062195,AMZN Mktp UK M87C67CE4,5942,Books-school library,17.48,2.91,14.57
Children and Young Peoples Services,"Head of Early Help, Inclusion and Vulnerable Children",085956,Lumley,Supplies and Services,304403,Equipment and Materials,08-Nov-2018,000008004062199,Amazon.co.uk M806U6CO4,5969,Other consumables,59.34,9.89,49.45
Children and Young Peoples Services,"Head of Early Help, Inclusion and Vulnerable Children",085965,Barnard,Supplies and Services,324117,Provisions E324,08-Nov-2018,000008004062207,TESCO STORES 6329,5411,Catering costs - provisions,82.96,0.00,82.96
Children and Young Peoples Services,"Head of Early Help, Inclusion and Vulnerable Children",085965,Barnard,Supplies and Services,328041,Clothing uniforms and laundry E328,08-Nov-2018,000008004062211,VERY,5964,Clothing uniforms and laundry,83.74,0.00,83.74
Children and Young Peoples Services,"Head of Early Help, Inclusion and Vulnerable Children",085962,Aycliffe Secure - Durham,Supplies and Services,328041,Clothing uniforms and laundry E328,08-Nov-2018,000008004062217,VERY,5964,Clothing uniforms and laundry,-25.00,0.00,-25.00
Regeneration and Local Services,Direct Services,010367,C&G - South Grounds Maintenance,Supplies and Services,384999,Miscellaneous Expenses,08-Nov-2018,000008004062221,WWW.GUSTHARTS.COM,5046,Other expenses,404.94,67.49,337.45
Children and Young Peoples Services,Head of Childrens Social Care,085551,Short Break Services-Park Hse Sher,Supplies and Services,324117,Provisions E324,08-Nov-2018,000008004062283,WM MORRISONS STORE,5411,Catering costs - provisions,16.00,0.00,16.00
Regeneration and Local Services,Economic Development and Housing,030771,Durham Advance Flexible Fund,Supplies and Services,344033,Telephones,08-Nov-2018,000008004062377,VIRGIN MOBILE,4812,Telephones general-all costs,15.00,0.00,15.00
Regeneration and Local Services,Direct Services,011007,Civic Centre Crook,Supplies and Services,304259,Equipment and Materials,08-Nov-2018,000008004062385,XS-STOCK.COM LTD,5719,Equipment-purchase and rental,"1,084.90",180.82,904.08
Regeneration and Local Services,Direct Services,010301,C&G - North Grounds Maintenance,Supplies and Services,328041,Clothing uniforms and laundry E328,08-Nov-2018,000008004062449,THOMAS OWEN & SONS /N/,5611,Clothing uniforms and laundry,61.37,10.23,51.14
Regeneration and Local Services,Direct Services,010301,C&G - North Grounds Maintenance,Supplies and Services,304403,Equipment and Materials,08-Nov-2018,000008004062453,BESCOL,5231,Other consumables,37.20,6.20,31.00
Resources,Digital and Customer Services,065335,School Services - Implementations,Supplies and Services,304639,Equipment and Materials,08-Nov-2018,000008004062487,Amazon.co.uk M83BY8CS4,5969,Technicians-supplies,19.33,3.22,16.11
Resources,Digital and Customer Services,065335,School Services - Implementations,Supplies and Services,304303,Equipment and Materials,08-Nov-2018,000008004062491,SCREWFIX DIRECT,5211,Network for resale,21.69,3.62,18.07
Children and Young Peoples Services,"Head of Early Help, Inclusion and Vulnerable Children",085955,Auckland,Supplies and Services,384999,Miscellaneous Expenses,08-Nov-2018,000008004062503,AMZN Mktp UK MT6RW5Y14,5942,Other expenses,34.99,5.83,29.16
Children and Young Peoples Services,"Head of Early Help, Inclusion and Vulnerable Children",085957,Secure Management,Supplies and Services,304639,Equipment and Materials,08-Nov-2018,000008004062505,SCREWFIX DIRECT,5211,Technicians-supplies,59.96,9.99,49.97
Regeneration and Local Services,Economic Development and Housing,031500,Housing Solutions - Core Team,Supplies and Services,352001,Conference Expenses,08-Nov-2018,000008004062529,HAYAT HOTEL,7011,Conferencesseminars fees etc,445.00,74.17,370.83
Children and Young Peoples Services,"Head of Early Help, Inclusion and Vulnerable Children",079581,Emotional Wellbeing Team,Supplies and Services,312011,Newspapers books and periodicals E312,08-Nov-2018,000008004062533,AMZN MKTP UK M87US7CE4,5942,Books-school library,11.78,0.00,11.78
Regeneration and Local Services,Transport and Contracted Services,031701,Care Connect All Localities,Supplies and Services,312011,Newspapers books and periodicals E312,08-Nov-2018,000008004062577,AMZN Mktp UK M82SR0CY4,5942,Books-school library,30.84,0.00,30.84
Adult and Health Services,Head of Adults,055301,Stanley Pathways,Supplies and Services,328041,Clothing uniforms and laundry E328,08-Nov-2018,000008004062587,W BOYES & CO LTD CONSE,5310,Clothing uniforms and laundry,2.00,0.00,2.00
Children and Young Peoples Services,Head of Childrens Social Care,085352,Tow Law CU,Supplies and Services,324117,Provisions E324,08-Nov-2018,000008004062607,YOUR LOCAL FOOD & WINE,5411,Catering costs - provisions,5.94,0.00,5.94
Regeneration and Local Services,Economic Development and Housing,030554,International Relations,Transport,235057,Public Transport,08-Nov-2018,000008004062629,PRINCE BISHOP SHOPPING,7523,Staff travelling,3.30,0.55,2.75
Regeneration and Local Services,Culture & Sport,054820,Gala Theatre - Overheads,Supplies and Services,342033,Computers and Communications,08-Nov-2018,000008004062635,WWW.NISBETS.COM,5964,Computer hardware,44.38,0.00,44.38
Children and Young Peoples Services,Head of Childrens Social Care,085332,Middlestone Moor CU,Supplies and Services,384999,Miscellaneous Expenses,08-Nov-2018,000008004062639,BISHOP TRAINS,5945,Other expenses,207.00,0.00,207.00
Adult and Health Services,Head of Adults,055302,Durham Pathways,Supplies and Services,304403,Equipment and Materials,08-Nov-2018,000008004062673,ASDA STORES LTD 4313,5411,Other consumables,3.00,0.00,3.00
Transformation and Partnerships,Communications Management,060270,Communications and Marketing,Supplies and Services,332047,Printing Stationery and Gen Off Exps,08-Nov-2018,000008004062683,PAYPAL ENVATO MKPL EN,5999,Stationery,9.51,0.00,9.51
Adult and Health Services,Head of Adults,055309,Peterlee Pathways,Supplies and Services,340001,Postages E340,08-Nov-2018,000008004062691,POST OFFICE COUNTER,9402,Postages,6.30,0.00,6.30
Resources,Finance & Transactional Services,065183,Discretionary Benefits,Supplies and Services,338064,Services,08-Nov-2018,000008004062747,DISCLOSURE SCOTLAND,9399,Disclosure & Barring (DBS) Fees,25.00,0.00,25.00
Regeneration and Local Services,Direct Services,021242,Catering - County Hall,Supplies and Services,324117,Provisions E324,08-Nov-2018,000008010822609,BATLEYS PERTH,5300,Catering costs - provisions,325.56,54.26,271.30
Regeneration and Local Services,Direct Services,021242,Catering - County Hall,Supplies and Services,324117,Provisions E324,08-Nov-2018,000008010822609 - 1,BATLEYS PERTH,5300,Catering costs - provisions,175.58,,175.58
Regeneration and Local Services,Spatial Policy Planning Assets & Environment,031204,North Pennines Nectarworks,Supplies and Services,304221,Equipment and Materials,08-Nov-2018,000008010822903,GRAHAMS LOGS & TIMBER,5211,Direct materials,73.00,12.17,60.83
Children and Young Peoples Services,"Head of Early Help, Inclusion and Vulnerable Children",085956,Lumley,Supplies and Services,304403,Equipment and Materials,08-Nov-2018,000008010823103,SUPERDRUG STORES PLC,5912,Other consumables,23.94,0.00,23.94
Regeneration and Local Services,Direct Services,010301,C&G - North Grounds Maintenance,Supplies and Services,304221,Equipment and Materials,08-Nov-2018,000008010823527,WWW.ARCO.CO.UK,5085,Direct materials,159.06,0.00,159.06
Children and Young Peoples Services,Head of Education and Skills,054640,Durham Learning Resources,Supplies and Services,304245,Equipment and Materials,09-Nov-2018,000008010822399,AMZN MKTP UK M89R69O64,5942,Materials,41.82,0.00,41.82
Regeneration and Local Services,Economic Development and Housing,031576,B& B - Temp Accom,Supplies and Services,352001,Conference Expenses,09-Nov-2018,000008010822403,HOTEL 52,7011,Conferencesseminars fees etc,280.00,0.00,280.00
Regeneration and Local Services,Economic Development and Housing,031576,B& B - Temp Accom,Supplies and Services,364320,Grants to Voluntary Organisations,09-Nov-2018,000008010822409,HOTEL 52,7011,Accommodation assistance,500.00,0.00,500.00
Regeneration and Local Services,Economic Development and Housing,031576,B& B - Temp Accom,Supplies and Services,364320,Grants to Voluntary Organisations,09-Nov-2018,000008010822411,HOTEL 52,7011,Accommodation assistance,114.95,0.00,114.95
Regeneration and Local Services,Economic Development and Housing,030699,Business Growth and Innovation General,Supplies and Services,312011,Newspapers books and periodicals E312,09-Nov-2018,000008010822513,FASTHOSTS INTERNET,4816,Books-school library,13.19,0.00,13.19
Children and Young Peoples Services,Head of Childrens Social Care,085342,9 Cedar Drive Aycliffe,Supplies and Services,304259,Equipment and Materials,09-Nov-2018,000008010822517,SUNDERLAND CC,9399,Equipment-purchase and rental,9.00,0.00,9.00
Regeneration and Local Services,Direct Services,021242,Catering - County Hall,Supplies and Services,324117,Provisions E324,09-Nov-2018,000008010822575,HOPWELLS LTD,5811,Catering costs - provisions,554.37,0.00,554.37
Regeneration and Local Services,Direct Services,021242,Catering - County Hall,Supplies and Services,324117,Provisions E324,09-Nov-2018,000008010822587,HOPWELLS LTD,5811,Catering costs - provisions,279.10,0.00,279.10
Regeneration and Local Services,Direct Services,021242,Catering - County Hall,Supplies and Services,324117,Provisions E324,09-Nov-2018,000008010822589,JR HOLLAND FOODSERVICE,5422,Catering costs - provisions,75.34,0.00,75.34
Regeneration and Local Services,Direct Services,021242,Catering - County Hall,Supplies and Services,324117,Provisions E324,09-Nov-2018,000008010822595,JR HOLLAND FOODSERVICE,5422,Catering costs - provisions,59.00,0.00,59.00
Regeneration and Local Services,Direct Services,021242,Catering - County Hall,Supplies and Services,324117,Provisions E324,09-Nov-2018,000008010822621,HOPWELLS LTD,5811,Catering costs - provisions,-6.60,0.00,-6.60
Regeneration and Local Services,Direct Services,021242,Catering - County Hall,Supplies and Services,324117,Provisions E324,09-Nov-2018,000008010822625,HOPWELLS LTD,5811,Catering costs - provisions,-14.18,0.00,-14.18
Regeneration and Local Services,Culture & Sport,054233,Bishop Auckland Town Hall Library,Supplies and Services,304259,Equipment and Materials,09-Nov-2018,000008010822631,WILKO RETAIL LIMIT,5722,Equipment-purchase and rental,17.75,0.00,17.75
Resources,Corporate Finance & Commercial Services,065106,Strategic Finance - Revenue & Capital,Supplies and Services,372009,Subscriptions E372,09-Nov-2018,000008010822647,NOMINET UK,5734,Subscriptions 372009,99.00,0.00,99.00
Regeneration and Local Services,Culture & Sport,054812,Gala Theatre - Catering etc,Supplies and Services,324117,Provisions E324,09-Nov-2018,000008010822667,HOPWELLS LTD,5811,Catering costs - provisions,40.09,0.00,40.09
Regeneration and Local Services,Direct Services,021242,Catering - County Hall,Supplies and Services,324117,Provisions E324,09-Nov-2018,000008010822687,SAINSBURYS LOC4634,5411,Catering costs - provisions,4.40,0.00,4.40
Regeneration and Local Services,Direct Services,021242,Catering - County Hall,Supplies and Services,324117,Provisions E324,09-Nov-2018,000008010822691,TESCO STORES 2371,5411,Catering costs - provisions,37.70,0.00,37.70
Children and Young Peoples Services,Head of Childrens Social Care,085362,LAC & Permanence Team 2,Supplies and Services,338048,Services,09-Nov-2018,000008010822743,HMCOURTS-SERVICE.G,9222,Court costs 338048,5.00,0.00,5.00
Children and Young Peoples Services,Head of Education and Skills,071732,Dean Bank Childcare,Supplies and Services,312011,Newspapers books and periodicals E312,09-Nov-2018,000008010822891,AMZN Mktp UK M82O89O24,5942,Books-school library,3.88,0.00,3.88
Regeneration and Local Services,Spatial Policy Planning Assets & Environment,031204,North Pennines Nectarworks,Supplies and Services,324117,Provisions E324,09-Nov-2018,000008010822907,CO-OP GROUP 010330,5411,Catering costs - provisions,9.79,0.00,9.79
Children and Young Peoples Services,"Head of Early Help, Inclusion and Vulnerable Children",088101,Durham West & CLS 0-19 Community Family Hub,Supplies and Services,324117,Provisions E324,09-Nov-2018,000008010823055,ASDA GROCERIES ONLINE,5411,Catering costs - provisions,479.08,0.00,479.08
Children and Young Peoples Services,"Head of Early Help, Inclusion and Vulnerable Children",088101,Durham West & CLS 0-19 Community Family Hub,Supplies and Services,324117,Provisions E324,09-Nov-2018,000008010823061,ASDA GROCERIES ONLINE,5411,Catering costs - provisions,-3.60,0.00,-3.60
Children and Young Peoples Services,"Head of Early Help, Inclusion and Vulnerable Children",085956,Lumley,Supplies and Services,304403,Equipment and Materials,09-Nov-2018,000008010823079,AMZN Mktp UK M801P8OP4,5942,Other consumables,30.62,0.00,30.62
Children and Young Peoples Services,"Head of Early Help, Inclusion and Vulnerable Children",085956,Lumley,Supplies and Services,312011,Newspapers books and periodicals E312,09-Nov-2018,000008010823085,AMZN Mktp UK M82Y56O94,5942,Books-school library,13.52,0.00,13.52
Children and Young Peoples Services,"Head of Early Help, Inclusion and Vulnerable Children",085956,Lumley,Supplies and Services,312011,Newspapers books and periodicals E312,09-Nov-2018,000008010823087,AMZN Mktp UK M85TR8O24,5942,Books-school library,10.84,0.00,10.84
Children and Young Peoples Services,"Head of Early Help, Inclusion and Vulnerable Children",085965,Barnard,Supplies and Services,384999,Miscellaneous Expenses,09-Nov-2018,000008010823093,AMZN MKTP UK M891K9OX4,5942,Other expenses,26.66,4.44,22.22
Children and Young Peoples Services,"Head of Early Help, Inclusion and Vulnerable Children",085965,Barnard,Supplies and Services,328041,Clothing uniforms and laundry E328,09-Nov-2018,000008010823097,PAYPAL TENTOESUK,5661,Clothing uniforms and laundry,19.99,0.00,19.99
Children and Young Peoples Services,"Head of Early Help, Inclusion and Vulnerable Children",085956,Lumley,Supplies and Services,324117,Provisions E324,09-Nov-2018,000008010823099,TESCO STORES 6329,5411,Catering costs - provisions,81.13,0.00,81.13
Regeneration and Local Services,Culture & Sport,054813,Gala Theatre - Technical,Supplies and Services,312011,Newspapers books and periodicals E312,09-Nov-2018,000008010823131,AMZN Mktp UK M83MW0OB4,5942,Books-school library,69.95,0.00,69.95
Regeneration and Local Services,Culture & Sport,011060,Hardwick Park Catering,Supplies and Services,324117,Provisions E324,09-Nov-2018,000008010823141,HOPWELLS LTD,5811,Catering costs - provisions,161.34,26.89,134.45
Regeneration and Local Services,Culture & Sport,011060,Hardwick Park Catering,Supplies and Services,324117,Provisions E324,09-Nov-2018,000008010823141 - 1,HOPWELLS LTD,5811,Catering costs - provisions,146.99,,146.99
Regeneration and Local Services,Culture & Sport,011060,Hardwick Park Catering,Supplies and Services,324117,Provisions E324,09-Nov-2018,000008010823149,JR HOLLAND FOODSERVICE,5422,Catering costs - provisions,21.56,0.00,21.56
Regeneration and Local Services,Direct Services,010525,Catering - Green Lane,Supplies and Services,324117,Provisions E324,09-Nov-2018,000008010823211,HOPWELLS LTD,5811,Catering costs - provisions,109.96,0.00,109.96
Regeneration and Local Services,Direct Services,010525,Catering - Green Lane,Supplies and Services,324117,Provisions E324,09-Nov-2018,000008010823219,HOPWELLS LTD,5811,Catering costs - provisions,85.94,0.00,85.94
Regeneration and Local Services,Direct Services,010525,Catering - Green Lane,Supplies and Services,324117,Provisions E324,09-Nov-2018,000008010823225,HOPWELLS LTD,5811,Catering costs - provisions,7.95,0.00,7.95
Regeneration and Local Services,Direct Services,010525,Catering - Green Lane,Supplies and Services,324117,Provisions E324,09-Nov-2018,000008010823227,JR HOLLAND FOODSERVICE,5422,Catering costs - provisions,50.88,0.00,50.88
Regeneration and Local Services,Direct Services,010525,Catering - Green Lane,Supplies and Services,324117,Provisions E324,09-Nov-2018,000008010823233,HOPWELLS LTD,5811,Catering costs - provisions,-7.95,0.00,-7.95
Regeneration and Local Services,Economic Development and Housing,030554,International Relations,Supplies and Services,328041,Clothing uniforms and laundry E328,09-Nov-2018,000008010823285,THE WORKS,5310,Clothing uniforms and laundry,7.55,1.26,6.29
Children and Young Peoples Services,"Head of Early Help, Inclusion and Vulnerable Children",071441,Bishop Auckland One Point Hub,Supplies and Services,304259,Equipment and Materials,09-Nov-2018,000008010823297,AMZN MKTP UK M87M78OO4,5942,Equipment-purchase and rental,17.99,3.00,14.99
Children and Young Peoples Services,Childrens Services Operational Support,052986,CYPS - Locality and Operational Support,Supplies and Services,332047,Printing Stationery and Gen Off Exps,09-Nov-2018,000008010823299,STAMPS DIRECT LTD,5943,Stationery,18.88,3.15,15.73
Regeneration and Local Services,Direct Services,010367,C&G - South Grounds Maintenance,Supplies and Services,304999,Equipment and Materials,09-Nov-2018,000008010823315,NEW ROW FARM NURSERIES,5193,Misc equipment tools and materials,120.24,0.00,120.24
Regeneration and Local Services,EnvironmentHealth & Consumer Protection,011035,Consumer Protection,Supplies and Services,304259,Equipment and Materials,09-Nov-2018,000008010823329,TRADING STANDARDS SERV,9399,Equipment-purchase and rental,300.00,0.00,300.00
Resources,Finance & Transactional Services,065180,Collections,Supplies and Services,338048,Services,09-Nov-2018,000008010823335,HMCOURT-SERVICES.G,9222,Court costs 338048,110.00,0.00,110.00
Regeneration and Local Services,Economic Development and Housing,030771,Durham Advance Flexible Fund,Transport,235057,Public Transport,09-Nov-2018,000008010823347,ARRIVA NORTH EAST,4131,Staff travelling,25.50,0.00,25.50
Regeneration and Local Services,Economic Development and Housing,030771,Durham Advance Flexible Fund,Transport,235057,Public Transport,09-Nov-2018,000008010823353,ARRIVA NORTH EAST,4131,Staff travelling,-22.86,0.00,-22.86
Children and Young Peoples Services,Head of Childrens Social Care,085333,Coxhoe Satelite Home,Supplies and Services,340001,Postages E340,09-Nov-2018,000008010823365,POST OFFICE COUNTER,9402,Postages,3.59,0.00,3.59
Children and Young Peoples Services,Head of Childrens Social Care,085333,Coxhoe Satelite Home,Supplies and Services,312011,Newspapers books and periodicals E312,09-Nov-2018,000008010823371,HOME BARGAINS SPENNYMO,5251,Books-school library,7.15,0.00,7.15
Children and Young Peoples Services,Head of Childrens Social Care,085333,Coxhoe Satelite Home,Supplies and Services,324117,Provisions E324,09-Nov-2018,000008010823377,ASDA SUPERSTORE 4987,5411,Catering costs - provisions,177.24,0.00,177.24
Children and Young Peoples Services,Head of Childrens Social Care,085333,Coxhoe Satelite Home,Supplies and Services,324117,Provisions E324,09-Nov-2018,000008010823381,ICELAND,5411,Catering costs - provisions,11.60,0.00,11.60
Regeneration and Local Services,Direct Services,030691,"Catering - Durham Dales Centre			",Supplies and Services,324117,Provisions E324,09-Nov-2018,000008010823445,HOPWELLS LTD,5811,Catering costs - provisions,61.28,0.00,61.28
Regeneration and Local Services,Direct Services,030691,"Catering - Durham Dales Centre			",Supplies and Services,324117,Provisions E324,09-Nov-2018,000008010823453,HOPWELLS LTD,5811,Catering costs - provisions,54.54,0.00,54.54
Regeneration and Local Services,Direct Services,030691,"Catering - Durham Dales Centre			",Supplies and Services,324117,Provisions E324,09-Nov-2018,000008010823457,JR HOLLAND FOODSERVICE,5422,Catering costs - provisions,66.25,0.00,66.25
Adult and Health Services,Head of Adults,055643,Hawthorn House LD Respite Unit,Supplies and Services,324117,Provisions E324,09-Nov-2018,000008010823485,HOPWELLS LTD,5811,Catering costs - provisions,52.17,0.00,52.17
Adult and Health Services,Head of Adults,055643,Hawthorn House LD Respite Unit,Supplies and Services,324117,Provisions E324,09-Nov-2018,000008010823489,JR HOLLAND FOODSERVICE,5422,Catering costs - provisions,10.55,0.00,10.55
Adult and Health Services,Head of Adults,055643,Hawthorn House LD Respite Unit,Supplies and Services,324117,Provisions E324,09-Nov-2018,000008010823493,JR HOLLAND FOODSERVICE,5422,Catering costs - provisions,3.65,0.00,3.65
Regeneration and Local Services,Spatial Policy Planning Assets & Environment,031222,North Pennines Allen Valleys Landscape Partnership,Supplies and Services,348037,Subsistence E348,09-Nov-2018,000008010823499,WHITE MONK TEAROOM,5812,Subsistence,54.20,0.00,54.20
Children and Young Peoples Services,"Head of Early Help, Inclusion and Vulnerable Children",088101,Durham West & CLS 0-19 Community Family Hub,Supplies and Services,312009,Newspapers books and periodicals E312,09-Nov-2018,000008010823535,THE BOOK PEOPLE,5942,Newspapers books and periodicals,156.45,0.00,156.45
Children and Young Peoples Services,"Head of Early Help, Inclusion and Vulnerable Children",088101,Durham West & CLS 0-19 Community Family Hub,Supplies and Services,312009,Newspapers books and periodicals E312,09-Nov-2018,000008010823537,BOOKS2DOOR.COM,5942,Newspapers books and periodicals,100.96,0.00,100.96
Children and Young Peoples Services,"Head of Early Help, Inclusion and Vulnerable Children",088101,Durham West & CLS 0-19 Community Family Hub,Supplies and Services,304259,Equipment and Materials,09-Nov-2018,000008010823543,ASDA GEORGE COM LEEDS,5411,Equipment-purchase and rental,10.00,0.00,10.00
Children and Young Peoples Services,"Head of Early Help, Inclusion and Vulnerable Children",088101,Durham West & CLS 0-19 Community Family Hub,Supplies and Services,304259,Equipment and Materials,09-Nov-2018,000008010823551,AMZN MKTP UK M82Y59F24,5942,Equipment-purchase and rental,23.98,0.00,23.98
Children and Young Peoples Services,"Head of Early Help, Inclusion and Vulnerable Children",088101,Durham West & CLS 0-19 Community Family Hub,Supplies and Services,312009,Newspapers books and periodicals E312,09-Nov-2018,000008010823559,WWW.THEWORKS.CO.UK,5310,Newspapers books and periodicals,36.00,0.00,36.00
Children and Young Peoples Services,"Head of Early Help, Inclusion and Vulnerable Children",088101,Durham West & CLS 0-19 Community Family Hub,Supplies and Services,312009,Newspapers books and periodicals E312,09-Nov-2018,000008010823561,WWW.THEWORKS.CO.UK,5310,Newspapers books and periodicals,80.00,0.00,80.00
Children and Young Peoples Services,"Head of Early Help, Inclusion and Vulnerable Children",074000,TTF-Attachment and Results,Supplies and Services,312011,Newspapers books and periodicals E312,09-Nov-2018,000008010823579,AMZN Mktp UK M83JM5O54,5942,Books-school library,29.97,5.00,24.97
Children and Young Peoples Services,"Head of Early Help, Inclusion and Vulnerable Children",074000,TTF-Attachment and Results,Supplies and Services,308011,Furniture,09-Nov-2018,000008010823583,MAGUIRES,5713,Furniture repair and replacement,150.00,0.00,150.00
Resources,Digital and Customer Services,065335,School Services - Implementations,Supplies and Services,304639,Equipment and Materials,09-Nov-2018,000008010823609,WWW.ALIEXPRESS.COM,5964,Technicians-supplies,164.03,0.00,164.03
Children and Young Peoples Services,"Head of Early Help, Inclusion and Vulnerable Children",085952,Secure Education,Supplies and Services,304649,Equipment and Materials,09-Nov-2018,000008010823625,WWW.HOBBYCRAFT.CO.UK,5970,Toys,24.00,0.00,24.00
Regeneration and Local Services,Economic Development and Housing,031500,Housing Solutions - Core Team,Employees,040149,Recruitment Instruction and Training,09-Nov-2018,000008010823639,PREMIER INN,3811,Training-all costs,197.00,32.83,164.17
Children and Young Peoples Services,Head of Childrens Social Care,085372,Young People Services - North,Supplies and Services,304259,Equipment and Materials,09-Nov-2018,000008010823659,NORTHUMBERLAND CC CRD,9399,Equipment-purchase and rental,20.00,0.00,20.00
Regeneration and Local Services,Culture & Sport,054235,Bishop Auckland Town Hall Cafe,Supplies and Services,324117,Provisions E324,09-Nov-2018,000008010823681,HOPWELLS LTD,5811,Catering costs - provisions,109.96,0.00,109.96
Regeneration and Local Services,Transport and Contracted Services,031701,Care Connect All Localities,Supplies and Services,344033,Telephones,09-Nov-2018,000008010823685,BT BILL PAYMENT 2,4812,Telephones general-all costs,109.22,18.20,91.02
Regeneration and Local Services,Transport and Contracted Services,031701,Care Connect All Localities,Supplies and Services,344033,Telephones,09-Nov-2018,000008010823691,BT BILL PAYMENT 2,4812,Telephones general-all costs,109.22,18.20,91.02
Regeneration and Local Services,Culture & Sport,026591,Hardwick Park,Supplies and Services,332047,Printing Stationery and Gen Off Exps,09-Nov-2018,000008010823711,AMZN MKTP UK M81F50FB4,5942,Stationery,2.69,0.00,2.69
Regeneration and Local Services,Direct Services,021324,Catering - Meadowfield,Supplies and Services,324117,Provisions E324,09-Nov-2018,000008010823727,HOPWELLS LTD,5811,Catering costs - provisions,72.01,0.00,72.01
Regeneration and Local Services,Direct Services,021324,Catering - Meadowfield,Supplies and Services,324117,Provisions E324,09-Nov-2018,000008010823733,JR HOLLAND FOODSERVICE,5422,Catering costs - provisions,41.81,0.00,41.81
Regeneration and Local Services,Direct Services,021324,Catering - Meadowfield,Supplies and Services,324117,Provisions E324,09-Nov-2018,000008010823739,JR HOLLAND FOODSERVICE,5422,Catering costs - provisions,10.35,0.00,10.35
Adult and Health Services,Head of Adults,055301,Stanley Pathways,Supplies and Services,308011,Furniture,09-Nov-2018,000008010823765,POUNDSTRETCHER 354,5714,Furniture repair and replacement,2.49,0.00,2.49
Children and Young Peoples Services,Head of Childrens Social Care,085352,Tow Law CU,Supplies and Services,328041,Clothing uniforms and laundry E328,09-Nov-2018,000008010823957,MATALAN,5691,Clothing uniforms and laundry,45.05,7.51,37.54
Children and Young Peoples Services,Head of Childrens Social Care,085352,Tow Law CU,Supplies and Services,324117,Provisions E324,09-Nov-2018,000008010823963,TESCO STORES 4358,5411,Catering costs - provisions,40.44,6.74,33.70
Adult and Health Services,Head of Adults,055807,Newton Aycliffe Pathways,Premises,145015,Cleaning and Domestic Supplies,09-Nov-2018,000008010823993,WILKO RETAIL LIMIT,5722,Cleaning and domestic equipment,2.00,0.00,2.00
Adult and Health Services,Head of Adults,055807,Newton Aycliffe Pathways,Supplies and Services,304083,Equipment and Materials,09-Nov-2018,000008010823997,POUNDSTRETCHER 128,5714,Catering equipment,1.38,0.00,1.38
Adult and Health Services,Head of Adults,055807,Newton Aycliffe Pathways,Supplies and Services,324117,Provisions E324,09-Nov-2018,000008010823999,TESCO STORES 2916,5411,Catering costs - provisions,8.59,0.00,8.59
Adult and Health Services,Head of Adults,055807,Newton Aycliffe Pathways,Supplies and Services,324117,Provisions E324,09-Nov-2018,000008010824001,ALDI 74 774,5411,Catering costs - provisions,14.21,0.00,14.21
Regeneration and Local Services,Economic Development and Housing,030771,Durham Advance Flexible Fund,Transport,235057,Public Transport,09-Nov-2018,000008010824049,GO NORTH EAST LIMITED,4131,Staff travelling,4.00,0.00,4.00
Regeneration and Local Services,Economic Development and Housing,030554,International Relations,Transport,235057,Public Transport,09-Nov-2018,000008010824089,IPSGROUP.COM,7523,Staff travelling,3.00,0.00,3.00
Regeneration and Local Services,Culture & Sport,011060,Hardwick Park Catering,Supplies and Services,324117,Provisions E324,09-Nov-2018,000008023209059,BATLEYS PERTH,5300,Catering costs - provisions,36.96,6.16,30.80
Regeneration and Local Services,Culture & Sport,011060,Hardwick Park Catering,Supplies and Services,324117,Provisions E324,09-Nov-2018,000008023209059 - 1,BATLEYS PERTH,5300,Catering costs - provisions,161.33,,161.33
Regeneration and Local Services,Direct Services,010525,Catering - Green Lane,Supplies and Services,324117,Provisions E324,09-Nov-2018,000008023209117,BATLEYS PERTH,5300,Catering costs - provisions,175.50,29.25,146.25
Regeneration and Local Services,Direct Services,010525,Catering - Green Lane,Supplies and Services,324117,Provisions E324,09-Nov-2018,000008023209117 - 1,BATLEYS PERTH,5300,Catering costs - provisions,121.23,,121.23
Adult and Health Services,Head of Adults,055643,Hawthorn House LD Respite Unit,Supplies and Services,324117,Provisions E324,09-Nov-2018,000008023209321,BATLEYS PERTH,5300,Catering costs - provisions,14.04,2.34,11.70
Adult and Health Services,Head of Adults,055643,Hawthorn House LD Respite Unit,Supplies and Services,324117,Provisions E324,09-Nov-2018,000008023209321 - 1,BATLEYS PERTH,5300,Catering costs - provisions,45.40,,45.40
Children and Young Peoples Services,Head of Childrens Social Care,085342,9 Cedar Drive Aycliffe,Supplies and Services,328041,Clothing uniforms and laundry E328,10-Nov-2018,000008010822845,W BOYES & CO LTD NEWTO,5310,Clothing uniforms and laundry,16.35,0.00,16.35
Children and Young Peoples Services,Head of Childrens Social Care,085342,9 Cedar Drive Aycliffe,Supplies and Services,328041,Clothing uniforms and laundry E328,10-Nov-2018,000008010822853,W BOYES & CO LTD NEWTO,5310,Clothing uniforms and laundry,14.00,0.00,14.00
Children and Young Peoples Services,Head of Childrens Social Care,085342,9 Cedar Drive Aycliffe,Supplies and Services,328041,Clothing uniforms and laundry E328,10-Nov-2018,000008010822855,W BOYES & CO LTD NEWTO,5310,Clothing uniforms and laundry,10.70,0.00,10.70
Children and Young Peoples Services,"Head of Early Help, Inclusion and Vulnerable Children",085954,Walworth,Supplies and Services,324117,Provisions E324,10-Nov-2018,000008010823105,TESCO STORES 6329,5411,Catering costs - provisions,103.47,0.00,103.47
Regeneration and Local Services,Economic Development and Housing,030554,International Relations,Supplies and Services,304403,Equipment and Materials,10-Nov-2018,000008010823291,BEAMISH MUSEUM LTD,5947,Other consumables,72.00,0.00,72.00
Children and Young Peoples Services,Head of Childrens Social Care,085342,9 Cedar Drive Aycliffe,Supplies and Services,324117,Provisions E324,10-Nov-2018,000008010823405,HERON FOODS LTD,5499,Catering costs - provisions,105.42,0.00,105.42
Children and Young Peoples Services,Head of Childrens Social Care,085342,9 Cedar Drive Aycliffe,Supplies and Services,324117,Provisions E324,10-Nov-2018,000008010823409,HERON FOODS LTD,5499,Catering costs - provisions,72.22,0.00,72.22
Children and Young Peoples Services,"Head of Early Help, Inclusion and Vulnerable Children",074000,TTF-Attachment and Results,Supplies and Services,312011,Newspapers books and periodicals E312,10-Nov-2018,000008010823585,AMZN Mktp UK M84QH2F94,5942,Books-school library,29.97,5.00,24.97
Children and Young Peoples Services,"Head of Early Help, Inclusion and Vulnerable Children",074000,TTF-Attachment and Results,Supplies and Services,312011,Newspapers books and periodicals E312,10-Nov-2018,000008010823589,AMZN MKTP UK M855S44V4,5942,Books-school library,23.99,4.00,19.99
Children and Young Peoples Services,"Head of Early Help, Inclusion and Vulnerable Children",074000,TTF-Attachment and Results,Supplies and Services,312011,Newspapers books and periodicals E312,10-Nov-2018,000008010823591,AMZN MKTP UK M89H75FN4,5942,Books-school library,29.97,5.00,24.97
Regeneration and Local Services,Spatial Policy Planning Assets & Environment,031040,Building Control - Central/East Area,Supplies and Services,352001,Conference Expenses,10-Nov-2018,000008010823635,PARK PLAZA WESTMINSTER,7011,Conferencesseminars fees etc,228.00,38.00,190.00
Regeneration and Local Services,Culture & Sport,026591,Hardwick Park,Supplies and Services,332047,Printing Stationery and Gen Off Exps,10-Nov-2018,000008010823701,AMZN Mktp UK M84Y92FH4,5942,Stationery,8.48,0.00,8.48
Regeneration and Local Services,Culture & Sport,026591,Hardwick Park,Supplies and Services,332047,Printing Stationery and Gen Off Exps,10-Nov-2018,000008010823707,AMZN Mktp UK M87YI0F24,5942,Stationery,3.99,0.00,3.99
Regeneration and Local Services,Culture & Sport,026591,Hardwick Park,Supplies and Services,332047,Printing Stationery and Gen Off Exps,10-Nov-2018,000008010823715,AMZN MKTP UK M88104FC4,5942,Stationery,46.14,0.00,46.14
Regeneration and Local Services,Economic Development and Housing,030554,International Relations,Transport,235057,Public Transport,10-Nov-2018,000008010823861,PRINCE BISHOP SHOPPING,7523,Staff travelling,4.80,0.80,4.00
Regeneration and Local Services,Economic Development and Housing,030554,International Relations,Supplies and Services,348037,Subsistence E348,10-Nov-2018,000008010823863,LA SPAGHETTATA,5812,Subsistence,202.50,0.00,202.50
Children and Young Peoples Services,Head of Childrens Social Care,085332,Middlestone Moor CU,Supplies and Services,324117,Provisions E324,10-Nov-2018,000008010823883,ASDA SUPERSTORE 4987,5411,Catering costs - provisions,220.37,0.00,220.37
Children and Young Peoples Services,Head of Childrens Social Care,085332,Middlestone Moor CU,Supplies and Services,384871,Miscellaneous Expenses,10-Nov-2018,000008010823889,VUE CINEMAS WWW,7832,Training-other activities,34.44,0.00,34.44
Children and Young Peoples Services,Head of Childrens Social Care,085352,Tow Law CU,Supplies and Services,328041,Clothing uniforms and laundry E328,10-Nov-2018,000008010823967,WWW.ARGOS.CO.UK,5310,Clothing uniforms and laundry,98.92,16.49,82.43
Children and Young Peoples Services,Head of Childrens Social Care,085352,Tow Law CU,Supplies and Services,324117,Provisions E324,10-Nov-2018,000008010823971,CO-OP GROUP 010989,5411,Catering costs - provisions,11.03,1.84,9.19
Children and Young Peoples Services,Head of Childrens Social Care,085352,Tow Law CU,Supplies and Services,312011,Newspapers books and periodicals E312,10-Nov-2018,000008010823977,HOME BARGAINS SPENNYMO,5251,Books-school library,2.65,0.44,2.21
Resources,Legal & Democratic Services,067910,Democratic Representation,Supplies and Services,332047,Printing Stationery and Gen Off Exps,10-Nov-2018,000008010824003,AMZN Mktp UK M83YH8F84,5942,Stationery,11.48,0.00,11.48
Transformation and Partnerships,Communications Management,060270,Communications and Marketing,Supplies and Services,336005,Advertising E336,10-Nov-2018,000008010824005,GOOGLE ADS8772529636,5968,Advertising other than for staff,483.19,0.00,483.19
Regeneration and Local Services,Economic Development and Housing,030554,International Relations,Supplies and Services,324117,Provisions E324,10-Nov-2018,000008010824095,ICELAND,5411,Catering costs - provisions,2.00,0.00,2.00
Adult and Health Services,Head of Adults,055302,Durham Pathways,Supplies and Services,324117,Provisions E324,11-Nov-2018,000008010822443,ALDI 774 01,5411,Catering costs - provisions,12.42,0.00,12.42
Children and Young Peoples Services,Head of Childrens Social Care,085342,9 Cedar Drive Aycliffe,Supplies and Services,324117,Provisions E324,11-Nov-2018,000008010822861,TESCO STORES 2916,5411,Catering costs - provisions,41.98,0.00,41.98
Children and Young Peoples Services,"Head of Early Help, Inclusion and Vulnerable Children",088101,Durham West & CLS 0-19 Community Family Hub,Supplies and Services,304649,Equipment and Materials,11-Nov-2018,000008010823063,AMZN Mktp UK M82U604Y4,5942,Toys,158.60,0.00,158.60
Children and Young Peoples Services,"Head of Early Help, Inclusion and Vulnerable Children",088101,Durham West & CLS 0-19 Community Family Hub,Supplies and Services,312009,Newspapers books and periodicals E312,11-Nov-2018,000008010823067,AMZN Mktp UK M82Z844V4,5942,Newspapers books and periodicals,14.99,0.00,14.99
Children and Young Peoples Services,"Head of Early Help, Inclusion and Vulnerable Children",088101,Durham West & CLS 0-19 Community Family Hub,Supplies and Services,304649,Equipment and Materials,11-Nov-2018,000008010823071,AMZN Mktp UK M88SR74B4,5942,Toys,68.96,0.00,68.96
Children and Young Peoples Services,"Head of Early Help, Inclusion and Vulnerable Children",085962,Aycliffe Secure - Durham,Supplies and Services,324117,Provisions E324,11-Nov-2018,000008010823111,TESCO STORES 6329,5411,Catering costs - provisions,79.91,0.00,79.91
Children and Young Peoples Services,"Head of Early Help, Inclusion and Vulnerable Children",085965,Barnard,Supplies and Services,384999,Miscellaneous Expenses,11-Nov-2018,000008010823113,AMZN MKTP UK M804964V4,5942,Other expenses,14.90,2.48,12.42
Children and Young Peoples Services,"Head of Early Help, Inclusion and Vulnerable Children",085965,Barnard,Supplies and Services,384999,Miscellaneous Expenses,11-Nov-2018,000008010823119,AMZN MKTP UK M838R5494,5942,Other expenses,74.20,12.37,61.83
Children and Young Peoples Services,"Head of Early Help, Inclusion and Vulnerable Children",085965,Barnard,Supplies and Services,384999,Miscellaneous Expenses,11-Nov-2018,000008010823123,AMZN MKTP UK M84HY44Q4,5942,Other expenses,7.99,1.33,6.66
Children and Young Peoples Services,"Head of Early Help, Inclusion and Vulnerable Children",085965,Barnard,Supplies and Services,384999,Miscellaneous Expenses,11-Nov-2018,000008010823127,AMZN MKTP UK M89580LC4,5942,Other expenses,127.88,0.00,127.88
Regeneration and Local Services,Culture & Sport,010919,Countryside Site Management,Supplies and Services,312011,Newspapers books and periodicals E312,11-Nov-2018,000008010823181,AMZN Mktp UK M89NU54Q4,5942,Books-school library,23.99,0.00,23.99
Children and Young Peoples Services,"Head of Early Help, Inclusion and Vulnerable Children",088101,Durham West & CLS 0-19 Community Family Hub,Supplies and Services,312009,Newspapers books and periodicals E312,11-Nov-2018,000008010823545,AMZN Mktp UK M83NC6464,5942,Newspapers books and periodicals,56.47,0.00,56.47
Children and Young Peoples Services,"Head of Early Help, Inclusion and Vulnerable Children",088101,Durham West & CLS 0-19 Community Family Hub,Supplies and Services,312009,Newspapers books and periodicals E312,11-Nov-2018,000008010823555,AMZN Mktp UK M850I0LE4,5942,Newspapers books and periodicals,38.86,0.00,38.86
Children and Young Peoples Services,"Head of Early Help, Inclusion and Vulnerable Children",074000,TTF-Attachment and Results,Supplies and Services,312011,Newspapers books and periodicals E312,11-Nov-2018,000008010823597,AMZN Mktp UK M84BF3LM4,5942,Books-school library,23.99,4.00,19.99
Children and Young Peoples Services,"Head of Early Help, Inclusion and Vulnerable Children",074000,TTF-Attachment and Results,Supplies and Services,312011,Newspapers books and periodicals E312,11-Nov-2018,000008010823599,AMZN Mktp UK M86BK7L44,5942,Books-school library,23.99,4.00,19.99
Resources,Legal & Democratic Services,067910,Democratic Representation,Supplies and Services,332047,Printing Stationery and Gen Off Exps,11-Nov-2018,000008010824007,AMZN MKTP UK M830K64U4,5942,Stationery,35.70,5.95,29.75
Children and Young Peoples Services,"Head of Early Help, Inclusion and Vulnerable Children",085965,Barnard,Supplies and Services,384999,Miscellaneous Expenses,11-Nov-2018,000008018777139,AMZN MKTP UK M832X7LL4,5942,Other expenses,16.59,0.00,16.59
Resources,Legal & Democratic Services,067910,Democratic Representation,Supplies and Services,332047,Printing Stationery and Gen Off Exps,11-Nov-2018,000008018777753,AMZN MKTP UK M88IG4L84,5942,Stationery,28.29,4.72,23.57
Resources,Legal & Democratic Services,067910,Democratic Representation,Supplies and Services,332047,Printing Stationery and Gen Off Exps,11-Nov-2018,000008018777757,AMZN MKTP UK M89IN2L84,5942,Stationery,7.98,0.00,7.98
Children and Young Peoples Services,Head of Education and Skills,071801,Selby Cottage Childcare Centre,Supplies and Services,324117,Provisions E324,12-Nov-2018,000008018776665,ASDA GROCERIES ONLINE,5411,Catering costs - provisions,77.39,0.00,77.39
Transformation and Partnerships,Communications Management,060270,Communications and Marketing,Supplies and Services,304335,Equipment and Materials,12-Nov-2018,000008018776673,PAYPAL ENVATO MKPL EN,5999,ICT supplies etc,32.74,0.00,32.74
Resources,Digital and Customer Services,065487,ICT Telephony Recharges,Supplies and Services,344033,Telephones,12-Nov-2018,000008018776677,AMZN MKTP UK M88FJ6Z84,5942,Telephones general-all costs,149.00,0.00,149.00
Children and Young Peoples Services,Head of Childrens Social Care,085342,9 Cedar Drive Aycliffe,Supplies and Services,352001,Conference Expenses,12-Nov-2018,000008018776795,TRAVELODGE,3615,Conferencesseminars fees etc,84.00,0.00,84.00
Dedicated Schools Grant,DSG High Needs Block,079050,SENSS-Sensory,Supplies and Services,304403,Equipment and Materials,12-Nov-2018,000008018776801,W BOYES & CO LTD CHEST,5310,Other consumables,12.15,0.00,12.15
Adult and Health Services,Head of Adults,052760,OP Management,Charges,720130,Fees and Charges,12-Nov-2018,000008018776819,WWW.MONEYCLAIM.GOV,9399,Fees-legal,35.00,0.00,35.00
Regeneration and Local Services,Direct Services,021242,Catering - County Hall,Supplies and Services,324117,Provisions E324,12-Nov-2018,000008018776897,JR HOLLAND FOODSERVICE,5422,Catering costs - provisions,72.38,0.00,72.38
Regeneration and Local Services,Direct Services,021242,Catering - County Hall,Supplies and Services,324117,Provisions E324,12-Nov-2018,000008018776907,JR HOLLAND FOODSERVICE,5422,Catering costs - provisions,13.84,0.00,13.84
Regeneration and Local Services,Culture & Sport,054233,Bishop Auckland Town Hall Library,Supplies and Services,328041,Clothing uniforms and laundry E328,12-Nov-2018,000008018776913,POUNDLAND LTD 1390,5310,Clothing uniforms and laundry,7.00,1.17,5.83
Regeneration and Local Services,Economic Development and Housing,030771,Durham Advance Flexible Fund,Supplies and Services,384956,Miscellaneous Expenses,12-Nov-2018,000008018776931,WWW.DURHAM.GOV.UK,9399,Licences,12.00,0.00,12.00
Children and Young Peoples Services,Head of Childrens Social Care,085361,LAC & Permanence Team 1,Supplies and Services,304403,Equipment and Materials,12-Nov-2018,000008018776975,GRO HM PASSPORT OFFICE,9399,Other consumables,9.25,0.00,9.25
Children and Young Peoples Services,Head of Childrens Social Care,085333,Coxhoe Satelite Home,Supplies and Services,324117,Provisions E324,12-Nov-2018,000008018776977,CO-OP GROUP 310016,5411,Catering costs - provisions,5.30,0.00,5.30
Regeneration and Local Services,Culture & Sport,054306,Peterlee Library,Supplies and Services,308011,Furniture,12-Nov-2018,000008018776985,DISPLAYSENSE.CO.UK,5046,Furniture repair and replacement,194.04,32.34,161.70
Children and Young Peoples Services,Head of Childrens Social Care,085334,West Rainton Satelite Home,Supplies and Services,324117,Provisions E324,12-Nov-2018,000008018777027,ALDI 32 774,5411,Catering costs - provisions,20.48,3.41,17.07
Children and Young Peoples Services,Head of Childrens Social Care,085334,West Rainton Satelite Home,Supplies and Services,324117,Provisions E324,12-Nov-2018,000008018777029,ALDI 32 774,5411,Catering costs - provisions,6.00,1.00,5.00
Children and Young Peoples Services,Head of Childrens Social Care,085334,West Rainton Satelite Home,Supplies and Services,324117,Provisions E324,12-Nov-2018,000008018777029 - 1,ALDI 32 774,5411,Catering costs - provisions,24.57,,24.57
Children and Young Peoples Services,Childrens Services Operational Support,052986,CYPS - Locality and Operational Support,Supplies and Services,304259,Equipment and Materials,12-Nov-2018,000008018777035,NCC CARD PAYMENT INTER,9399,Equipment-purchase and rental,13.00,0.00,13.00
Children and Young Peoples Services,Head of Childrens Social Care,085342,9 Cedar Drive Aycliffe,Supplies and Services,324117,Provisions E324,12-Nov-2018,000008018777045,COOPLANDS BAKERY,5462,Catering costs - provisions,7.30,0.00,7.30
Children and Young Peoples Services,Head of Childrens Social Care,085342,9 Cedar Drive Aycliffe,Supplies and Services,348037,Subsistence E348,12-Nov-2018,000008018777049,GREGGS,5812,Subsistence,10.50,0.00,10.50
Children and Young Peoples Services,Head of Education and Skills,071732,Dean Bank Childcare,Supplies and Services,324117,Provisions E324,12-Nov-2018,000008018777057,ASDA GROCERIES ONLINE,5411,Catering costs - provisions,47.19,0.00,47.19
Children and Young Peoples Services,Head of Education and Skills,071732,Dean Bank Childcare,Supplies and Services,324117,Provisions E324,12-Nov-2018,000008018777063,WM MORRISONS STORE,5411,Catering costs - provisions,28.60,0.00,28.60
Regeneration and Local Services,Culture & Sport,054813,Gala Theatre - Technical,Supplies and Services,312011,Newspapers books and periodicals E312,12-Nov-2018,000008018777069,AMZN Mktp UK M801H3NV4,5942,Books-school library,93.90,0.00,93.90
Regeneration and Local Services,Culture & Sport,054813,Gala Theatre - Technical,Supplies and Services,312011,Newspapers books and periodicals E312,12-Nov-2018,000008018777071,Amazon.co.uk M86VF7N54,5969,Books-school library,7.98,0.00,7.98
Regeneration and Local Services,Culture & Sport,054813,Gala Theatre - Technical,Supplies and Services,384999,Miscellaneous Expenses,12-Nov-2018,000008018777077,WWW.DAFTRETAIL.CO.UK,5970,Other expenses,29.00,0.00,29.00
Children and Young Peoples Services,"Head of Early Help, Inclusion and Vulnerable Children",085965,Barnard,Supplies and Services,384999,Miscellaneous Expenses,12-Nov-2018,000008018777143,AMZN MKTP UK M86FW0Z64,5942,Other expenses,28.40,4.73,23.67
Children and Young Peoples Services,"Head of Early Help, Inclusion and Vulnerable Children",085952,Secure Education,Supplies and Services,324117,Provisions E324,12-Nov-2018,000008018777149,TESCO STORES 6329,5411,Catering costs - provisions,251.32,0.00,251.32
Regeneration and Local Services,Culture & Sport,011060,Hardwick Park Catering,Supplies and Services,324117,Provisions E324,12-Nov-2018,000008018777153,JR HOLLAND FOODSERVICE,5422,Catering costs - provisions,46.18,0.00,46.18
Regeneration and Local Services,Culture & Sport,010919,Countryside Site Management,Supplies and Services,304221,Equipment and Materials,12-Nov-2018,000008018777173,HOMEBASE,5211,Direct materials,234.99,0.00,234.99
Children and Young Peoples Services,"Head of Early Help, Inclusion and Vulnerable Children",085957,Secure Management,Supplies and Services,328041,Clothing uniforms and laundry E328,12-Nov-2018,000008018777185,FOOTASYLUM PLC,5691,Clothing uniforms and laundry,-79.99,0.00,-79.99
Regeneration and Local Services,Direct Services,010525,Catering - Green Lane,Supplies and Services,324117,Provisions E324,12-Nov-2018,000008018777225,WWW.ADELIEFOODS.CO.UK,5499,Catering costs - provisions,32.36,0.00,32.36
Children and Young Peoples Services,Head of Childrens Social Care,085551,Short Break Services-Park Hse Sher,Supplies and Services,328041,Clothing uniforms and laundry E328,12-Nov-2018,000008018777231,ARGOS LTD,5310,Clothing uniforms and laundry,29.99,0.00,29.99
Children and Young Peoples Services,Head of Childrens Social Care,085551,Short Break Services-Park Hse Sher,Supplies and Services,324117,Provisions E324,12-Nov-2018,000008018777237,ALDI 12 774,5411,Catering costs - provisions,30.48,5.08,25.40
Children and Young Peoples Services,Head of Childrens Social Care,085551,Short Break Services-Park Hse Sher,Supplies and Services,324117,Provisions E324,12-Nov-2018,000008018777237 - 1,ALDI 12 774,5411,Catering costs - provisions,5.31,,5.31
Children and Young Peoples Services,Head of Education and Skills,071733,Shildon Childcare,Supplies and Services,304259,Equipment and Materials,12-Nov-2018,000008018777247,WWW.ICO.GOV.UK,9399,Equipment-purchase and rental,40.00,0.00,40.00
Regeneration and Local Services,Economic Development and Housing,030554,International Relations,Supplies and Services,304999,Equipment and Materials,12-Nov-2018,000008018777277,CENTRE FOR LIFE - TIME,7991,Misc equipment tools and materials,13.00,0.00,13.00
Resources,Resources Management,069000,Resources Management,Supplies and Services,324117,Provisions E324,12-Nov-2018,000008018777357,ICELAND,5411,Catering costs - provisions,13.50,0.00,13.50
Adult and Health Services,Head of Adults,055301,Stanley Pathways,Supplies and Services,324117,Provisions E324,12-Nov-2018,000008018777397,POUNDSTRETCHER 354,5714,Catering costs - provisions,9.19,0.00,9.19
Children and Young Peoples Services,"Head of Early Help, Inclusion and Vulnerable Children",088101,Durham West & CLS 0-19 Community Family Hub,Supplies and Services,312009,Newspapers books and periodicals E312,12-Nov-2018,000008018777471,AMZN Mktp UK M83WI3N14,5942,Newspapers books and periodicals,21.47,0.00,21.47
Children and Young Peoples Services,"Head of Early Help, Inclusion and Vulnerable Children",085957,Secure Management,Supplies and Services,384999,Miscellaneous Expenses,12-Nov-2018,000008018777479,AMZN Mktp UK M812C2ZR4,5942,Other expenses,11.99,2.00,9.99
Children and Young Peoples Services,"Head of Early Help, Inclusion and Vulnerable Children",085965,Barnard,Supplies and Services,304649,Equipment and Materials,12-Nov-2018,000008018777485,AMZN Mktp UK M881S0NR4,5942,Toys,24.94,4.16,20.78
Children and Young Peoples Services,"Head of Early Help, Inclusion and Vulnerable Children",085955,Auckland,Supplies and Services,384999,Miscellaneous Expenses,12-Nov-2018,000008018777487,WWW.ARGOS.CO.UK,5310,Other expenses,138.95,0.00,138.95
Children and Young Peoples Services,Childrens Services Operational Support,052986,CYPS - Locality and Operational Support,Supplies and Services,328041,Clothing uniforms and laundry E328,12-Nov-2018,000008018777527,WWW.ARGOS.CO.UK,5310,Clothing uniforms and laundry,18.95,0.00,18.95
Children and Young Peoples Services,Childrens Services Operational Support,052986,CYPS - Locality and Operational Support,Supplies and Services,328041,Clothing uniforms and laundry E328,12-Nov-2018,000008018777535,WWW.ARGOS.CO.UK,5310,Clothing uniforms and laundry,58.00,0.00,58.00
Regeneration and Local Services,Economic Development and Housing,030690,Durham Dales Centre - Tourist Information Centre,Supplies and Services,328041,Clothing uniforms and laundry E328,12-Nov-2018,000008018777541,WWW.AKHOSIERY.CO.UK,5621,Clothing uniforms and laundry,597.42,99.57,497.85
Regeneration and Local Services,Economic Development and Housing,030690,Durham Dales Centre - Tourist Information Centre,Supplies and Services,328041,Clothing uniforms and laundry E328,12-Nov-2018,000008018777541 - 1,WWW.AKHOSIERY.CO.UK,5621,Clothing uniforms and laundry,57.30,,57.30
Regeneration and Local Services,Culture & Sport,011060,Hardwick Park Catering,Supplies and Services,304083,Equipment and Materials,12-Nov-2018,000008018777549,AMZN Mktp UK M82L72NE4,5942,Catering equipment,14.07,2.35,11.72
Regeneration and Local Services,Culture & Sport,026591,Hardwick Park,Supplies and Services,332047,Printing Stationery and Gen Off Exps,12-Nov-2018,000008018777555,AMZN Mktp UK M873H2ZZ4,5942,Stationery,16.93,2.82,14.11
Regeneration and Local Services,Culture & Sport,026591,Hardwick Park,Supplies and Services,332047,Printing Stationery and Gen Off Exps,12-Nov-2018,000008018777559,Amazon.co.uk M86LC3NJ4,5969,Stationery,16.28,2.71,13.57
Regeneration and Local Services,Culture & Sport,011060,Hardwick Park Catering,Supplies and Services,304083,Equipment and Materials,12-Nov-2018,000008018777565,CATERING24 LIMITED,7399,Catering equipment,30.80,5.13,25.67
Children and Young Peoples Services,Childrens Services Operational Support,052986,CYPS - Locality and Operational Support,Supplies and Services,304259,Equipment and Materials,12-Nov-2018,000008018777569,WWW.DURHAM.GOV.UK,9399,Equipment-purchase and rental,20.00,0.00,20.00
Children and Young Peoples Services,Head of Childrens Social Care,085352,Tow Law CU,Supplies and Services,348037,Subsistence E348,12-Nov-2018,000008018777591,GREGGS,5812,Subsistence,19.50,0.00,19.50
Regeneration and Local Services,Culture & Sport,054820,Gala Theatre - Overheads,Supplies and Services,324117,Provisions E324,12-Nov-2018,000008018777641,CATERING LEISURE,5499,Catering costs - provisions,34.05,0.00,34.05
Regeneration and Local Services,Culture & Sport,054820,Gala Theatre - Overheads,Supplies and Services,304999,Equipment and Materials,12-Nov-2018,000008018777647,WWW.BERTIESDIRECT.CO.U,5072,Misc equipment tools and materials,86.82,0.00,86.82
Regeneration and Local Services,Culture & Sport,054820,Gala Theatre - Overheads,Supplies and Services,312011,Newspapers books and periodicals E312,12-Nov-2018,000008018777653,WWW.CUTPRICEWHOLESALER,5251,Books-school library,378.00,0.00,378.00
Children and Young Peoples Services,Head of Childrens Social Care,085332,Middlestone Moor CU,Supplies and Services,324093,Provisions E324,12-Nov-2018,000008018777661,WWW.PARENTMAIL.CO.,8299,Meals-School Meals Service,55.00,0.00,55.00
Resources,Legal & Democratic Services,067910,Democratic Representation,Supplies and Services,332047,Printing Stationery and Gen Off Exps,12-Nov-2018,000008018777739,AMZN Mktp UK M84C49ZN4,5942,Stationery,34.93,0.00,34.93
Resources,Legal & Democratic Services,067910,Democratic Representation,Supplies and Services,332047,Printing Stationery and Gen Off Exps,12-Nov-2018,000008018777745,AMZN Mktp UK M80CG1NL4,5942,Stationery,54.89,9.15,45.74
Resources,Legal & Democratic Services,067910,Democratic Representation,Supplies and Services,332047,Printing Stationery and Gen Off Exps,12-Nov-2018,000008018777749,AMZN Mktp UK M84PW2Z34,5942,Stationery,44.91,7.49,37.42
Regeneration and Local Services,Spatial Policy Planning Assets & Environment,031071,Sustainability and Climate Change,Supplies and Services,348037,Subsistence E348,12-Nov-2018,000008018777781,LEON BIRMINGHAM,5812,Subsistence,9.70,1.62,8.08
Regeneration and Local Services,Culture & Sport,011230,Operations Locality 2,Supplies and Services,324117,Provisions E324,12-Nov-2018,000008018777831,ASDA SUPERSTORE 4987,5411,Catering costs - provisions,124.14,0.00,124.14
Children and Young Peoples Services,Head of Childrens Social Care,085342,9 Cedar Drive Aycliffe,Supplies and Services,348037,Subsistence E348,12-Nov-2018,000008023208605,GRETNA GREEN HOTEL,5813,Subsistence,39.85,0.00,39.85
Regeneration and Local Services,Culture & Sport,054812,Gala Theatre - Catering etc,Supplies and Services,324117,Provisions E324,12-Nov-2018,000008023208805,BATLEYS PERTH,5300,Catering costs - provisions,85.74,14.29,71.45
Regeneration and Local Services,Culture & Sport,054812,Gala Theatre - Catering etc,Supplies and Services,324117,Provisions E324,12-Nov-2018,000008023208805 - 1,BATLEYS PERTH,5300,Catering costs - provisions,134.62,,134.62
Regeneration and Local Services,Culture & Sport,054813,Gala Theatre - Technical,Supplies and Services,312011,Newspapers books and periodicals E312,12-Nov-2018,000008023208915,AMZN MKTP UK M84122NS4,5942,Books-school library,6.83,0.00,6.83
Regeneration and Local Services,Economic Development and Housing,031500,Housing Solutions - Core Team,Employees,040149,Recruitment Instruction and Training,12-Nov-2018,000008023209433,PREMIER INN,3811,Training-all costs,236.00,39.33,196.67
Regeneration and Local Services,Economic Development and Housing,031500,Housing Solutions - Core Team,Employees,040149,Recruitment Instruction and Training,12-Nov-2018,000008023209437,PREMIER INN,3811,Training-all costs,72.00,12.00,60.00
Regeneration and Local Services,Direct Services,030691,"Catering - Durham Dales Centre			",Supplies and Services,324117,Provisions E324,12-Nov-2018,000008134120637,BATLEYS PERTH,5300,Catering costs - provisions,36.90,6.15,30.75
Regeneration and Local Services,Direct Services,030691,"Catering - Durham Dales Centre			",Supplies and Services,324117,Provisions E324,12-Nov-2018,000008134120637 - 1,BATLEYS PERTH,5300,Catering costs - provisions,28.58,,28.58
Transformation and Partnerships,Communications Management,060270,Communications and Marketing,Supplies and Services,304335,Equipment and Materials,13-Nov-2018,000008018776679,PAYPAL ENVATO MKPL EN,5999,ICT supplies etc,0.90,0.00,0.90
Adult and Health Services,Head of Adults,055302,Durham Pathways,Supplies and Services,312011,Newspapers books and periodicals E312,13-Nov-2018,000008018776787,AMZN Mktp UK M88LJ43K4,5942,Books-school library,39.10,6.52,32.58
Regeneration and Local Services,Direct Services,010301,C&G - North Grounds Maintenance,Supplies and Services,304221,Equipment and Materials,13-Nov-2018,000008023208447,HARELAW SAWMILL,5211,Direct materials,166.70,27.78,138.92
Resources,Digital and Customer Services,065481,Technical Services,Supplies and Services,312009,Newspapers books and periodicals E312,13-Nov-2018,000008023208455,Amazon.co.uk M83TH33D4,5969,Newspapers books and periodicals,57.24,0.00,57.24
Regeneration and Local Services,Economic Development and Housing,031576,B& B - Temp Accom,Supplies and Services,364320,Grants to Voluntary Organisations,13-Nov-2018,000008023208461,HOTEL 52,7011,Accommodation assistance,255.00,0.00,255.00
Children and Young Peoples Services,Head of Education and Skills,075021,Youth Employment Initiative,Supplies and Services,384199,Miscellaneous Expenses,13-Nov-2018,000008023208499,HARTLEPOOL BC CNP,9399,Other hired and contracted services,4.02,0.67,3.35
Children and Young Peoples Services,Head of Education and Skills,075021,Youth Employment Initiative,Supplies and Services,384199,Miscellaneous Expenses,13-Nov-2018,000008023208499 - 1,HARTLEPOOL BC CNP,9399,Other hired and contracted services,9.98,,9.98
Children and Young Peoples Services,Head of Education and Skills,075021,Youth Employment Initiative,Supplies and Services,384199,Miscellaneous Expenses,13-Nov-2018,000008023208505,SUNDERLAND CC,9399,Other hired and contracted services,20.00,0.00,20.00
Children and Young Peoples Services,Head of Education and Skills,075021,Youth Employment Initiative,Supplies and Services,384199,Miscellaneous Expenses,13-Nov-2018,000008023208507,WWW.DURHAM.GOV.UK,9399,Other hired and contracted services,12.00,0.00,12.00
Children and Young Peoples Services,Head of Childrens Social Care,085342,9 Cedar Drive Aycliffe,Employees,040149,Recruitment Instruction and Training,13-Nov-2018,000008023208601,BLK BB CharlieWallerT,8398,Training-all costs,6.50,0.00,6.50
Children and Young Peoples Services,Head of Childrens Social Care,085342,9 Cedar Drive Aycliffe,Supplies and Services,348037,Subsistence E348,13-Nov-2018,000008023208609,MCDONALDS,5812,Subsistence,4.47,0.00,4.47
Children and Young Peoples Services,Head of Childrens Social Care,085332,Middlestone Moor CU,Supplies and Services,324117,Provisions E324,13-Nov-2018,000008023208619,TESCO STORES 2371,5411,Catering costs - provisions,115.66,0.00,115.66
Children and Young Peoples Services,Head of Childrens Social Care,085332,Middlestone Moor CU,Supplies and Services,324117,Provisions E324,13-Nov-2018,000008023208623,TESCO STORES 2916,5411,Catering costs - provisions,8.95,0.00,8.95
Children and Young Peoples Services,Head of Childrens Social Care,085332,Middlestone Moor CU,Supplies and Services,304259,Equipment and Materials,13-Nov-2018,000008023208627,ARGOS LTD,5310,Equipment-purchase and rental,29.99,0.00,29.99
Regeneration and Local Services,Economic Development and Housing,030699,Business Growth and Innovation General,Supplies and Services,304999,Equipment and Materials,13-Nov-2018,000008023208639,LINKEDIN-343 6701136,5968,Misc equipment tools and materials,25.28,0.00,25.28
Children and Young Peoples Services,Head of Childrens Social Care,085342,9 Cedar Drive Aycliffe,Supplies and Services,324117,Provisions E324,13-Nov-2018,000008023208653,TESCO STORES 2916,5411,Catering costs - provisions,58.21,0.00,58.21
Children and Young Peoples Services,Head of Childrens Social Care,085333,Coxhoe Satelite Home,Supplies and Services,304999,Equipment and Materials,13-Nov-2018,000008023208683,VISION EXPRESS,8043,Misc equipment tools and materials,69.70,0.00,69.70
Regeneration and Local Services,Direct Services,021242,Catering - County Hall,Supplies and Services,324117,Provisions E324,13-Nov-2018,000008023208731,WWW.ADELIEFOODS.CO.UK,5499,Catering costs - provisions,144.72,0.00,144.72
Regeneration and Local Services,Direct Services,021242,Catering - County Hall,Supplies and Services,324117,Provisions E324,13-Nov-2018,000008023208737,WWW.ADELIEFOODS.CO.UK,5499,Catering costs - provisions,80.91,0.00,80.91
Regeneration and Local Services,Direct Services,021242,Catering - County Hall,Supplies and Services,324117,Provisions E324,13-Nov-2018,000008023208739,WWW.ADELIEFOODS.CO.UK,5499,Catering costs - provisions,74.42,0.00,74.42
Regeneration and Local Services,Direct Services,021242,Catering - County Hall,Supplies and Services,324117,Provisions E324,13-Nov-2018,000008023208743,JR HOLLAND FOODSERVICE,5422,Catering costs - provisions,159.46,0.00,159.46
Regeneration and Local Services,Direct Services,021242,Catering - County Hall,Supplies and Services,324117,Provisions E324,13-Nov-2018,000008023208749,JR HOLLAND FOODSERVICE,5422,Catering costs - provisions,6.90,0.00,6.90
Resources,Digital and Customer Services,065461,Business Support,Supplies and Services,372009,Subscriptions E372,13-Nov-2018,000008023208767,WEB NETWORKSOLUTIONS,5968,Subscriptions 372009,182.09,0.00,182.09
Regeneration and Local Services,Direct Services,010367,C&G - South Grounds Maintenance,Supplies and Services,304221,Equipment and Materials,13-Nov-2018,000008023208775,JEWSON LTD,5211,Direct materials,48.84,8.14,40.70
Regeneration and Local Services,Culture & Sport,054812,Gala Theatre - Catering etc,Supplies and Services,324117,Provisions E324,13-Nov-2018,000008023208801,JR HOLLAND FOODSERVICE,5422,Catering costs - provisions,35.69,0.00,35.69
Children and Young Peoples Services,Head of Childrens Social Care,085361,LAC & Permanence Team 1,Supplies and Services,384871,Miscellaneous Expenses,13-Nov-2018,000008023208875,WWW.INFINITEAIR.CO.UK,7991,Training-other activities,23.85,0.00,23.85
Children and Young Peoples Services,Childrens Services Operational Support,052986,CYPS - Locality and Operational Support,Supplies and Services,304259,Equipment and Materials,13-Nov-2018,000008023208895,NOTTS COUNTY COUNCIL,9399,Equipment-purchase and rental,11.00,0.00,11.00
Children and Young Peoples Services,Childrens Services Operational Support,052986,CYPS - Locality and Operational Support,Supplies and Services,304259,Equipment and Materials,13-Nov-2018,000008023208899,NCC CARD PAYMENT,9399,Equipment-purchase and rental,-13.00,0.00,-13.00
Children and Young Peoples Services,Head of Education and Skills,071732,Dean Bank Childcare,Supplies and Services,312011,Newspapers books and periodicals E312,13-Nov-2018,000008023208903,AMZN MKTP UK M867853N4,5942,Books-school library,29.99,0.00,29.99
Children and Young Peoples Services,Head of Education and Skills,071732,Dean Bank Childcare,Supplies and Services,324117,Provisions E324,13-Nov-2018,000008023208909,SAINSBURYS SACAT (2303,5411,Catering costs - provisions,3.00,0.00,3.00
Children and Young Peoples Services,Head of Education and Skills,071732,Dean Bank Childcare,Supplies and Services,328041,Clothing uniforms and laundry E328,13-Nov-2018,000008023208911,B & M RETAIL,5310,Clothing uniforms and laundry,17.76,0.00,17.76
Regeneration and Local Services,Culture & Sport,054813,Gala Theatre - Technical,Supplies and Services,304403,Equipment and Materials,13-Nov-2018,000008023208921,RETROWAGEN LTD,5734,Other consumables,14.95,0.00,14.95
Children and Young Peoples Services,"Head of Early Help, Inclusion and Vulnerable Children",085962,Aycliffe Secure - Durham,Supplies and Services,328041,Clothing uniforms and laundry E328,13-Nov-2018,000008023208991,FOOTASYLUM PLC,5691,Clothing uniforms and laundry,43.94,0.00,43.94
Children and Young Peoples Services,"Head of Early Help, Inclusion and Vulnerable Children",085956,Lumley,Supplies and Services,324117,Provisions E324,13-Nov-2018,000008023208997,TESCO STORES 6329,5411,Catering costs - provisions,76.91,0.00,76.91
Children and Young Peoples Services,"Head of Early Help, Inclusion and Vulnerable Children",085955,Auckland,Supplies and Services,328041,Clothing uniforms and laundry E328,13-Nov-2018,000008023209001,VERY,5964,Clothing uniforms and laundry,177.99,0.00,177.99
Children and Young Peoples Services,"Head of Early Help, Inclusion and Vulnerable Children",085962,Aycliffe Secure - Durham,Supplies and Services,384999,Miscellaneous Expenses,13-Nov-2018,000008023209005,WWW.ARGOS.CO.UK,5310,Other expenses,18.94,3.16,15.78
Regeneration and Local Services,Culture & Sport,054813,Gala Theatre - Technical,Supplies and Services,312011,Newspapers books and periodicals E312,13-Nov-2018,000008023209011,AMZN Mktp UK M803E53X4,5942,Books-school library,6.66,0.00,6.66
Regeneration and Local Services,Culture & Sport,054813,Gala Theatre - Technical,Supplies and Services,312011,Newspapers books and periodicals E312,13-Nov-2018,000008023209017,AMZN Mktp UK M84CY5J34,5942,Books-school library,9.99,0.00,9.99
Regeneration and Local Services,Culture & Sport,054813,Gala Theatre - Technical,Supplies and Services,304403,Equipment and Materials,13-Nov-2018,000008023209021,TIMPSON LTD,7251,Other consumables,59.00,0.00,59.00
Regeneration and Local Services,Culture & Sport,054813,Gala Theatre - Technical,Supplies and Services,324117,Provisions E324,13-Nov-2018,000008023209027,TESCO STORES 6029,5411,Catering costs - provisions,5.55,0.00,5.55
Regeneration and Local Services,Culture & Sport,011060,Hardwick Park Catering,Supplies and Services,324117,Provisions E324,13-Nov-2018,000008023209053,JR HOLLAND FOODSERVICE,5422,Catering costs - provisions,15.72,0.00,15.72
Regeneration and Local Services,Spatial Policy Planning Assets & Environment,031200,North Pennines Core,Supplies and Services,352001,Conference Expenses,13-Nov-2018,000008023209079,Hotel on Booking.com,7011,Conferencesseminars fees etc,79.00,0.00,79.00
Regeneration and Local Services,Direct Services,010525,Catering - Green Lane,Supplies and Services,324117,Provisions E324,13-Nov-2018,000008023209113,WWW.ADELIEFOODS.CO.UK,5499,Catering costs - provisions,32.40,0.00,32.40
Regeneration and Local Services,Culture & Sport,054306,Peterlee Library,Supplies and Services,304259,Equipment and Materials,13-Nov-2018,000008023209149,AMZN Mktp UK M82PI43Z4,5942,Equipment-purchase and rental,44.40,0.00,44.40
Regeneration and Local Services,Culture & Sport,054306,Peterlee Library,Supplies and Services,304259,Equipment and Materials,13-Nov-2018,000008023209153,AMZN Mktp UK M89JS63M4,5942,Equipment-purchase and rental,68.64,0.00,68.64
Regeneration and Local Services,Economic Development and Housing,030771,Durham Advance Flexible Fund,Transport,235057,Public Transport,13-Nov-2018,000008023209197,ARRIVA NORTH EAST,4131,Staff travelling,5.00,0.00,5.00
Regeneration and Local Services,Economic Development and Housing,031500,Housing Solutions - Core Team,Supplies and Services,352001,Conference Expenses,13-Nov-2018,000008023209209,HOTEL 52,7011,Conferencesseminars fees etc,195.00,0.00,195.00
Children and Young Peoples Services,Head of Childrens Social Care,085342,9 Cedar Drive Aycliffe,Supplies and Services,324117,Provisions E324,13-Nov-2018,000008023209223,ASDA GEORGE COM LEEDS,5411,Catering costs - provisions,12.95,0.00,12.95
Regeneration and Local Services,Direct Services,030691,"Catering - Durham Dales Centre			",Supplies and Services,324117,Provisions E324,13-Nov-2018,000008023209285,JR HOLLAND FOODSERVICE,5422,Catering costs - provisions,105.76,0.00,105.76
Adult and Health Services,Head of Adults,055643,Hawthorn House LD Respite Unit,Supplies and Services,324117,Provisions E324,13-Nov-2018,000008023209311,JR HOLLAND FOODSERVICE,5422,Catering costs - provisions,22.12,0.00,22.12
Adult and Health Services,Head of Adults,055643,Hawthorn House LD Respite Unit,Supplies and Services,324117,Provisions E324,13-Nov-2018,000008023209315,JR HOLLAND FOODSERVICE,5422,Catering costs - provisions,19.11,0.00,19.11
Regeneration and Local Services,Spatial Policy Planning Assets & Environment,031200,North Pennines Core,Supplies and Services,312011,Newspapers books and periodicals E312,13-Nov-2018,000008023209331,RELAY DCC373415,5942,Books-school library,8.16,0.00,8.16
Regeneration and Local Services,Spatial Policy Planning Assets & Environment,031200,North Pennines Core,Transport,235057,Public Transport,13-Nov-2018,000008023209333,WWW.ROBINHOODAIRPORT.C,4582,Staff travelling,6.00,0.00,6.00
Regeneration and Local Services,Spatial Policy Planning Assets & Environment,031200,North Pennines Core,Third Party Payments 4THIRD,430100,Rendered by Private Contractors,13-Nov-2018,000008023209337,CANAILLE,7399,Payments to sub-contractors,21.41,0.00,21.41
Children and Young Peoples Services,Head of Education and Skills,070264,EDC Premises,Supplies and Services,324117,Provisions E324,13-Nov-2018,000008023209369,ASDA STORES,5411,Catering costs - provisions,19.58,0.00,19.58
Children and Young Peoples Services,"Head of Early Help, Inclusion and Vulnerable Children",088101,Durham West & CLS 0-19 Community Family Hub,Supplies and Services,312009,Newspapers books and periodicals E312,13-Nov-2018,000008023209393,AMZN Mktp UK M84NP7394,5942,Newspapers books and periodicals,8.78,0.00,8.78
Children and Young Peoples Services,"Head of Early Help, Inclusion and Vulnerable Children",074000,TTF-Attachment and Results,Supplies and Services,324117,Provisions E324,13-Nov-2018,000008023209411,ASDA GEORGE COM LEEDS,5411,Catering costs - provisions,131.95,0.00,131.95
Children and Young Peoples Services,"Head of Early Help, Inclusion and Vulnerable Children",085957,Secure Management,Supplies and Services,384999,Miscellaneous Expenses,13-Nov-2018,000008023209425,COMPLETE CARE SHOP,5399,Other expenses,23.20,0.00,23.20
Regeneration and Local Services,Economic Development and Housing,031500,Housing Solutions - Core Team,Transport,235057,Public Transport,13-Nov-2018,000008023209443,GO NORTH EAST LIMITED,4131,Staff travelling,53.00,0.00,53.00
Regeneration and Local Services,Economic Development and Housing,030690,Durham Dales Centre - Tourist Information Centre,Supplies and Services,384999,Miscellaneous Expenses,13-Nov-2018,000008023209463,GAINSBOROUGH GIFTWARE,5950,Other expenses,748.55,124.76,623.79
Regeneration and Local Services,Economic Development and Housing,030690,Durham Dales Centre - Tourist Information Centre,Supplies and Services,384999,Miscellaneous Expenses,13-Nov-2018,000008023209467,GAINSBOROUGH GIFTWARE,5950,Other expenses,-2.52,-0.42,-2.10
Regeneration and Local Services,Culture & Sport,054235,Bishop Auckland Town Hall Cafe,Supplies and Services,324117,Provisions E324,13-Nov-2018,000008023209475,WWW.ADELIEFOODS.CO.UK,5499,Catering costs - provisions,26.52,0.00,26.52
Regeneration and Local Services,Culture & Sport,054235,Bishop Auckland Town Hall Cafe,Supplies and Services,324117,Provisions E324,13-Nov-2018,000008023209479,WWW.ADELIEFOODS.CO.UK,5499,Catering costs - provisions,14.39,0.00,14.39
Regeneration and Local Services,Culture & Sport,054235,Bishop Auckland Town Hall Cafe,Supplies and Services,324117,Provisions E324,13-Nov-2018,000008023209481,JR HOLLAND FOODSERVICE,5422,Catering costs - provisions,28.31,0.00,28.31
Regeneration and Local Services,Transport and Contracted Services,031701,Care Connect All Localities,Supplies and Services,304259,Equipment and Materials,13-Nov-2018,000008023209485,SECURITY INDUSTRY,7393,Equipment-purchase and rental,220.00,0.00,220.00
Regeneration and Local Services,Culture & Sport,026591,Hardwick Park,Supplies and Services,332047,Printing Stationery and Gen Off Exps,13-Nov-2018,000008023209489,AMZN MKTP UK M89694JE4,5942,Stationery,6.99,0.00,6.99
Regeneration and Local Services,Economic Development and Housing,030671,Business Space,Premises,120037,Energy Costs,13-Nov-2018,000008023209497,NORTHUMBRIAN WATER LTD,4900,Other fuels,112.80,0.00,112.80
Regeneration and Local Services,Culture & Sport,054820,Gala Theatre - Overheads,Supplies and Services,312011,Newspapers books and periodicals E312,13-Nov-2018,000008023209583,AMZN Mktp UK M80644JQ4,5942,Books-school library,27.98,0.00,27.98
Transformation and Partnerships,Communications Management,060270,Communications and Marketing,Supplies and Services,384199,Miscellaneous Expenses,13-Nov-2018,000008023209625,PAYPAL ENVATO MKPL EN,5999,Other hired and contracted services,6.46,0.00,6.46
Adult and Health Services,Head of Adults,055309,Peterlee Pathways,Supplies and Services,328041,Clothing uniforms and laundry E328,13-Nov-2018,000008023209657,ARGOS LTD,5310,Clothing uniforms and laundry,4.99,0.00,4.99
Children and Young Peoples Services,Head of Education and Skills,076001,Music Service,Supplies and Services,324117,Provisions E324,13-Nov-2018,000008023209665,ASDA SUPERSTORE 4987,5411,Catering costs - provisions,18.00,0.00,18.00
Children and Young Peoples Services,Head of Childrens Social Care,085614,Families First Durham West,Supplies and Services,308011,Furniture,13-Nov-2018,000008023209751,WILKO.COM,5399,Furniture repair and replacement,204.00,0.00,204.00
Resources,Digital and Customer Services,065481,Technical Services,Supplies and Services,304335,Equipment and Materials,13-Nov-2018,000008028514939,AMZN MKTP UK M80VW0J94,5942,ICT supplies etc,97.69,0.00,97.69
Regeneration and Local Services,Culture & Sport,010664,Freemans Quay Leisure Centre,Supplies and Services,328041,Clothing uniforms and laundry E328,13-Nov-2018,000008028515325,ARGOS RETAIL GROUP,5310,Clothing uniforms and laundry,199.99,33.33,166.66
Regeneration and Local Services,Culture & Sport,054813,Gala Theatre - Technical,Supplies and Services,384999,Miscellaneous Expenses,13-Nov-2018,000008028515361,PAYPAL DARKBLADEUK,5945,Other expenses,66.00,0.00,66.00
Regeneration and Local Services,Spatial Policy Planning Assets & Environment,031200,North Pennines Core,Supplies and Services,348037,Subsistence E348,13-Nov-2018,000008028515871,HMSHOST AMSTERDAM SCHI,5814,Subsistence,7.24,0.00,7.24
Transformation and Partnerships,Partnerships & Community Engagement Div.,060472,Syrian Vulnerable Persons Scheme,Supplies and Services,328041,Clothing uniforms and laundry E328,13-Nov-2018,000008041118185,DURHAM SCHOOL,5137,Clothing uniforms and laundry,44.00,0.00,44.00
Regeneration and Local Services,Direct Services,021242,Catering - County Hall,Supplies and Services,324117,Provisions E324,13-Nov-2018,000008049431537,BATLEYS PERTH,5300,Catering costs - provisions,517.08,86.18,430.90
Regeneration and Local Services,Direct Services,021242,Catering - County Hall,Supplies and Services,324117,Provisions E324,13-Nov-2018,000008049431537 - 1,BATLEYS PERTH,5300,Catering costs - provisions,205.44,,205.44
Regeneration and Local Services,Culture & Sport,011060,Hardwick Park Catering,Supplies and Services,324117,Provisions E324,13-Nov-2018,000008049431957,BATLEYS PERTH,5300,Catering costs - provisions,66.30,11.05,55.25
Regeneration and Local Services,Culture & Sport,011060,Hardwick Park Catering,Supplies and Services,324117,Provisions E324,13-Nov-2018,000008049431957 - 1,BATLEYS PERTH,5300,Catering costs - provisions,66.67,,66.67
Regeneration and Local Services,Culture & Sport,011060,Hardwick Park Catering,Supplies and Services,324117,Provisions E324,13-Nov-2018,000008049431967,BATLEYS PERTH,5300,Catering costs - provisions,5.75,0.00,5.75
Regeneration and Local Services,Culture & Sport,054235,Bishop Auckland Town Hall Cafe,Supplies and Services,324117,Provisions E324,13-Nov-2018,000008049432809,BATLEYS PERTH,5300,Catering costs - provisions,69.24,11.54,57.70
Regeneration and Local Services,Culture & Sport,054235,Bishop Auckland Town Hall Cafe,Supplies and Services,324117,Provisions E324,13-Nov-2018,000008049432809 - 1,BATLEYS PERTH,5300,Catering costs - provisions,83.44,,83.44
Regeneration and Local Services,Direct Services,021324,Catering - Meadowfield,Supplies and Services,324117,Provisions E324,13-Nov-2018,000008049432837,BATLEYS PERTH,5300,Catering costs - provisions,74.04,12.34,61.70
Regeneration and Local Services,Direct Services,021324,Catering - Meadowfield,Supplies and Services,324117,Provisions E324,13-Nov-2018,000008049432837 - 1,BATLEYS PERTH,5300,Catering costs - provisions,118.79,,118.79
Resources,Digital and Customer Services,065461,Business Support,Supplies and Services,372009,Subscriptions E372,14-Nov-2018,000008023208771,WEB NETWORKSOLUTIONS,5968,Subscriptions 372009,5.01,0.00,5.01
Regeneration and Local Services,Spatial Policy Planning Assets & Environment,031200,North Pennines Core,Third Party Payments 4THIRD,430100,Rendered by Private Contractors,14-Nov-2018,000008023209339,CANAILLE,7399,Payments to sub-contractors,0.59,0.00,0.59
Children and Young Peoples Services,Head of Education and Skills,071801,Selby Cottage Childcare Centre,Supplies and Services,324117,Provisions E324,14-Nov-2018,000008028514915,TESCO STORES 2278,5411,Catering costs - provisions,35.69,0.00,35.69
Resources,Digital and Customer Services,065432,Web Development Group,Supplies and Services,304335,Equipment and Materials,14-Nov-2018,000008028514941,AO RETAIL LIMITED,5722,ICT supplies etc,265.00,44.17,220.83
Adult and Health Services,Head of Adults,055302,Durham Pathways,Supplies and Services,304259,Equipment and Materials,14-Nov-2018,000008028514995,WILKO DURHAM 426,5722,Equipment-purchase and rental,17.00,0.00,17.00
Adult and Health Services,Head of Adults,055302,Durham Pathways,Supplies and Services,328041,Clothing uniforms and laundry E328,14-Nov-2018,000008028514999,THE WORKS,5310,Clothing uniforms and laundry,6.00,0.00,6.00
Children and Young Peoples Services,Head of Childrens Social Care,085332,Middlestone Moor CU,Supplies and Services,324117,Provisions E324,14-Nov-2018,000008028515035,ALDI 74 774,5411,Catering costs - provisions,13.16,0.00,13.16
Regeneration and Local Services,Economic Development and Housing,030699,Business Growth and Innovation General,Supplies and Services,342033,Computers and Communications,14-Nov-2018,000008028515041,WATCHFULPAYPAL,7379,Computer hardware,15.51,0.00,15.51
Children and Young Peoples Services,Childrens Services Operational Support,052986,CYPS - Locality and Operational Support,Supplies and Services,304259,Equipment and Materials,14-Nov-2018,000008028515077,WILKO RETAIL LIMIT,5722,Equipment-purchase and rental,8.00,0.00,8.00
Children and Young Peoples Services,Childrens Services Operational Support,052986,CYPS - Locality and Operational Support,Supplies and Services,324117,Provisions E324,14-Nov-2018,000008028515085,ASDA STORES,5411,Catering costs - provisions,10.17,0.00,10.17
Regeneration and Local Services,Direct Services,021242,Catering - County Hall,Premises,145009,Cleaning and Domestic Supplies,14-Nov-2018,000008028515105,ALLIANCE DISPOSABLES L,2842,Other cleaning and domestic costs,234.30,39.05,195.25
Regeneration and Local Services,Direct Services,021242,Catering - County Hall,Supplies and Services,324117,Provisions E324,14-Nov-2018,000008028515113,JR HOLLAND FOODSERVICE,5422,Catering costs - provisions,115.69,0.00,115.69
Regeneration and Local Services,Direct Services,021242,Catering - County Hall,Supplies and Services,324117,Provisions E324,14-Nov-2018,000008028515121,JR HOLLAND FOODSERVICE,5422,Catering costs - provisions,31.51,0.00,31.51
Regeneration and Local Services,Direct Services,021242,Catering - County Hall,Supplies and Services,324117,Provisions E324,14-Nov-2018,000008028515127,JR HOLLAND FOODSERVICE,5422,Catering costs - provisions,24.45,0.00,24.45
Regeneration and Local Services,Direct Services,021242,Catering - County Hall,Supplies and Services,324117,Provisions E324,14-Nov-2018,000008028515129,JR HOLLAND FOODSERVICE,5422,Catering costs - provisions,15.00,0.00,15.00
Regeneration and Local Services,Direct Services,021242,Catering - County Hall,Supplies and Services,324117,Provisions E324,14-Nov-2018,000008028515133,FREEMAN CATERING BUTCH,5422,Catering costs - provisions,28.09,0.00,28.09
Regeneration and Local Services,Direct Services,021242,Catering - County Hall,Supplies and Services,324117,Provisions E324,14-Nov-2018,000008028515137,FREEMAN CATERING BUTCH,5422,Catering costs - provisions,175.90,0.00,175.90
Regeneration and Local Services,Economic Development and Housing,030544,Rural Employability - Client Engagement,Supplies and Services,312011,Newspapers books and periodicals E312,14-Nov-2018,000008028515149,AMZN MKTP UK M86RS7TV4,5942,Books-school library,8.02,0.00,8.02
Regeneration and Local Services,Economic Development and Housing,030544,Rural Employability - Client Engagement,Supplies and Services,304221,Equipment and Materials,14-Nov-2018,000008028515151,SCREWFIX DURHAM,5211,Direct materials,84.84,14.14,70.70
Regeneration and Local Services,Economic Development and Housing,030544,Rural Employability - Client Engagement,Supplies and Services,304221,Equipment and Materials,14-Nov-2018,000008028515151 - 1,SCREWFIX DURHAM,5211,Direct materials,30.12,,30.12
Regeneration and Local Services,Economic Development and Housing,030544,Rural Employability - Client Engagement,Supplies and Services,328041,Clothing uniforms and laundry E328,14-Nov-2018,000008028515155,ARGOS,5310,Clothing uniforms and laundry,79.98,0.00,79.98
Regeneration and Local Services,Culture & Sport,054812,Gala Theatre - Catering etc,Supplies and Services,324117,Provisions E324,14-Nov-2018,000008028515165,FREEMAN CATERING BUTCH,5422,Catering costs - provisions,16.20,0.00,16.20
Adult and Health Services,Central/Other,054755,DLI-WW2 Oral History Project,Supplies and Services,308011,Furniture,14-Nov-2018,000008028515227,WWW.DIRECT-FUNDRAISING,5999,Furniture repair and replacement,411.00,68.50,342.50
Children and Young Peoples Services,Head of Childrens Social Care,085334,West Rainton Satelite Home,Supplies and Services,304259,Equipment and Materials,14-Nov-2018,000008028515267,WILKO RETAIL LIMIT,5722,Equipment-purchase and rental,12.00,0.00,12.00
Children and Young Peoples Services,Head of Childrens Social Care,085334,West Rainton Satelite Home,Supplies and Services,324117,Provisions E324,14-Nov-2018,000008028515273,ASDA STORES LTD,5411,Catering costs - provisions,17.30,0.00,17.30
Children and Young Peoples Services,Childrens Services Operational Support,052986,CYPS - Locality and Operational Support,Supplies and Services,304259,Equipment and Materials,14-Nov-2018,000008028515279,NOTTS COUNTY COUNCIL,9399,Equipment-purchase and rental,-11.00,0.00,-11.00
Children and Young Peoples Services,Head of Education and Skills,071732,Dean Bank Childcare,Supplies and Services,312011,Newspapers books and periodicals E312,14-Nov-2018,000008028515337,AMZN Mktp UK M818P6TS4,5942,Books-school library,23.76,0.00,23.76
Children and Young Peoples Services,Head of Education and Skills,071732,Dean Bank Childcare,Supplies and Services,312011,Newspapers books and periodicals E312,14-Nov-2018,000008028515341,AMZN MKTP UK M80QQ5TU4,5942,Books-school library,6.08,0.00,6.08
Children and Young Peoples Services,Head of Education and Skills,071732,Dean Bank Childcare,Supplies and Services,312011,Newspapers books and periodicals E312,14-Nov-2018,000008028515347,AMZN Mktp UK M82R38AM4,5942,Books-school library,68.99,0.00,68.99
Children and Young Peoples Services,Head of Education and Skills,071732,Dean Bank Childcare,Supplies and Services,312011,Newspapers books and periodicals E312,14-Nov-2018,000008028515351,AMZN Mktp UK M83R70AG4,5942,Books-school library,59.88,0.00,59.88
Children and Young Peoples Services,Head of Education and Skills,071732,Dean Bank Childcare,Supplies and Services,312011,Newspapers books and periodicals E312,14-Nov-2018,000008028515355,AMZN Mktp UK M89PF6A64,5942,Books-school library,39.96,0.00,39.96
Regeneration and Local Services,Culture & Sport,054813,Gala Theatre - Technical,Supplies and Services,312011,Newspapers books and periodicals E312,14-Nov-2018,000008028515365,AMZN Mktp UK M83HP8T54,5942,Books-school library,14.99,0.00,14.99
Regeneration and Local Services,Culture & Sport,054813,Gala Theatre - Technical,Supplies and Services,312011,Newspapers books and periodicals E312,14-Nov-2018,000008028515371,AMZN Mktp UK M86H19TV4,5942,Books-school library,14.99,0.00,14.99
Regeneration and Local Services,Culture & Sport,054813,Gala Theatre - Technical,Supplies and Services,312011,Newspapers books and periodicals E312,14-Nov-2018,000008028515373,AMZN Mktp UK M885N5AK4,5942,Books-school library,105.98,0.00,105.98
Regeneration and Local Services,Culture & Sport,054813,Gala Theatre - Technical,Supplies and Services,312011,Newspapers books and periodicals E312,14-Nov-2018,000008028515379,Amazon.co.uk M81GQ4AD4,5969,Books-school library,13.99,0.00,13.99
Regeneration and Local Services,Culture & Sport,054813,Gala Theatre - Technical,Supplies and Services,312011,Newspapers books and periodicals E312,14-Nov-2018,000008028515383,AMZN Mktp UK M80R77AL4,5942,Books-school library,13.99,0.00,13.99
Regeneration and Local Services,Culture & Sport,054813,Gala Theatre - Technical,Supplies and Services,384999,Miscellaneous Expenses,14-Nov-2018,000008028515387,HOBBYCRAFT,5970,Other expenses,7.40,0.00,7.40
Regeneration and Local Services,Culture & Sport,054813,Gala Theatre - Technical,Supplies and Services,324117,Provisions E324,14-Nov-2018,000008028515391,TESCO STORES 2969,5411,Catering costs - provisions,5.00,0.00,5.00
Regeneration and Local Services,Culture & Sport,054813,Gala Theatre - Technical,Supplies and Services,304221,Equipment and Materials,14-Nov-2018,000008028515395,WICKES,5200,Direct materials,21.26,0.00,21.26
Regeneration and Local Services,Culture & Sport,054813,Gala Theatre - Technical,Supplies and Services,304221,Equipment and Materials,14-Nov-2018,000008028515399,B & Q 1014,5211,Direct materials,16.00,0.00,16.00
Children and Young Peoples Services,"Head of Early Help, Inclusion and Vulnerable Children",085954,Walworth,Supplies and Services,304649,Equipment and Materials,14-Nov-2018,000008028515479,Amazon.co.uk M86O90AP4,5969,Toys,9.59,1.60,7.99
Children and Young Peoples Services,"Head of Early Help, Inclusion and Vulnerable Children",085954,Walworth,Supplies and Services,304649,Equipment and Materials,14-Nov-2018,000008028515487,AMZN MKTP UK M85MA2AI4,5942,Toys,13.14,2.19,10.95
Children and Young Peoples Services,"Head of Early Help, Inclusion and Vulnerable Children",085955,Auckland,Supplies and Services,324117,Provisions E324,14-Nov-2018,000008028515493,TESCO STORES 6329,5411,Catering costs - provisions,70.21,0.00,70.21
Children and Young Peoples Services,"Head of Early Help, Inclusion and Vulnerable Children",085954,Walworth,Supplies and Services,304649,Equipment and Materials,14-Nov-2018,000008028515497,AMZN MKTP UK M845Y9A34,5942,Toys,9.97,1.66,8.31
Regeneration and Local Services,Culture & Sport,054813,Gala Theatre - Technical,Supplies and Services,312011,Newspapers books and periodicals E312,14-Nov-2018,000008028515501,AMZN Mktp UK M83AY7A14,5942,Books-school library,12.97,0.00,12.97
Regeneration and Local Services,Culture & Sport,054813,Gala Theatre - Technical,Supplies and Services,312011,Newspapers books and periodicals E312,14-Nov-2018,000008028515507,AMZN Mktp UK M85A73AQ4,5942,Books-school library,12.97,0.00,12.97
